{"text_format":"1","workbook":"xlsx","n_sheets":5,"sheets":["Introduction","Scenarios","Soft","Medium","Strong"],"not_rendered":{"charts":0,"images":5,"macros":1,"external_links":0,"defined_names":0,"comments":0,"pivot_tables":0},"unopened":[],"bounds":{"document_bytes":16777216,"sheet_cells":100000,"rows_first":2000,"rows_last":500,"rows_between":2000,"halvings":0,"cell_chars":16384,"cell_head_chars":4096},"cells_cut":0,"cells_raw":0,"read":"whole","date_system":"1900"}

{"sheet":"Introduction","index":0,"n_rows":30,"n_cols":1,"rows_kept":30,"cut":false,"hidden":false,"merged":[]}
[]
[]
[]
[]
[]
[]
[]
[]
[]
[]
["The MCA self-assessment tool is a user-friendly tool that will support you in your region's transition to bioeconomy. Click in the Scenarios worksheet the scenario you want to follow. This file is integral part of the deliverable D.1.3 (Task 1.3) of the BIO2REG project."]
["a. Weak/soft: This scenario is mostly suited for those regions that do not have a dedicated national/ regional bioeconomy strategy. Consequently, the indicators selected for this scenario are generic and try to capture the more general potential of the bioeconomy in your regions. "]
["b. Moderate/ Medium: This scenario is mostly suited for those regions that have at least a national and/or regional bioeconomy strategy. It is also possible that this scenario can be selected, even if you do not have a dedicated national/ regional bioeconomy strategy. In this case, you expect or envisage a greater deployment of bioeconomy in your regions. "]
["c. Strong/dedicated: This scenario is mostly suited for those regions who have a dedicated national/ regional bioeconomy. The indicators included in the scenario will assist you in better understanding how well the bioeconomy is deployed in your region and if there is more room for improvement. "]
[]
["In each scenario you will see the following categories:"]
["Pillar: The sustainability pillar this indicator belongs to"]
["Sector: if applicable, specific indicators that fit a specific sector will be mentioned."]
["Name: How it is named"]
["Metric: How it is measured"]
["Short description: A very short analysis of what this indicator measures and how it can contribute to bioeconomy transition"]
["Source: if available, a data source is provided"]
["Comment: Includes hint on how to gather data on that indicator"]
[]
[]
[]
[]
[]
[]
["Views and opinions expressed are however those of the author(s) only and do not necessarily reflect those of the European Union or European Research Executive Agency (REA). Neither the European Union nor REA can be held responsible for them."]

{"sheet":"Scenarios","index":1,"n_rows":61,"n_cols":7,"rows_kept":61,"cut":false,"hidden":false,"merged":[[0,3,0,5]]}
["Select scenario","Soft",null,"MCA Self-Assessment "]
[]
[{"$f":"IFERROR(\n   IF(OR(\n      INDEX(INDIRECT(\"'\"&$B$1&\"'!A:G\"), ROW(A1), COLUMN(A1))=0,\n      INDEX(INDIRECT(\"'\"&$B$1&\"'!A:G\"), ROW(A1), COLUMN(A1))=\"\"\n   ),\n   \"\",\n   INDEX(INDIRECT(\"'\"&$B$1&\"'!A:G\"), ROW(A1), COLUMN(A1))\n),\n\"\")","v":"Pillar"},{"$f":"IFERROR(\n   IF(OR(\n      INDEX(INDIRECT(\"'\"&$B$1&\"'!A:G\"), ROW(B1), COLUMN(B1))=0,\n      INDEX(INDIRECT(\"'\"&$B$1&\"'!A:G\"), ROW(B1), COLUMN(B1))=\"\"\n   ),\n   \"\",\n   INDEX(INDIRECT(\"'\"&$B$1&\"'!A:G\"), ROW(B1), COLUMN(B1))\n),\n\"\")","v":"Sector"},{"$f":"IFERROR(\n   IF(OR(\n      INDEX(INDIRECT(\"'\"&$B$1&\"'!A:G\"), ROW(C1), COLUMN(C1))=0,\n      INDEX(INDIRECT(\"'\"&$B$1&\"'!A:G\"), ROW(C1), COLUMN(C1))=\"\"\n   ),\n   \"\",\n   INDEX(INDIRECT(\"'\"&$B$1&\"'!A:G\"), ROW(C1), COLUMN(C1))\n),\n\"\")","v":"Name "},{"$f":"IFERROR(\n   IF(OR(\n      INDEX(INDIRECT(\"'\"&$B$1&\"'!A:G\"), ROW(D1), COLUMN(D1))=0,\n      INDEX(INDIRECT(\"'\"&$B$1&\"'!A:G\"), ROW(D1), COLUMN(D1))=\"\"\n   ),\n   \"\",\n   INDEX(INDIRECT(\"'\"&$B$1&\"'!A:G\"), ROW(D1), COLUMN(D1))\n),\n\"\")","v":"Metric"},{"$f":"IFERROR(\n   IF(OR(\n      INDEX(INDIRECT(\"'\"&$B$1&\"'!A:G\"), ROW(E1), COLUMN(E1))=0,\n      INDEX(INDIRECT(\"'\"&$B$1&\"'!A:G\"), ROW(E1), COLUMN(E1))=\"\"\n   ),\n   \"\",\n   INDEX(INDIRECT(\"'\"&$B$1&\"'!A:G\"), ROW(E1), COLUMN(E1))\n),\n\"\")","v":"Short description"},{"$f":"IFERROR(\n   IF(OR(\n      INDEX(INDIRECT(\"'\"&$B$1&\"'!A:G\"), ROW(F1), COLUMN(F1))=0,\n      INDEX(INDIRECT(\"'\"&$B$1&\"'!A:G\"), ROW(F1), COLUMN(F1))=\"\"\n   ),\n   \"\",\n   INDEX(INDIRECT(\"'\"&$B$1&\"'!A:G\"), ROW(F1), COLUMN(F1))\n),\n\"\")","v":"Source"},{"$f":"IFERROR(\n   IF(OR(\n      INDEX(INDIRECT(\"'\"&$B$1&\"'!A:G\"), ROW(G1), COLUMN(G1))=0,\n      INDEX(INDIRECT(\"'\"&$B$1&\"'!A:G\"), ROW(G1), COLUMN(G1))=\"\"\n   ),\n   \"\",\n   INDEX(INDIRECT(\"'\"&$B$1&\"'!A:G\"), ROW(G1), COLUMN(G1))\n),\n\"\")","v":"Comment"}]
[{"$f":"IFERROR(\n   IF(OR(\n      INDEX(INDIRECT(\"'\"&$B$1&\"'!A:G\"), ROW(A2), COLUMN(A2))=0,\n      INDEX(INDIRECT(\"'\"&$B$1&\"'!A:G\"), ROW(A2), COLUMN(A2))=\"\"\n   ),\n   \"\",\n   INDEX(INDIRECT(\"'\"&$B$1&\"'!A:G\"), ROW(A2), COLUMN(A2))\n),\n\"\")","v":"Society"},{"$f":"IFERROR(\n   IF(OR(\n      INDEX(INDIRECT(\"'\"&$B$1&\"'!A:G\"), ROW(B2), COLUMN(B2))=0,\n      INDEX(INDIRECT(\"'\"&$B$1&\"'!A:G\"), ROW(B2), COLUMN(B2))=\"\"\n   ),\n   \"\",\n   INDEX(INDIRECT(\"'\"&$B$1&\"'!A:G\"), ROW(B2), COLUMN(B2))\n),\n\"\")","v":"All sectors"},{"$f":"IFERROR(\n   IF(OR(\n      INDEX(INDIRECT(\"'\"&$B$1&\"'!A:G\"), ROW(C2), COLUMN(C2))=0,\n      INDEX(INDIRECT(\"'\"&$B$1&\"'!A:G\"), ROW(C2), COLUMN(C2))=\"\"\n   ),\n   \"\",\n   INDEX(INDIRECT(\"'\"&$B$1&\"'!A:G\"), ROW(C2), COLUMN(C2))\n),\n\"\")","v":"Basic education"},{"$f":"IFERROR(\n   IF(OR(\n      INDEX(INDIRECT(\"'\"&$B$1&\"'!A:G\"), ROW(D2), COLUMN(D2))=0,\n      INDEX(INDIRECT(\"'\"&$B$1&\"'!A:G\"), ROW(D2), COLUMN(D2))=\"\"\n   ),\n   \"\",\n   INDEX(INDIRECT(\"'\"&$B$1&\"'!A:G\"), ROW(D2), COLUMN(D2))\n),\n\"\")","v":"Number"},{"$f":"IFERROR(\n   IF(OR(\n      INDEX(INDIRECT(\"'\"&$B$1&\"'!A:G\"), ROW(E2), COLUMN(E2))=0,\n      INDEX(INDIRECT(\"'\"&$B$1&\"'!A:G\"), ROW(E2), COLUMN(E2))=\"\"\n   ),\n   \"\",\n   INDEX(INDIRECT(\"'\"&$B$1&\"'!A:G\"), ROW(E2), COLUMN(E2))\n),\n\"\")","v":"INDEX=100- RCI (EU Regional Competitiveness Index) Sub-indicator"},{"$f":"IFERROR(\n   IF(OR(\n      INDEX(INDIRECT(\"'\"&$B$1&\"'!A:G\"), ROW(F2), COLUMN(F2))=0,\n      INDEX(INDIRECT(\"'\"&$B$1&\"'!A:G\"), ROW(F2), COLUMN(F2))=\"\"\n   ),\n   \"\",\n   INDEX(INDIRECT(\"'\"&$B$1&\"'!A:G\"), ROW(F2), COLUMN(F2))\n),\n\"\")","v":"https://ec.europa.eu/regional_policy/sources/work/rci_2022/eu-rci2_0-2022_en.pdf"},{"$f":"IFERROR(\n   IF(OR(\n      INDEX(INDIRECT(\"'\"&$B$1&\"'!A:G\"), ROW(G2), COLUMN(G2))=0,\n      INDEX(INDIRECT(\"'\"&$B$1&\"'!A:G\"), ROW(G2), COLUMN(G2))=\"\"\n   ),\n   \"\",\n   INDEX(INDIRECT(\"'\"&$B$1&\"'!A:G\"), ROW(G2), COLUMN(G2))\n),\n\"\")","v":"Regional data are easily accessible through the link provided at the Source column"}]
[{"$f":"IFERROR(\n   IF(OR(\n      INDEX(INDIRECT(\"'\"&$B$1&\"'!A:G\"), ROW(A3), COLUMN(A3))=0,\n      INDEX(INDIRECT(\"'\"&$B$1&\"'!A:G\"), ROW(A3), COLUMN(A3))=\"\"\n   ),\n   \"\",\n   INDEX(INDIRECT(\"'\"&$B$1&\"'!A:G\"), ROW(A3), COLUMN(A3))\n),\n\"\")","v":"Society"},{"$f":"IFERROR(\n   IF(OR(\n      INDEX(INDIRECT(\"'\"&$B$1&\"'!A:G\"), ROW(B3), COLUMN(B3))=0,\n      INDEX(INDIRECT(\"'\"&$B$1&\"'!A:G\"), ROW(B3), COLUMN(B3))=\"\"\n   ),\n   \"\",\n   INDEX(INDIRECT(\"'\"&$B$1&\"'!A:G\"), ROW(B3), COLUMN(B3))\n),\n\"\")","v":"All sectors"},{"$f":"IFERROR(\n   IF(OR(\n      INDEX(INDIRECT(\"'\"&$B$1&\"'!A:G\"), ROW(C3), COLUMN(C3))=0,\n      INDEX(INDIRECT(\"'\"&$B$1&\"'!A:G\"), ROW(C3), COLUMN(C3))=\"\"\n   ),\n   \"\",\n   INDEX(INDIRECT(\"'\"&$B$1&\"'!A:G\"), ROW(C3), COLUMN(C3))\n),\n\"\")","v":"Gender employment gap"},{"$f":"IFERROR(\n   IF(OR(\n      INDEX(INDIRECT(\"'\"&$B$1&\"'!A:G\"), ROW(D3), COLUMN(D3))=0,\n      INDEX(INDIRECT(\"'\"&$B$1&\"'!A:G\"), ROW(D3), COLUMN(D3))=\"\"\n   ),\n   \"\",\n   INDEX(INDIRECT(\"'\"&$B$1&\"'!A:G\"), ROW(D3), COLUMN(D3))\n),\n\"\")","v":"%"},{"$f":"IFERROR(\n   IF(OR(\n      INDEX(INDIRECT(\"'\"&$B$1&\"'!A:G\"), ROW(E3), COLUMN(E3))=0,\n      INDEX(INDIRECT(\"'\"&$B$1&\"'!A:G\"), ROW(E3), COLUMN(E3))=\"\"\n   ),\n   \"\",\n   INDEX(INDIRECT(\"'\"&$B$1&\"'!A:G\"), ROW(E3), COLUMN(E3))\n),\n\"\")","v":"Percentage change of gender employment to total employment"},{"$f":"IFERROR(\n   IF(OR(\n      INDEX(INDIRECT(\"'\"&$B$1&\"'!A:G\"), ROW(F3), COLUMN(F3))=0,\n      INDEX(INDIRECT(\"'\"&$B$1&\"'!A:G\"), ROW(F3), COLUMN(F3))=\"\"\n   ),\n   \"\",\n   INDEX(INDIRECT(\"'\"&$B$1&\"'!A:G\"), ROW(F3), COLUMN(F3))\n),\n\"\")","v":"https://ec.europa.eu/eurostat/databrowser/view/tepsr_lm220/default/table?lang=en"},{"$f":"IFERROR(\n   IF(OR(\n      INDEX(INDIRECT(\"'\"&$B$1&\"'!A:G\"), ROW(G3), COLUMN(G3))=0,\n      INDEX(INDIRECT(\"'\"&$B$1&\"'!A:G\"), ROW(G3), COLUMN(G3))=\"\"\n   ),\n   \"\",\n   INDEX(INDIRECT(\"'\"&$B$1&\"'!A:G\"), ROW(G3), COLUMN(G3))\n),\n\"\")","v":"Regional data are easily accessible through the link provided at the Source column"}]
[{"$f":"IFERROR(\n   IF(OR(\n      INDEX(INDIRECT(\"'\"&$B$1&\"'!A:G\"), ROW(A4), COLUMN(A4))=0,\n      INDEX(INDIRECT(\"'\"&$B$1&\"'!A:G\"), ROW(A4), COLUMN(A4))=\"\"\n   ),\n   \"\",\n   INDEX(INDIRECT(\"'\"&$B$1&\"'!A:G\"), ROW(A4), COLUMN(A4))\n),\n\"\")","v":"Society"},{"$f":"IFERROR(\n   IF(OR(\n      INDEX(INDIRECT(\"'\"&$B$1&\"'!A:G\"), ROW(B4), COLUMN(B4))=0,\n      INDEX(INDIRECT(\"'\"&$B$1&\"'!A:G\"), ROW(B4), COLUMN(B4))=\"\"\n   ),\n   \"\",\n   INDEX(INDIRECT(\"'\"&$B$1&\"'!A:G\"), ROW(B4), COLUMN(B4))\n),\n\"\")","v":"All sectors"},{"$f":"IFERROR(\n   IF(OR(\n      INDEX(INDIRECT(\"'\"&$B$1&\"'!A:G\"), ROW(C4), COLUMN(C4))=0,\n      INDEX(INDIRECT(\"'\"&$B$1&\"'!A:G\"), ROW(C4), COLUMN(C4))=\"\"\n   ),\n   \"\",\n   INDEX(INDIRECT(\"'\"&$B$1&\"'!A:G\"), ROW(C4), COLUMN(C4))\n),\n\"\")","v":"Health pillar"},{"$f":"IFERROR(\n   IF(OR(\n      INDEX(INDIRECT(\"'\"&$B$1&\"'!A:G\"), ROW(D4), COLUMN(D4))=0,\n      INDEX(INDIRECT(\"'\"&$B$1&\"'!A:G\"), ROW(D4), COLUMN(D4))=\"\"\n   ),\n   \"\",\n   INDEX(INDIRECT(\"'\"&$B$1&\"'!A:G\"), ROW(D4), COLUMN(D4))\n),\n\"\")","v":"Number"},{"$f":"IFERROR(\n   IF(OR(\n      INDEX(INDIRECT(\"'\"&$B$1&\"'!A:G\"), ROW(E4), COLUMN(E4))=0,\n      INDEX(INDIRECT(\"'\"&$B$1&\"'!A:G\"), ROW(E4), COLUMN(E4))=\"\"\n   ),\n   \"\",\n   INDEX(INDIRECT(\"'\"&$B$1&\"'!A:G\"), ROW(E4), COLUMN(E4))\n),\n\"\")","v":"INDEX=100- RCI Sub-indicator"},{"$f":"IFERROR(\n   IF(OR(\n      INDEX(INDIRECT(\"'\"&$B$1&\"'!A:G\"), ROW(F4), COLUMN(F4))=0,\n      INDEX(INDIRECT(\"'\"&$B$1&\"'!A:G\"), ROW(F4), COLUMN(F4))=\"\"\n   ),\n   \"\",\n   INDEX(INDIRECT(\"'\"&$B$1&\"'!A:G\"), ROW(F4), COLUMN(F4))\n),\n\"\")","v":"https://ec.europa.eu/regional_policy/assets/regional-competitiveness/index.html#/"},{"$f":"IFERROR(\n   IF(OR(\n      INDEX(INDIRECT(\"'\"&$B$1&\"'!A:G\"), ROW(G4), COLUMN(G4))=0,\n      INDEX(INDIRECT(\"'\"&$B$1&\"'!A:G\"), ROW(G4), COLUMN(G4))=\"\"\n   ),\n   \"\",\n   INDEX(INDIRECT(\"'\"&$B$1&\"'!A:G\"), ROW(G4), COLUMN(G4))\n),\n\"\")","v":"Regional data are easily accessible through the link provided at the Source column"}]
[{"$f":"IFERROR(\n   IF(OR(\n      INDEX(INDIRECT(\"'\"&$B$1&\"'!A:G\"), ROW(A5), COLUMN(A5))=0,\n      INDEX(INDIRECT(\"'\"&$B$1&\"'!A:G\"), ROW(A5), COLUMN(A5))=\"\"\n   ),\n   \"\",\n   INDEX(INDIRECT(\"'\"&$B$1&\"'!A:G\"), ROW(A5), COLUMN(A5))\n),\n\"\")","v":"Society"},{"$f":"IFERROR(\n   IF(OR(\n      INDEX(INDIRECT(\"'\"&$B$1&\"'!A:G\"), ROW(B5), COLUMN(B5))=0,\n      INDEX(INDIRECT(\"'\"&$B$1&\"'!A:G\"), ROW(B5), COLUMN(B5))=\"\"\n   ),\n   \"\",\n   INDEX(INDIRECT(\"'\"&$B$1&\"'!A:G\"), ROW(B5), COLUMN(B5))\n),\n\"\")","v":"All sectors"},{"$f":"IFERROR(\n   IF(OR(\n      INDEX(INDIRECT(\"'\"&$B$1&\"'!A:G\"), ROW(C5), COLUMN(C5))=0,\n      INDEX(INDIRECT(\"'\"&$B$1&\"'!A:G\"), ROW(C5), COLUMN(C5))=\"\"\n   ),\n   \"\",\n   INDEX(INDIRECT(\"'\"&$B$1&\"'!A:G\"), ROW(C5), COLUMN(C5))\n),\n\"\")","v":"Higher education"},{"$f":"IFERROR(\n   IF(OR(\n      INDEX(INDIRECT(\"'\"&$B$1&\"'!A:G\"), ROW(D5), COLUMN(D5))=0,\n      INDEX(INDIRECT(\"'\"&$B$1&\"'!A:G\"), ROW(D5), COLUMN(D5))=\"\"\n   ),\n   \"\",\n   INDEX(INDIRECT(\"'\"&$B$1&\"'!A:G\"), ROW(D5), COLUMN(D5))\n),\n\"\")","v":"Number"},{"$f":"IFERROR(\n   IF(OR(\n      INDEX(INDIRECT(\"'\"&$B$1&\"'!A:G\"), ROW(E5), COLUMN(E5))=0,\n      INDEX(INDIRECT(\"'\"&$B$1&\"'!A:G\"), ROW(E5), COLUMN(E5))=\"\"\n   ),\n   \"\",\n   INDEX(INDIRECT(\"'\"&$B$1&\"'!A:G\"), ROW(E5), COLUMN(E5))\n),\n\"\")","v":"Based on the EU Regional Competitiveness Index"},{"$f":"IFERROR(\n   IF(OR(\n      INDEX(INDIRECT(\"'\"&$B$1&\"'!A:G\"), ROW(F5), COLUMN(F5))=0,\n      INDEX(INDIRECT(\"'\"&$B$1&\"'!A:G\"), ROW(F5), COLUMN(F5))=\"\"\n   ),\n   \"\",\n   INDEX(INDIRECT(\"'\"&$B$1&\"'!A:G\"), ROW(F5), COLUMN(F5))\n),\n\"\")","v":"https://ec.europa.eu/regional_policy/assets/regional-competitiveness/index.html#/"},{"$f":"IFERROR(\n   IF(OR(\n      INDEX(INDIRECT(\"'\"&$B$1&\"'!A:G\"), ROW(G5), COLUMN(G5))=0,\n      INDEX(INDIRECT(\"'\"&$B$1&\"'!A:G\"), ROW(G5), COLUMN(G5))=\"\"\n   ),\n   \"\",\n   INDEX(INDIRECT(\"'\"&$B$1&\"'!A:G\"), ROW(G5), COLUMN(G5))\n),\n\"\")","v":"Regional data are easily accessible through the link provided at the Source column"}]
[{"$f":"IFERROR(\n   IF(OR(\n      INDEX(INDIRECT(\"'\"&$B$1&\"'!A:G\"), ROW(A6), COLUMN(A6))=0,\n      INDEX(INDIRECT(\"'\"&$B$1&\"'!A:G\"), ROW(A6), COLUMN(A6))=\"\"\n   ),\n   \"\",\n   INDEX(INDIRECT(\"'\"&$B$1&\"'!A:G\"), ROW(A6), COLUMN(A6))\n),\n\"\")","v":"Society"},{"$f":"IFERROR(\n   IF(OR(\n      INDEX(INDIRECT(\"'\"&$B$1&\"'!A:G\"), ROW(B6), COLUMN(B6))=0,\n      INDEX(INDIRECT(\"'\"&$B$1&\"'!A:G\"), ROW(B6), COLUMN(B6))=\"\"\n   ),\n   \"\",\n   INDEX(INDIRECT(\"'\"&$B$1&\"'!A:G\"), ROW(B6), COLUMN(B6))\n),\n\"\")","v":"All sectors"},{"$f":"IFERROR(\n   IF(OR(\n      INDEX(INDIRECT(\"'\"&$B$1&\"'!A:G\"), ROW(C6), COLUMN(C6))=0,\n      INDEX(INDIRECT(\"'\"&$B$1&\"'!A:G\"), ROW(C6), COLUMN(C6))=\"\"\n   ),\n   \"\",\n   INDEX(INDIRECT(\"'\"&$B$1&\"'!A:G\"), ROW(C6), COLUMN(C6))\n),\n\"\")","v":"Life expectancy at birth"},{"$f":"IFERROR(\n   IF(OR(\n      INDEX(INDIRECT(\"'\"&$B$1&\"'!A:G\"), ROW(D6), COLUMN(D6))=0,\n      INDEX(INDIRECT(\"'\"&$B$1&\"'!A:G\"), ROW(D6), COLUMN(D6))=\"\"\n   ),\n   \"\",\n   INDEX(INDIRECT(\"'\"&$B$1&\"'!A:G\"), ROW(D6), COLUMN(D6))\n),\n\"\")","v":"Years"},{"$f":"IFERROR(\n   IF(OR(\n      INDEX(INDIRECT(\"'\"&$B$1&\"'!A:G\"), ROW(E6), COLUMN(E6))=0,\n      INDEX(INDIRECT(\"'\"&$B$1&\"'!A:G\"), ROW(E6), COLUMN(E6))=\"\"\n   ),\n   \"\",\n   INDEX(INDIRECT(\"'\"&$B$1&\"'!A:G\"), ROW(E6), COLUMN(E6))\n),\n\"\")","v":"(Number of years a new-born infant would live if prevailing patterns of mortality at the time of its birth were to stay the same throughout its life)"},{"$f":"IFERROR(\n   IF(OR(\n      INDEX(INDIRECT(\"'\"&$B$1&\"'!A:G\"), ROW(F6), COLUMN(F6))=0,\n      INDEX(INDIRECT(\"'\"&$B$1&\"'!A:G\"), ROW(F6), COLUMN(F6))=\"\"\n   ),\n   \"\",\n   INDEX(INDIRECT(\"'\"&$B$1&\"'!A:G\"), ROW(F6), COLUMN(F6))\n),\n\"\")","v":"https://ec.europa.eu/eurostat/databrowser/view/tgs00101/default/table?lang=en&category=t_demo.t_demofmreg"},{"$f":"IFERROR(\n   IF(OR(\n      INDEX(INDIRECT(\"'\"&$B$1&\"'!A:G\"), ROW(G6), COLUMN(G6))=0,\n      INDEX(INDIRECT(\"'\"&$B$1&\"'!A:G\"), ROW(G6), COLUMN(G6))=\"\"\n   ),\n   \"\",\n   INDEX(INDIRECT(\"'\"&$B$1&\"'!A:G\"), ROW(G6), COLUMN(G6))\n),\n\"\")","v":"Regional data are easily accessible through the link provided at the Source column"}]
[{"$f":"IFERROR(\n   IF(OR(\n      INDEX(INDIRECT(\"'\"&$B$1&\"'!A:G\"), ROW(A7), COLUMN(A7))=0,\n      INDEX(INDIRECT(\"'\"&$B$1&\"'!A:G\"), ROW(A7), COLUMN(A7))=\"\"\n   ),\n   \"\",\n   INDEX(INDIRECT(\"'\"&$B$1&\"'!A:G\"), ROW(A7), COLUMN(A7))\n),\n\"\")","v":"Society"},{"$f":"IFERROR(\n   IF(OR(\n      INDEX(INDIRECT(\"'\"&$B$1&\"'!A:G\"), ROW(B7), COLUMN(B7))=0,\n      INDEX(INDIRECT(\"'\"&$B$1&\"'!A:G\"), ROW(B7), COLUMN(B7))=\"\"\n   ),\n   \"\",\n   INDEX(INDIRECT(\"'\"&$B$1&\"'!A:G\"), ROW(B7), COLUMN(B7))\n),\n\"\")","v":"All sectors"},{"$f":"IFERROR(\n   IF(OR(\n      INDEX(INDIRECT(\"'\"&$B$1&\"'!A:G\"), ROW(C7), COLUMN(C7))=0,\n      INDEX(INDIRECT(\"'\"&$B$1&\"'!A:G\"), ROW(C7), COLUMN(C7))=\"\"\n   ),\n   \"\",\n   INDEX(INDIRECT(\"'\"&$B$1&\"'!A:G\"), ROW(C7), COLUMN(C7))\n),\n\"\")","v":"Population 15-64 years"},{"$f":"IFERROR(\n   IF(OR(\n      INDEX(INDIRECT(\"'\"&$B$1&\"'!A:G\"), ROW(D7), COLUMN(D7))=0,\n      INDEX(INDIRECT(\"'\"&$B$1&\"'!A:G\"), ROW(D7), COLUMN(D7))=\"\"\n   ),\n   \"\",\n   INDEX(INDIRECT(\"'\"&$B$1&\"'!A:G\"), ROW(D7), COLUMN(D7))\n),\n\"\")","v":"Number"},{"$f":"IFERROR(\n   IF(OR(\n      INDEX(INDIRECT(\"'\"&$B$1&\"'!A:G\"), ROW(E7), COLUMN(E7))=0,\n      INDEX(INDIRECT(\"'\"&$B$1&\"'!A:G\"), ROW(E7), COLUMN(E7))=\"\"\n   ),\n   \"\",\n   INDEX(INDIRECT(\"'\"&$B$1&\"'!A:G\"), ROW(E7), COLUMN(E7))\n),\n\"\")","v":"Absolute number "},{"$f":"IFERROR(\n   IF(OR(\n      INDEX(INDIRECT(\"'\"&$B$1&\"'!A:G\"), ROW(F7), COLUMN(F7))=0,\n      INDEX(INDIRECT(\"'\"&$B$1&\"'!A:G\"), ROW(F7), COLUMN(F7))=\"\"\n   ),\n   \"\",\n   INDEX(INDIRECT(\"'\"&$B$1&\"'!A:G\"), ROW(F7), COLUMN(F7))\n),\n\"\")","v":"https://ec.europa.eu/eurostat/databrowser/view/DEMO_R_PJANGROUP/default/table?lang=en"},{"$f":"IFERROR(\n   IF(OR(\n      INDEX(INDIRECT(\"'\"&$B$1&\"'!A:G\"), ROW(G7), COLUMN(G7))=0,\n      INDEX(INDIRECT(\"'\"&$B$1&\"'!A:G\"), ROW(G7), COLUMN(G7))=\"\"\n   ),\n   \"\",\n   INDEX(INDIRECT(\"'\"&$B$1&\"'!A:G\"), ROW(G7), COLUMN(G7))\n),\n\"\")","v":"Regional data are easily accessible through the link provided at the Source column"}]
[{"$f":"IFERROR(\n   IF(OR(\n      INDEX(INDIRECT(\"'\"&$B$1&\"'!A:G\"), ROW(A8), COLUMN(A8))=0,\n      INDEX(INDIRECT(\"'\"&$B$1&\"'!A:G\"), ROW(A8), COLUMN(A8))=\"\"\n   ),\n   \"\",\n   INDEX(INDIRECT(\"'\"&$B$1&\"'!A:G\"), ROW(A8), COLUMN(A8))\n),\n\"\")","v":"Society"},{"$f":"IFERROR(\n   IF(OR(\n      INDEX(INDIRECT(\"'\"&$B$1&\"'!A:G\"), ROW(B8), COLUMN(B8))=0,\n      INDEX(INDIRECT(\"'\"&$B$1&\"'!A:G\"), ROW(B8), COLUMN(B8))=\"\"\n   ),\n   \"\",\n   INDEX(INDIRECT(\"'\"&$B$1&\"'!A:G\"), ROW(B8), COLUMN(B8))\n),\n\"\")","v":"Agriculture"},{"$f":"IFERROR(\n   IF(OR(\n      INDEX(INDIRECT(\"'\"&$B$1&\"'!A:G\"), ROW(C8), COLUMN(C8))=0,\n      INDEX(INDIRECT(\"'\"&$B$1&\"'!A:G\"), ROW(C8), COLUMN(C8))=\"\"\n   ),\n   \"\",\n   INDEX(INDIRECT(\"'\"&$B$1&\"'!A:G\"), ROW(C8), COLUMN(C8))\n),\n\"\")","v":"Ha of land set aside for food growing (or percentage of the total land used)"},{"$f":"IFERROR(\n   IF(OR(\n      INDEX(INDIRECT(\"'\"&$B$1&\"'!A:G\"), ROW(D8), COLUMN(D8))=0,\n      INDEX(INDIRECT(\"'\"&$B$1&\"'!A:G\"), ROW(D8), COLUMN(D8))=\"\"\n   ),\n   \"\",\n   INDEX(INDIRECT(\"'\"&$B$1&\"'!A:G\"), ROW(D8), COLUMN(D8))\n),\n\"\")","v":"%"},{"$f":"IFERROR(\n   IF(OR(\n      INDEX(INDIRECT(\"'\"&$B$1&\"'!A:G\"), ROW(E8), COLUMN(E8))=0,\n      INDEX(INDIRECT(\"'\"&$B$1&\"'!A:G\"), ROW(E8), COLUMN(E8))=\"\"\n   ),\n   \"\",\n   INDEX(INDIRECT(\"'\"&$B$1&\"'!A:G\"), ROW(E8), COLUMN(E8))\n),\n\"\")","v":""},{"$f":"IFERROR(\n   IF(OR(\n      INDEX(INDIRECT(\"'\"&$B$1&\"'!A:G\"), ROW(F8), COLUMN(F8))=0,\n      INDEX(INDIRECT(\"'\"&$B$1&\"'!A:G\"), ROW(F8), COLUMN(F8))=\"\"\n   ),\n   \"\",\n   INDEX(INDIRECT(\"'\"&$B$1&\"'!A:G\"), ROW(F8), COLUMN(F8))\n),\n\"\")","v":""},{"$f":"IFERROR(\n   IF(OR(\n      INDEX(INDIRECT(\"'\"&$B$1&\"'!A:G\"), ROW(G8), COLUMN(G8))=0,\n      INDEX(INDIRECT(\"'\"&$B$1&\"'!A:G\"), ROW(G8), COLUMN(G8))=\"\"\n   ),\n   \"\",\n   INDEX(INDIRECT(\"'\"&$B$1&\"'!A:G\"), ROW(G8), COLUMN(G8))\n),\n\"\")","v":"Regional data are not available. Consider exchanges with agricultural stakeholders e.g. farmers association"}]
[{"$f":"IFERROR(\n   IF(OR(\n      INDEX(INDIRECT(\"'\"&$B$1&\"'!A:G\"), ROW(A9), COLUMN(A9))=0,\n      INDEX(INDIRECT(\"'\"&$B$1&\"'!A:G\"), ROW(A9), COLUMN(A9))=\"\"\n   ),\n   \"\",\n   INDEX(INDIRECT(\"'\"&$B$1&\"'!A:G\"), ROW(A9), COLUMN(A9))\n),\n\"\")","v":"Society"},{"$f":"IFERROR(\n   IF(OR(\n      INDEX(INDIRECT(\"'\"&$B$1&\"'!A:G\"), ROW(B9), COLUMN(B9))=0,\n      INDEX(INDIRECT(\"'\"&$B$1&\"'!A:G\"), ROW(B9), COLUMN(B9))=\"\"\n   ),\n   \"\",\n   INDEX(INDIRECT(\"'\"&$B$1&\"'!A:G\"), ROW(B9), COLUMN(B9))\n),\n\"\")","v":"All sectors"},{"$f":"IFERROR(\n   IF(OR(\n      INDEX(INDIRECT(\"'\"&$B$1&\"'!A:G\"), ROW(C9), COLUMN(C9))=0,\n      INDEX(INDIRECT(\"'\"&$B$1&\"'!A:G\"), ROW(C9), COLUMN(C9))=\"\"\n   ),\n   \"\",\n   INDEX(INDIRECT(\"'\"&$B$1&\"'!A:G\"), ROW(C9), COLUMN(C9))\n),\n\"\")","v":"Population growth"},{"$f":"IFERROR(\n   IF(OR(\n      INDEX(INDIRECT(\"'\"&$B$1&\"'!A:G\"), ROW(D9), COLUMN(D9))=0,\n      INDEX(INDIRECT(\"'\"&$B$1&\"'!A:G\"), ROW(D9), COLUMN(D9))=\"\"\n   ),\n   \"\",\n   INDEX(INDIRECT(\"'\"&$B$1&\"'!A:G\"), ROW(D9), COLUMN(D9))\n),\n\"\")","v":"%"},{"$f":"IFERROR(\n   IF(OR(\n      INDEX(INDIRECT(\"'\"&$B$1&\"'!A:G\"), ROW(E9), COLUMN(E9))=0,\n      INDEX(INDIRECT(\"'\"&$B$1&\"'!A:G\"), ROW(E9), COLUMN(E9))=\"\"\n   ),\n   \"\",\n   INDEX(INDIRECT(\"'\"&$B$1&\"'!A:G\"), ROW(E9), COLUMN(E9))\n),\n\"\")","v":"% Year"},{"$f":"IFERROR(\n   IF(OR(\n      INDEX(INDIRECT(\"'\"&$B$1&\"'!A:G\"), ROW(F9), COLUMN(F9))=0,\n      INDEX(INDIRECT(\"'\"&$B$1&\"'!A:G\"), ROW(F9), COLUMN(F9))=\"\"\n   ),\n   \"\",\n   INDEX(INDIRECT(\"'\"&$B$1&\"'!A:G\"), ROW(F9), COLUMN(F9))\n),\n\"\")","v":""},{"$f":"IFERROR(\n   IF(OR(\n      INDEX(INDIRECT(\"'\"&$B$1&\"'!A:G\"), ROW(G9), COLUMN(G9))=0,\n      INDEX(INDIRECT(\"'\"&$B$1&\"'!A:G\"), ROW(G9), COLUMN(G9))=\"\"\n   ),\n   \"\",\n   INDEX(INDIRECT(\"'\"&$B$1&\"'!A:G\"), ROW(G9), COLUMN(G9))\n),\n\"\")","v":"National statistics should provide it at the regional level"}]
[{"$f":"IFERROR(\n   IF(OR(\n      INDEX(INDIRECT(\"'\"&$B$1&\"'!A:G\"), ROW(A10), COLUMN(A10))=0,\n      INDEX(INDIRECT(\"'\"&$B$1&\"'!A:G\"), ROW(A10), COLUMN(A10))=\"\"\n   ),\n   \"\",\n   INDEX(INDIRECT(\"'\"&$B$1&\"'!A:G\"), ROW(A10), COLUMN(A10))\n),\n\"\")","v":"Society"},{"$f":"IFERROR(\n   IF(OR(\n      INDEX(INDIRECT(\"'\"&$B$1&\"'!A:G\"), ROW(B10), COLUMN(B10))=0,\n      INDEX(INDIRECT(\"'\"&$B$1&\"'!A:G\"), ROW(B10), COLUMN(B10))=\"\"\n   ),\n   \"\",\n   INDEX(INDIRECT(\"'\"&$B$1&\"'!A:G\"), ROW(B10), COLUMN(B10))\n),\n\"\")","v":"All sectors"},{"$f":"IFERROR(\n   IF(OR(\n      INDEX(INDIRECT(\"'\"&$B$1&\"'!A:G\"), ROW(C10), COLUMN(C10))=0,\n      INDEX(INDIRECT(\"'\"&$B$1&\"'!A:G\"), ROW(C10), COLUMN(C10))=\"\"\n   ),\n   \"\",\n   INDEX(INDIRECT(\"'\"&$B$1&\"'!A:G\"), ROW(C10), COLUMN(C10))\n),\n\"\")","v":"Employment in total bioeconomy sector as % of total employment in region"},{"$f":"IFERROR(\n   IF(OR(\n      INDEX(INDIRECT(\"'\"&$B$1&\"'!A:G\"), ROW(D10), COLUMN(D10))=0,\n      INDEX(INDIRECT(\"'\"&$B$1&\"'!A:G\"), ROW(D10), COLUMN(D10))=\"\"\n   ),\n   \"\",\n   INDEX(INDIRECT(\"'\"&$B$1&\"'!A:G\"), ROW(D10), COLUMN(D10))\n),\n\"\")","v":"%"},{"$f":"IFERROR(\n   IF(OR(\n      INDEX(INDIRECT(\"'\"&$B$1&\"'!A:G\"), ROW(E10), COLUMN(E10))=0,\n      INDEX(INDIRECT(\"'\"&$B$1&\"'!A:G\"), ROW(E10), COLUMN(E10))=\"\"\n   ),\n   \"\",\n   INDEX(INDIRECT(\"'\"&$B$1&\"'!A:G\"), ROW(E10), COLUMN(E10))\n),\n\"\")","v":""},{"$f":"IFERROR(\n   IF(OR(\n      INDEX(INDIRECT(\"'\"&$B$1&\"'!A:G\"), ROW(F10), COLUMN(F10))=0,\n      INDEX(INDIRECT(\"'\"&$B$1&\"'!A:G\"), ROW(F10), COLUMN(F10))=\"\"\n   ),\n   \"\",\n   INDEX(INDIRECT(\"'\"&$B$1&\"'!A:G\"), ROW(F10), COLUMN(F10))\n),\n\"\")","v":"https://datam.jrc.ec.europa.eu/datam/mashup/BIOECONOMICS/"},{"$f":"IFERROR(\n   IF(OR(\n      INDEX(INDIRECT(\"'\"&$B$1&\"'!A:G\"), ROW(G10), COLUMN(G10))=0,\n      INDEX(INDIRECT(\"'\"&$B$1&\"'!A:G\"), ROW(G10), COLUMN(G10))=\"\"\n   ),\n   \"\",\n   INDEX(INDIRECT(\"'\"&$B$1&\"'!A:G\"), ROW(G10), COLUMN(G10))\n),\n\"\")","v":"if data are not available by regional statistics for each sector on employment, exchange with key stakeholders such a public regional employment offices,  development agencies or chambers of commerce"}]
[{"$f":"IFERROR(\n   IF(OR(\n      INDEX(INDIRECT(\"'\"&$B$1&\"'!A:G\"), ROW(A11), COLUMN(A11))=0,\n      INDEX(INDIRECT(\"'\"&$B$1&\"'!A:G\"), ROW(A11), COLUMN(A11))=\"\"\n   ),\n   \"\",\n   INDEX(INDIRECT(\"'\"&$B$1&\"'!A:G\"), ROW(A11), COLUMN(A11))\n),\n\"\")","v":"Society"},{"$f":"IFERROR(\n   IF(OR(\n      INDEX(INDIRECT(\"'\"&$B$1&\"'!A:G\"), ROW(B11), COLUMN(B11))=0,\n      INDEX(INDIRECT(\"'\"&$B$1&\"'!A:G\"), ROW(B11), COLUMN(B11))=\"\"\n   ),\n   \"\",\n   INDEX(INDIRECT(\"'\"&$B$1&\"'!A:G\"), ROW(B11), COLUMN(B11))\n),\n\"\")","v":"All sectors"},{"$f":"IFERROR(\n   IF(OR(\n      INDEX(INDIRECT(\"'\"&$B$1&\"'!A:G\"), ROW(C11), COLUMN(C11))=0,\n      INDEX(INDIRECT(\"'\"&$B$1&\"'!A:G\"), ROW(C11), COLUMN(C11))=\"\"\n   ),\n   \"\",\n   INDEX(INDIRECT(\"'\"&$B$1&\"'!A:G\"), ROW(C11), COLUMN(C11))\n),\n\"\")","v":"Presence of a RIS3 with bioeconomy focus"},{"$f":"IFERROR(\n   IF(OR(\n      INDEX(INDIRECT(\"'\"&$B$1&\"'!A:G\"), ROW(D11), COLUMN(D11))=0,\n      INDEX(INDIRECT(\"'\"&$B$1&\"'!A:G\"), ROW(D11), COLUMN(D11))=\"\"\n   ),\n   \"\",\n   INDEX(INDIRECT(\"'\"&$B$1&\"'!A:G\"), ROW(D11), COLUMN(D11))\n),\n\"\")","v":"Yes/No"},{"$f":"IFERROR(\n   IF(OR(\n      INDEX(INDIRECT(\"'\"&$B$1&\"'!A:G\"), ROW(E11), COLUMN(E11))=0,\n      INDEX(INDIRECT(\"'\"&$B$1&\"'!A:G\"), ROW(E11), COLUMN(E11))=\"\"\n   ),\n   \"\",\n   INDEX(INDIRECT(\"'\"&$B$1&\"'!A:G\"), ROW(E11), COLUMN(E11))\n),\n\"\")","v":"Research and Innovation Strategy for Smart Specialisation (RIS 3)"},{"$f":"IFERROR(\n   IF(OR(\n      INDEX(INDIRECT(\"'\"&$B$1&\"'!A:G\"), ROW(F11), COLUMN(F11))=0,\n      INDEX(INDIRECT(\"'\"&$B$1&\"'!A:G\"), ROW(F11), COLUMN(F11))=\"\"\n   ),\n   \"\",\n   INDEX(INDIRECT(\"'\"&$B$1&\"'!A:G\"), ROW(F11), COLUMN(F11))\n),\n\"\")","v":""},{"$f":"IFERROR(\n   IF(OR(\n      INDEX(INDIRECT(\"'\"&$B$1&\"'!A:G\"), ROW(G11), COLUMN(G11))=0,\n      INDEX(INDIRECT(\"'\"&$B$1&\"'!A:G\"), ROW(G11), COLUMN(G11))=\"\"\n   ),\n   \"\",\n   INDEX(INDIRECT(\"'\"&$B$1&\"'!A:G\"), ROW(G11), COLUMN(G11))\n),\n\"\")","v":"An RIS 3 strategy principally involves measures related to innovation that are also linked to bioeconomy deployment "}]
[{"$f":"IFERROR(\n   IF(OR(\n      INDEX(INDIRECT(\"'\"&$B$1&\"'!A:G\"), ROW(A12), COLUMN(A12))=0,\n      INDEX(INDIRECT(\"'\"&$B$1&\"'!A:G\"), ROW(A12), COLUMN(A12))=\"\"\n   ),\n   \"\",\n   INDEX(INDIRECT(\"'\"&$B$1&\"'!A:G\"), ROW(A12), COLUMN(A12))\n),\n\"\")","v":"Society"},{"$f":"IFERROR(\n   IF(OR(\n      INDEX(INDIRECT(\"'\"&$B$1&\"'!A:G\"), ROW(B12), COLUMN(B12))=0,\n      INDEX(INDIRECT(\"'\"&$B$1&\"'!A:G\"), ROW(B12), COLUMN(B12))=\"\"\n   ),\n   \"\",\n   INDEX(INDIRECT(\"'\"&$B$1&\"'!A:G\"), ROW(B12), COLUMN(B12))\n),\n\"\")","v":"All sectors"},{"$f":"IFERROR(\n   IF(OR(\n      INDEX(INDIRECT(\"'\"&$B$1&\"'!A:G\"), ROW(C12), COLUMN(C12))=0,\n      INDEX(INDIRECT(\"'\"&$B$1&\"'!A:G\"), ROW(C12), COLUMN(C12))=\"\"\n   ),\n   \"\",\n   INDEX(INDIRECT(\"'\"&$B$1&\"'!A:G\"), ROW(C12), COLUMN(C12))\n),\n\"\")","v":"Presence of a cluster organisation which coordinates, manages and facilitates the bio cluster"},{"$f":"IFERROR(\n   IF(OR(\n      INDEX(INDIRECT(\"'\"&$B$1&\"'!A:G\"), ROW(D12), COLUMN(D12))=0,\n      INDEX(INDIRECT(\"'\"&$B$1&\"'!A:G\"), ROW(D12), COLUMN(D12))=\"\"\n   ),\n   \"\",\n   INDEX(INDIRECT(\"'\"&$B$1&\"'!A:G\"), ROW(D12), COLUMN(D12))\n),\n\"\")","v":"Yes/No"},{"$f":"IFERROR(\n   IF(OR(\n      INDEX(INDIRECT(\"'\"&$B$1&\"'!A:G\"), ROW(E12), COLUMN(E12))=0,\n      INDEX(INDIRECT(\"'\"&$B$1&\"'!A:G\"), ROW(E12), COLUMN(E12))=\"\"\n   ),\n   \"\",\n   INDEX(INDIRECT(\"'\"&$B$1&\"'!A:G\"), ROW(E12), COLUMN(E12))\n),\n\"\")","v":""},{"$f":"IFERROR(\n   IF(OR(\n      INDEX(INDIRECT(\"'\"&$B$1&\"'!A:G\"), ROW(F12), COLUMN(F12))=0,\n      INDEX(INDIRECT(\"'\"&$B$1&\"'!A:G\"), ROW(F12), COLUMN(F12))=\"\"\n   ),\n   \"\",\n   INDEX(INDIRECT(\"'\"&$B$1&\"'!A:G\"), ROW(F12), COLUMN(F12))\n),\n\"\")","v":""},{"$f":"IFERROR(\n   IF(OR(\n      INDEX(INDIRECT(\"'\"&$B$1&\"'!A:G\"), ROW(G12), COLUMN(G12))=0,\n      INDEX(INDIRECT(\"'\"&$B$1&\"'!A:G\"), ROW(G12), COLUMN(G12))=\"\"\n   ),\n   \"\",\n   INDEX(INDIRECT(\"'\"&$B$1&\"'!A:G\"), ROW(G12), COLUMN(G12))\n),\n\"\")","v":"Researchable at the regional level"}]
[{"$f":"IFERROR(\n   IF(OR(\n      INDEX(INDIRECT(\"'\"&$B$1&\"'!A:G\"), ROW(A13), COLUMN(A13))=0,\n      INDEX(INDIRECT(\"'\"&$B$1&\"'!A:G\"), ROW(A13), COLUMN(A13))=\"\"\n   ),\n   \"\",\n   INDEX(INDIRECT(\"'\"&$B$1&\"'!A:G\"), ROW(A13), COLUMN(A13))\n),\n\"\")","v":"Environment"},{"$f":"IFERROR(\n   IF(OR(\n      INDEX(INDIRECT(\"'\"&$B$1&\"'!A:G\"), ROW(B13), COLUMN(B13))=0,\n      INDEX(INDIRECT(\"'\"&$B$1&\"'!A:G\"), ROW(B13), COLUMN(B13))=\"\"\n   ),\n   \"\",\n   INDEX(INDIRECT(\"'\"&$B$1&\"'!A:G\"), ROW(B13), COLUMN(B13))\n),\n\"\")","v":"Forestry"},{"$f":"IFERROR(\n   IF(OR(\n      INDEX(INDIRECT(\"'\"&$B$1&\"'!A:G\"), ROW(C13), COLUMN(C13))=0,\n      INDEX(INDIRECT(\"'\"&$B$1&\"'!A:G\"), ROW(C13), COLUMN(C13))=\"\"\n   ),\n   \"\",\n   INDEX(INDIRECT(\"'\"&$B$1&\"'!A:G\"), ROW(C13), COLUMN(C13))\n),\n\"\")","v":"Change in forest area"},{"$f":"IFERROR(\n   IF(OR(\n      INDEX(INDIRECT(\"'\"&$B$1&\"'!A:G\"), ROW(D13), COLUMN(D13))=0,\n      INDEX(INDIRECT(\"'\"&$B$1&\"'!A:G\"), ROW(D13), COLUMN(D13))=\"\"\n   ),\n   \"\",\n   INDEX(INDIRECT(\"'\"&$B$1&\"'!A:G\"), ROW(D13), COLUMN(D13))\n),\n\"\")","v":"%"},{"$f":"IFERROR(\n   IF(OR(\n      INDEX(INDIRECT(\"'\"&$B$1&\"'!A:G\"), ROW(E13), COLUMN(E13))=0,\n      INDEX(INDIRECT(\"'\"&$B$1&\"'!A:G\"), ROW(E13), COLUMN(E13))=\"\"\n   ),\n   \"\",\n   INDEX(INDIRECT(\"'\"&$B$1&\"'!A:G\"), ROW(E13), COLUMN(E13))\n),\n\"\")","v":""},{"$f":"IFERROR(\n   IF(OR(\n      INDEX(INDIRECT(\"'\"&$B$1&\"'!A:G\"), ROW(F13), COLUMN(F13))=0,\n      INDEX(INDIRECT(\"'\"&$B$1&\"'!A:G\"), ROW(F13), COLUMN(F13))=\"\"\n   ),\n   \"\",\n   INDEX(INDIRECT(\"'\"&$B$1&\"'!A:G\"), ROW(F13), COLUMN(F13))\n),\n\"\")","v":"https://ec.europa.eu/eurostat/databrowser/view/lan_lcv_ovw/default/table?lang=en"},{"$f":"IFERROR(\n   IF(OR(\n      INDEX(INDIRECT(\"'\"&$B$1&\"'!A:G\"), ROW(G13), COLUMN(G13))=0,\n      INDEX(INDIRECT(\"'\"&$B$1&\"'!A:G\"), ROW(G13), COLUMN(G13))=\"\"\n   ),\n   \"\",\n   INDEX(INDIRECT(\"'\"&$B$1&\"'!A:G\"), ROW(G13), COLUMN(G13))\n),\n\"\")","v":"if data are not available by regional statistics, exchange with key stakeholders, such as regional forest agencies and regional research institutions"}]
[{"$f":"IFERROR(\n   IF(OR(\n      INDEX(INDIRECT(\"'\"&$B$1&\"'!A:G\"), ROW(A14), COLUMN(A14))=0,\n      INDEX(INDIRECT(\"'\"&$B$1&\"'!A:G\"), ROW(A14), COLUMN(A14))=\"\"\n   ),\n   \"\",\n   INDEX(INDIRECT(\"'\"&$B$1&\"'!A:G\"), ROW(A14), COLUMN(A14))\n),\n\"\")","v":"Environment"},{"$f":"IFERROR(\n   IF(OR(\n      INDEX(INDIRECT(\"'\"&$B$1&\"'!A:G\"), ROW(B14), COLUMN(B14))=0,\n      INDEX(INDIRECT(\"'\"&$B$1&\"'!A:G\"), ROW(B14), COLUMN(B14))=\"\"\n   ),\n   \"\",\n   INDEX(INDIRECT(\"'\"&$B$1&\"'!A:G\"), ROW(B14), COLUMN(B14))\n),\n\"\")","v":"Agriculture/Forestry"},{"$f":"IFERROR(\n   IF(OR(\n      INDEX(INDIRECT(\"'\"&$B$1&\"'!A:G\"), ROW(C14), COLUMN(C14))=0,\n      INDEX(INDIRECT(\"'\"&$B$1&\"'!A:G\"), ROW(C14), COLUMN(C14))=\"\"\n   ),\n   \"\",\n   INDEX(INDIRECT(\"'\"&$B$1&\"'!A:G\"), ROW(C14), COLUMN(C14))\n),\n\"\")","v":"Land cover"},{"$f":"IFERROR(\n   IF(OR(\n      INDEX(INDIRECT(\"'\"&$B$1&\"'!A:G\"), ROW(D14), COLUMN(D14))=0,\n      INDEX(INDIRECT(\"'\"&$B$1&\"'!A:G\"), ROW(D14), COLUMN(D14))=\"\"\n   ),\n   \"\",\n   INDEX(INDIRECT(\"'\"&$B$1&\"'!A:G\"), ROW(D14), COLUMN(D14))\n),\n\"\")","v":"%"},{"$f":"IFERROR(\n   IF(OR(\n      INDEX(INDIRECT(\"'\"&$B$1&\"'!A:G\"), ROW(E14), COLUMN(E14))=0,\n      INDEX(INDIRECT(\"'\"&$B$1&\"'!A:G\"), ROW(E14), COLUMN(E14))=\"\"\n   ),\n   \"\",\n   INDEX(INDIRECT(\"'\"&$B$1&\"'!A:G\"), ROW(E14), COLUMN(E14))\n),\n\"\")","v":"Sub-indicators (Cropland, Woodland, Shrubland, Grassland, Water, Wetland)"},{"$f":"IFERROR(\n   IF(OR(\n      INDEX(INDIRECT(\"'\"&$B$1&\"'!A:G\"), ROW(F14), COLUMN(F14))=0,\n      INDEX(INDIRECT(\"'\"&$B$1&\"'!A:G\"), ROW(F14), COLUMN(F14))=\"\"\n   ),\n   \"\",\n   INDEX(INDIRECT(\"'\"&$B$1&\"'!A:G\"), ROW(F14), COLUMN(F14))\n),\n\"\")","v":"\thttps://ec.europa.eu/eurostat/databrowser/view/lan_lcv_ovw/default/table?lang=en&category=lan\n"},{"$f":"IFERROR(\n   IF(OR(\n      INDEX(INDIRECT(\"'\"&$B$1&\"'!A:G\"), ROW(G14), COLUMN(G14))=0,\n      INDEX(INDIRECT(\"'\"&$B$1&\"'!A:G\"), ROW(G14), COLUMN(G14))=\"\"\n   ),\n   \"\",\n   INDEX(INDIRECT(\"'\"&$B$1&\"'!A:G\"), ROW(G14), COLUMN(G14))\n),\n\"\")","v":"Very important indicator to characterise a bioeconomy"}]
[{"$f":"IFERROR(\n   IF(OR(\n      INDEX(INDIRECT(\"'\"&$B$1&\"'!A:G\"), ROW(A15), COLUMN(A15))=0,\n      INDEX(INDIRECT(\"'\"&$B$1&\"'!A:G\"), ROW(A15), COLUMN(A15))=\"\"\n   ),\n   \"\",\n   INDEX(INDIRECT(\"'\"&$B$1&\"'!A:G\"), ROW(A15), COLUMN(A15))\n),\n\"\")","v":"Environment"},{"$f":"IFERROR(\n   IF(OR(\n      INDEX(INDIRECT(\"'\"&$B$1&\"'!A:G\"), ROW(B15), COLUMN(B15))=0,\n      INDEX(INDIRECT(\"'\"&$B$1&\"'!A:G\"), ROW(B15), COLUMN(B15))=\"\"\n   ),\n   \"\",\n   INDEX(INDIRECT(\"'\"&$B$1&\"'!A:G\"), ROW(B15), COLUMN(B15))\n),\n\"\")","v":"All sectors"},{"$f":"IFERROR(\n   IF(OR(\n      INDEX(INDIRECT(\"'\"&$B$1&\"'!A:G\"), ROW(C15), COLUMN(C15))=0,\n      INDEX(INDIRECT(\"'\"&$B$1&\"'!A:G\"), ROW(C15), COLUMN(C15))=\"\"\n   ),\n   \"\",\n   INDEX(INDIRECT(\"'\"&$B$1&\"'!A:G\"), ROW(C15), COLUMN(C15))\n),\n\"\")","v":"Total GHG emissions"},{"$f":"IFERROR(\n   IF(OR(\n      INDEX(INDIRECT(\"'\"&$B$1&\"'!A:G\"), ROW(D15), COLUMN(D15))=0,\n      INDEX(INDIRECT(\"'\"&$B$1&\"'!A:G\"), ROW(D15), COLUMN(D15))=\"\"\n   ),\n   \"\",\n   INDEX(INDIRECT(\"'\"&$B$1&\"'!A:G\"), ROW(D15), COLUMN(D15))\n),\n\"\")","v":"kilotonnes CO2 equivalences"},{"$f":"IFERROR(\n   IF(OR(\n      INDEX(INDIRECT(\"'\"&$B$1&\"'!A:G\"), ROW(E15), COLUMN(E15))=0,\n      INDEX(INDIRECT(\"'\"&$B$1&\"'!A:G\"), ROW(E15), COLUMN(E15))=\"\"\n   ),\n   \"\",\n   INDEX(INDIRECT(\"'\"&$B$1&\"'!A:G\"), ROW(E15), COLUMN(E15))\n),\n\"\")","v":""},{"$f":"IFERROR(\n   IF(OR(\n      INDEX(INDIRECT(\"'\"&$B$1&\"'!A:G\"), ROW(F15), COLUMN(F15))=0,\n      INDEX(INDIRECT(\"'\"&$B$1&\"'!A:G\"), ROW(F15), COLUMN(F15))=\"\"\n   ),\n   \"\",\n   INDEX(INDIRECT(\"'\"&$B$1&\"'!A:G\"), ROW(F15), COLUMN(F15))\n),\n\"\")","v":"https://edgar.jrc.ec.europa.eu/dataset_ghg70"},{"$f":"IFERROR(\n   IF(OR(\n      INDEX(INDIRECT(\"'\"&$B$1&\"'!A:G\"), ROW(G15), COLUMN(G15))=0,\n      INDEX(INDIRECT(\"'\"&$B$1&\"'!A:G\"), ROW(G15), COLUMN(G15))=\"\"\n   ),\n   \"\",\n   INDEX(INDIRECT(\"'\"&$B$1&\"'!A:G\"), ROW(G15), COLUMN(G15))\n),\n\"\")","v":"Critical for monitoring your carbon footprint. It is desirable a reduction through time, for all sectors"}]
[{"$f":"IFERROR(\n   IF(OR(\n      INDEX(INDIRECT(\"'\"&$B$1&\"'!A:G\"), ROW(A16), COLUMN(A16))=0,\n      INDEX(INDIRECT(\"'\"&$B$1&\"'!A:G\"), ROW(A16), COLUMN(A16))=\"\"\n   ),\n   \"\",\n   INDEX(INDIRECT(\"'\"&$B$1&\"'!A:G\"), ROW(A16), COLUMN(A16))\n),\n\"\")","v":"Environment"},{"$f":"IFERROR(\n   IF(OR(\n      INDEX(INDIRECT(\"'\"&$B$1&\"'!A:G\"), ROW(B16), COLUMN(B16))=0,\n      INDEX(INDIRECT(\"'\"&$B$1&\"'!A:G\"), ROW(B16), COLUMN(B16))=\"\"\n   ),\n   \"\",\n   INDEX(INDIRECT(\"'\"&$B$1&\"'!A:G\"), ROW(B16), COLUMN(B16))\n),\n\"\")","v":"Agriculture"},{"$f":"IFERROR(\n   IF(OR(\n      INDEX(INDIRECT(\"'\"&$B$1&\"'!A:G\"), ROW(C16), COLUMN(C16))=0,\n      INDEX(INDIRECT(\"'\"&$B$1&\"'!A:G\"), ROW(C16), COLUMN(C16))=\"\"\n   ),\n   \"\",\n   INDEX(INDIRECT(\"'\"&$B$1&\"'!A:G\"), ROW(C16), COLUMN(C16))\n),\n\"\")","v":"Utilised agricultural area (UAA) "},{"$f":"IFERROR(\n   IF(OR(\n      INDEX(INDIRECT(\"'\"&$B$1&\"'!A:G\"), ROW(D16), COLUMN(D16))=0,\n      INDEX(INDIRECT(\"'\"&$B$1&\"'!A:G\"), ROW(D16), COLUMN(D16))=\"\"\n   ),\n   \"\",\n   INDEX(INDIRECT(\"'\"&$B$1&\"'!A:G\"), ROW(D16), COLUMN(D16))\n),\n\"\")","v":"Hectares"},{"$f":"IFERROR(\n   IF(OR(\n      INDEX(INDIRECT(\"'\"&$B$1&\"'!A:G\"), ROW(E16), COLUMN(E16))=0,\n      INDEX(INDIRECT(\"'\"&$B$1&\"'!A:G\"), ROW(E16), COLUMN(E16))=\"\"\n   ),\n   \"\",\n   INDEX(INDIRECT(\"'\"&$B$1&\"'!A:G\"), ROW(E16), COLUMN(E16))\n),\n\"\")","v":" Sub-indicators (Low-input, Medium-input, High-inputs farms)"},{"$f":"IFERROR(\n   IF(OR(\n      INDEX(INDIRECT(\"'\"&$B$1&\"'!A:G\"), ROW(F16), COLUMN(F16))=0,\n      INDEX(INDIRECT(\"'\"&$B$1&\"'!A:G\"), ROW(F16), COLUMN(F16))=\"\"\n   ),\n   \"\",\n   INDEX(INDIRECT(\"'\"&$B$1&\"'!A:G\"), ROW(F16), COLUMN(F16))\n),\n\"\")","v":"https://ec.europa.eu/eurostat/databrowser/view/aei_ps_inp/default/table?lang=en"},{"$f":"IFERROR(\n   IF(OR(\n      INDEX(INDIRECT(\"'\"&$B$1&\"'!A:G\"), ROW(G16), COLUMN(G16))=0,\n      INDEX(INDIRECT(\"'\"&$B$1&\"'!A:G\"), ROW(G16), COLUMN(G16))=\"\"\n   ),\n   \"\",\n   INDEX(INDIRECT(\"'\"&$B$1&\"'!A:G\"), ROW(G16), COLUMN(G16))\n),\n\"\")","v":"Regional data are easily accessible through the link provided at the Source column"}]
[{"$f":"IFERROR(\n   IF(OR(\n      INDEX(INDIRECT(\"'\"&$B$1&\"'!A:G\"), ROW(A17), COLUMN(A17))=0,\n      INDEX(INDIRECT(\"'\"&$B$1&\"'!A:G\"), ROW(A17), COLUMN(A17))=\"\"\n   ),\n   \"\",\n   INDEX(INDIRECT(\"'\"&$B$1&\"'!A:G\"), ROW(A17), COLUMN(A17))\n),\n\"\")","v":"Economy"},{"$f":"IFERROR(\n   IF(OR(\n      INDEX(INDIRECT(\"'\"&$B$1&\"'!A:G\"), ROW(B17), COLUMN(B17))=0,\n      INDEX(INDIRECT(\"'\"&$B$1&\"'!A:G\"), ROW(B17), COLUMN(B17))=\"\"\n   ),\n   \"\",\n   INDEX(INDIRECT(\"'\"&$B$1&\"'!A:G\"), ROW(B17), COLUMN(B17))\n),\n\"\")","v":"All sectors"},{"$f":"IFERROR(\n   IF(OR(\n      INDEX(INDIRECT(\"'\"&$B$1&\"'!A:G\"), ROW(C17), COLUMN(C17))=0,\n      INDEX(INDIRECT(\"'\"&$B$1&\"'!A:G\"), ROW(C17), COLUMN(C17))=\"\"\n   ),\n   \"\",\n   INDEX(INDIRECT(\"'\"&$B$1&\"'!A:G\"), ROW(C17), COLUMN(C17))\n),\n\"\")","v":"Population at-risk-of-poverty rate"},{"$f":"IFERROR(\n   IF(OR(\n      INDEX(INDIRECT(\"'\"&$B$1&\"'!A:G\"), ROW(D17), COLUMN(D17))=0,\n      INDEX(INDIRECT(\"'\"&$B$1&\"'!A:G\"), ROW(D17), COLUMN(D17))=\"\"\n   ),\n   \"\",\n   INDEX(INDIRECT(\"'\"&$B$1&\"'!A:G\"), ROW(D17), COLUMN(D17))\n),\n\"\")","v":"%"},{"$f":"IFERROR(\n   IF(OR(\n      INDEX(INDIRECT(\"'\"&$B$1&\"'!A:G\"), ROW(E17), COLUMN(E17))=0,\n      INDEX(INDIRECT(\"'\"&$B$1&\"'!A:G\"), ROW(E17), COLUMN(E17))=\"\"\n   ),\n   \"\",\n   INDEX(INDIRECT(\"'\"&$B$1&\"'!A:G\"), ROW(E17), COLUMN(E17))\n),\n\"\")","v":""},{"$f":"IFERROR(\n   IF(OR(\n      INDEX(INDIRECT(\"'\"&$B$1&\"'!A:G\"), ROW(F17), COLUMN(F17))=0,\n      INDEX(INDIRECT(\"'\"&$B$1&\"'!A:G\"), ROW(F17), COLUMN(F17))=\"\"\n   ),\n   \"\",\n   INDEX(INDIRECT(\"'\"&$B$1&\"'!A:G\"), ROW(F17), COLUMN(F17))\n),\n\"\")","v":"https://ec.europa.eu/eurostat/databrowser/view/tgs00103/default/table?lang=en"},{"$f":"IFERROR(\n   IF(OR(\n      INDEX(INDIRECT(\"'\"&$B$1&\"'!A:G\"), ROW(G17), COLUMN(G17))=0,\n      INDEX(INDIRECT(\"'\"&$B$1&\"'!A:G\"), ROW(G17), COLUMN(G17))=\"\"\n   ),\n   \"\",\n   INDEX(INDIRECT(\"'\"&$B$1&\"'!A:G\"), ROW(G17), COLUMN(G17))\n),\n\"\")","v":"Regional data are easily accessible through the link provided at the Source column"}]
[{"$f":"IFERROR(\n   IF(OR(\n      INDEX(INDIRECT(\"'\"&$B$1&\"'!A:G\"), ROW(A18), COLUMN(A18))=0,\n      INDEX(INDIRECT(\"'\"&$B$1&\"'!A:G\"), ROW(A18), COLUMN(A18))=\"\"\n   ),\n   \"\",\n   INDEX(INDIRECT(\"'\"&$B$1&\"'!A:G\"), ROW(A18), COLUMN(A18))\n),\n\"\")","v":"Economy"},{"$f":"IFERROR(\n   IF(OR(\n      INDEX(INDIRECT(\"'\"&$B$1&\"'!A:G\"), ROW(B18), COLUMN(B18))=0,\n      INDEX(INDIRECT(\"'\"&$B$1&\"'!A:G\"), ROW(B18), COLUMN(B18))=\"\"\n   ),\n   \"\",\n   INDEX(INDIRECT(\"'\"&$B$1&\"'!A:G\"), ROW(B18), COLUMN(B18))\n),\n\"\")","v":"All sectors"},{"$f":"IFERROR(\n   IF(OR(\n      INDEX(INDIRECT(\"'\"&$B$1&\"'!A:G\"), ROW(C18), COLUMN(C18))=0,\n      INDEX(INDIRECT(\"'\"&$B$1&\"'!A:G\"), ROW(C18), COLUMN(C18))=\"\"\n   ),\n   \"\",\n   INDEX(INDIRECT(\"'\"&$B$1&\"'!A:G\"), ROW(C18), COLUMN(C18))\n),\n\"\")","v":"Employment"},{"$f":"IFERROR(\n   IF(OR(\n      INDEX(INDIRECT(\"'\"&$B$1&\"'!A:G\"), ROW(D18), COLUMN(D18))=0,\n      INDEX(INDIRECT(\"'\"&$B$1&\"'!A:G\"), ROW(D18), COLUMN(D18))=\"\"\n   ),\n   \"\",\n   INDEX(INDIRECT(\"'\"&$B$1&\"'!A:G\"), ROW(D18), COLUMN(D18))\n),\n\"\")","v":"% & number"},{"$f":"IFERROR(\n   IF(OR(\n      INDEX(INDIRECT(\"'\"&$B$1&\"'!A:G\"), ROW(E18), COLUMN(E18))=0,\n      INDEX(INDIRECT(\"'\"&$B$1&\"'!A:G\"), ROW(E18), COLUMN(E18))=\"\"\n   ),\n   \"\",\n   INDEX(INDIRECT(\"'\"&$B$1&\"'!A:G\"), ROW(E18), COLUMN(E18))\n),\n\"\")","v":"Sectoral approach"},{"$f":"IFERROR(\n   IF(OR(\n      INDEX(INDIRECT(\"'\"&$B$1&\"'!A:G\"), ROW(F18), COLUMN(F18))=0,\n      INDEX(INDIRECT(\"'\"&$B$1&\"'!A:G\"), ROW(F18), COLUMN(F18))=\"\"\n   ),\n   \"\",\n   INDEX(INDIRECT(\"'\"&$B$1&\"'!A:G\"), ROW(F18), COLUMN(F18))\n),\n\"\")","v":"https://datam.jrc.ec.europa.eu/datam/mashup/BIO_REG_EU/index.html"},{"$f":"IFERROR(\n   IF(OR(\n      INDEX(INDIRECT(\"'\"&$B$1&\"'!A:G\"), ROW(G18), COLUMN(G18))=0,\n      INDEX(INDIRECT(\"'\"&$B$1&\"'!A:G\"), ROW(G18), COLUMN(G18))=\"\"\n   ),\n   \"\",\n   INDEX(INDIRECT(\"'\"&$B$1&\"'!A:G\"), ROW(G18), COLUMN(G18))\n),\n\"\")","v":"Regional data are easily accessible through the link provided at the Source column"}]
[{"$f":"IFERROR(\n   IF(OR(\n      INDEX(INDIRECT(\"'\"&$B$1&\"'!A:G\"), ROW(A19), COLUMN(A19))=0,\n      INDEX(INDIRECT(\"'\"&$B$1&\"'!A:G\"), ROW(A19), COLUMN(A19))=\"\"\n   ),\n   \"\",\n   INDEX(INDIRECT(\"'\"&$B$1&\"'!A:G\"), ROW(A19), COLUMN(A19))\n),\n\"\")","v":"Economy"},{"$f":"IFERROR(\n   IF(OR(\n      INDEX(INDIRECT(\"'\"&$B$1&\"'!A:G\"), ROW(B19), COLUMN(B19))=0,\n      INDEX(INDIRECT(\"'\"&$B$1&\"'!A:G\"), ROW(B19), COLUMN(B19))=\"\"\n   ),\n   \"\",\n   INDEX(INDIRECT(\"'\"&$B$1&\"'!A:G\"), ROW(B19), COLUMN(B19))\n),\n\"\")","v":"All sectors"},{"$f":"IFERROR(\n   IF(OR(\n      INDEX(INDIRECT(\"'\"&$B$1&\"'!A:G\"), ROW(C19), COLUMN(C19))=0,\n      INDEX(INDIRECT(\"'\"&$B$1&\"'!A:G\"), ROW(C19), COLUMN(C19))=\"\"\n   ),\n   \"\",\n   INDEX(INDIRECT(\"'\"&$B$1&\"'!A:G\"), ROW(C19), COLUMN(C19))\n),\n\"\")","v":"Employment rate"},{"$f":"IFERROR(\n   IF(OR(\n      INDEX(INDIRECT(\"'\"&$B$1&\"'!A:G\"), ROW(D19), COLUMN(D19))=0,\n      INDEX(INDIRECT(\"'\"&$B$1&\"'!A:G\"), ROW(D19), COLUMN(D19))=\"\"\n   ),\n   \"\",\n   INDEX(INDIRECT(\"'\"&$B$1&\"'!A:G\"), ROW(D19), COLUMN(D19))\n),\n\"\")","v":"%"},{"$f":"IFERROR(\n   IF(OR(\n      INDEX(INDIRECT(\"'\"&$B$1&\"'!A:G\"), ROW(E19), COLUMN(E19))=0,\n      INDEX(INDIRECT(\"'\"&$B$1&\"'!A:G\"), ROW(E19), COLUMN(E19))=\"\"\n   ),\n   \"\",\n   INDEX(INDIRECT(\"'\"&$B$1&\"'!A:G\"), ROW(E19), COLUMN(E19))\n),\n\"\")","v":"Employment rate/total -Population 15-64 "},{"$f":"IFERROR(\n   IF(OR(\n      INDEX(INDIRECT(\"'\"&$B$1&\"'!A:G\"), ROW(F19), COLUMN(F19))=0,\n      INDEX(INDIRECT(\"'\"&$B$1&\"'!A:G\"), ROW(F19), COLUMN(F19))=\"\"\n   ),\n   \"\",\n   INDEX(INDIRECT(\"'\"&$B$1&\"'!A:G\"), ROW(F19), COLUMN(F19))\n),\n\"\")","v":"https://ec.europa.eu/eurostat/databrowser/view/lfst_r_lfe2emprtn/default/table?lang=EN"},{"$f":"IFERROR(\n   IF(OR(\n      INDEX(INDIRECT(\"'\"&$B$1&\"'!A:G\"), ROW(G19), COLUMN(G19))=0,\n      INDEX(INDIRECT(\"'\"&$B$1&\"'!A:G\"), ROW(G19), COLUMN(G19))=\"\"\n   ),\n   \"\",\n   INDEX(INDIRECT(\"'\"&$B$1&\"'!A:G\"), ROW(G19), COLUMN(G19))\n),\n\"\")","v":"Regional data are easily accessible through the link provided at the Source column"}]
[{"$f":"IFERROR(\n   IF(OR(\n      INDEX(INDIRECT(\"'\"&$B$1&\"'!A:G\"), ROW(A20), COLUMN(A20))=0,\n      INDEX(INDIRECT(\"'\"&$B$1&\"'!A:G\"), ROW(A20), COLUMN(A20))=\"\"\n   ),\n   \"\",\n   INDEX(INDIRECT(\"'\"&$B$1&\"'!A:G\"), ROW(A20), COLUMN(A20))\n),\n\"\")","v":"Economy"},{"$f":"IFERROR(\n   IF(OR(\n      INDEX(INDIRECT(\"'\"&$B$1&\"'!A:G\"), ROW(B20), COLUMN(B20))=0,\n      INDEX(INDIRECT(\"'\"&$B$1&\"'!A:G\"), ROW(B20), COLUMN(B20))=\"\"\n   ),\n   \"\",\n   INDEX(INDIRECT(\"'\"&$B$1&\"'!A:G\"), ROW(B20), COLUMN(B20))\n),\n\"\")","v":"All sectors"},{"$f":"IFERROR(\n   IF(OR(\n      INDEX(INDIRECT(\"'\"&$B$1&\"'!A:G\"), ROW(C20), COLUMN(C20))=0,\n      INDEX(INDIRECT(\"'\"&$B$1&\"'!A:G\"), ROW(C20), COLUMN(C20))=\"\"\n   ),\n   \"\",\n   INDEX(INDIRECT(\"'\"&$B$1&\"'!A:G\"), ROW(C20), COLUMN(C20))\n),\n\"\")","v":"Gross fixed capital formation, in relation to GDP"},{"$f":"IFERROR(\n   IF(OR(\n      INDEX(INDIRECT(\"'\"&$B$1&\"'!A:G\"), ROW(D20), COLUMN(D20))=0,\n      INDEX(INDIRECT(\"'\"&$B$1&\"'!A:G\"), ROW(D20), COLUMN(D20))=\"\"\n   ),\n   \"\",\n   INDEX(INDIRECT(\"'\"&$B$1&\"'!A:G\"), ROW(D20), COLUMN(D20))\n),\n\"\")","v":"€"},{"$f":"IFERROR(\n   IF(OR(\n      INDEX(INDIRECT(\"'\"&$B$1&\"'!A:G\"), ROW(E20), COLUMN(E20))=0,\n      INDEX(INDIRECT(\"'\"&$B$1&\"'!A:G\"), ROW(E20), COLUMN(E20))=\"\"\n   ),\n   \"\",\n   INDEX(INDIRECT(\"'\"&$B$1&\"'!A:G\"), ROW(E20), COLUMN(E20))\n),\n\"\")","v":""},{"$f":"IFERROR(\n   IF(OR(\n      INDEX(INDIRECT(\"'\"&$B$1&\"'!A:G\"), ROW(F20), COLUMN(F20))=0,\n      INDEX(INDIRECT(\"'\"&$B$1&\"'!A:G\"), ROW(F20), COLUMN(F20))=\"\"\n   ),\n   \"\",\n   INDEX(INDIRECT(\"'\"&$B$1&\"'!A:G\"), ROW(F20), COLUMN(F20))\n),\n\"\")","v":"https://ec.europa.eu/eurostat/databrowser/view/nama_10r_2gfcf/default/table?lang=en&category=reg.reg_eco10.reg_eco10brch"},{"$f":"IFERROR(\n   IF(OR(\n      INDEX(INDIRECT(\"'\"&$B$1&\"'!A:G\"), ROW(G20), COLUMN(G20))=0,\n      INDEX(INDIRECT(\"'\"&$B$1&\"'!A:G\"), ROW(G20), COLUMN(G20))=\"\"\n   ),\n   \"\",\n   INDEX(INDIRECT(\"'\"&$B$1&\"'!A:G\"), ROW(G20), COLUMN(G20))\n),\n\"\")","v":"Regional data are easily accessible through the link provided at the Source column"}]
[{"$f":"IFERROR(\n   IF(OR(\n      INDEX(INDIRECT(\"'\"&$B$1&\"'!A:G\"), ROW(A21), COLUMN(A21))=0,\n      INDEX(INDIRECT(\"'\"&$B$1&\"'!A:G\"), ROW(A21), COLUMN(A21))=\"\"\n   ),\n   \"\",\n   INDEX(INDIRECT(\"'\"&$B$1&\"'!A:G\"), ROW(A21), COLUMN(A21))\n),\n\"\")","v":"Economy"},{"$f":"IFERROR(\n   IF(OR(\n      INDEX(INDIRECT(\"'\"&$B$1&\"'!A:G\"), ROW(B21), COLUMN(B21))=0,\n      INDEX(INDIRECT(\"'\"&$B$1&\"'!A:G\"), ROW(B21), COLUMN(B21))=\"\"\n   ),\n   \"\",\n   INDEX(INDIRECT(\"'\"&$B$1&\"'!A:G\"), ROW(B21), COLUMN(B21))\n),\n\"\")","v":"All sectors"},{"$f":"IFERROR(\n   IF(OR(\n      INDEX(INDIRECT(\"'\"&$B$1&\"'!A:G\"), ROW(C21), COLUMN(C21))=0,\n      INDEX(INDIRECT(\"'\"&$B$1&\"'!A:G\"), ROW(C21), COLUMN(C21))=\"\"\n   ),\n   \"\",\n   INDEX(INDIRECT(\"'\"&$B$1&\"'!A:G\"), ROW(C21), COLUMN(C21))\n),\n\"\")","v":"Household income"},{"$f":"IFERROR(\n   IF(OR(\n      INDEX(INDIRECT(\"'\"&$B$1&\"'!A:G\"), ROW(D21), COLUMN(D21))=0,\n      INDEX(INDIRECT(\"'\"&$B$1&\"'!A:G\"), ROW(D21), COLUMN(D21))=\"\"\n   ),\n   \"\",\n   INDEX(INDIRECT(\"'\"&$B$1&\"'!A:G\"), ROW(D21), COLUMN(D21))\n),\n\"\")","v":"€"},{"$f":"IFERROR(\n   IF(OR(\n      INDEX(INDIRECT(\"'\"&$B$1&\"'!A:G\"), ROW(E21), COLUMN(E21))=0,\n      INDEX(INDIRECT(\"'\"&$B$1&\"'!A:G\"), ROW(E21), COLUMN(E21))=\"\"\n   ),\n   \"\",\n   INDEX(INDIRECT(\"'\"&$B$1&\"'!A:G\"), ROW(E21), COLUMN(E21))\n),\n\"\")","v":"Million Euros"},{"$f":"IFERROR(\n   IF(OR(\n      INDEX(INDIRECT(\"'\"&$B$1&\"'!A:G\"), ROW(F21), COLUMN(F21))=0,\n      INDEX(INDIRECT(\"'\"&$B$1&\"'!A:G\"), ROW(F21), COLUMN(F21))=\"\"\n   ),\n   \"\",\n   INDEX(INDIRECT(\"'\"&$B$1&\"'!A:G\"), ROW(F21), COLUMN(F21))\n),\n\"\")","v":"https://ec.europa.eu/eurostat/databrowser/view/nama_10r_2hhinc/default/table?lang=en"},{"$f":"IFERROR(\n   IF(OR(\n      INDEX(INDIRECT(\"'\"&$B$1&\"'!A:G\"), ROW(G21), COLUMN(G21))=0,\n      INDEX(INDIRECT(\"'\"&$B$1&\"'!A:G\"), ROW(G21), COLUMN(G21))=\"\"\n   ),\n   \"\",\n   INDEX(INDIRECT(\"'\"&$B$1&\"'!A:G\"), ROW(G21), COLUMN(G21))\n),\n\"\")","v":"Regional data are easily accessible through the link provided at the Source column"}]
[{"$f":"IFERROR(\n   IF(OR(\n      INDEX(INDIRECT(\"'\"&$B$1&\"'!A:G\"), ROW(A22), COLUMN(A22))=0,\n      INDEX(INDIRECT(\"'\"&$B$1&\"'!A:G\"), ROW(A22), COLUMN(A22))=\"\"\n   ),\n   \"\",\n   INDEX(INDIRECT(\"'\"&$B$1&\"'!A:G\"), ROW(A22), COLUMN(A22))\n),\n\"\")","v":"Economy"},{"$f":"IFERROR(\n   IF(OR(\n      INDEX(INDIRECT(\"'\"&$B$1&\"'!A:G\"), ROW(B22), COLUMN(B22))=0,\n      INDEX(INDIRECT(\"'\"&$B$1&\"'!A:G\"), ROW(B22), COLUMN(B22))=\"\"\n   ),\n   \"\",\n   INDEX(INDIRECT(\"'\"&$B$1&\"'!A:G\"), ROW(B22), COLUMN(B22))\n),\n\"\")","v":"All sectors"},{"$f":"IFERROR(\n   IF(OR(\n      INDEX(INDIRECT(\"'\"&$B$1&\"'!A:G\"), ROW(C22), COLUMN(C22))=0,\n      INDEX(INDIRECT(\"'\"&$B$1&\"'!A:G\"), ROW(C22), COLUMN(C22))=\"\"\n   ),\n   \"\",\n   INDEX(INDIRECT(\"'\"&$B$1&\"'!A:G\"), ROW(C22), COLUMN(C22))\n),\n\"\")","v":"Regional Gross Domestic Product"},{"$f":"IFERROR(\n   IF(OR(\n      INDEX(INDIRECT(\"'\"&$B$1&\"'!A:G\"), ROW(D22), COLUMN(D22))=0,\n      INDEX(INDIRECT(\"'\"&$B$1&\"'!A:G\"), ROW(D22), COLUMN(D22))=\"\"\n   ),\n   \"\",\n   INDEX(INDIRECT(\"'\"&$B$1&\"'!A:G\"), ROW(D22), COLUMN(D22))\n),\n\"\")","v":"€"},{"$f":"IFERROR(\n   IF(OR(\n      INDEX(INDIRECT(\"'\"&$B$1&\"'!A:G\"), ROW(E22), COLUMN(E22))=0,\n      INDEX(INDIRECT(\"'\"&$B$1&\"'!A:G\"), ROW(E22), COLUMN(E22))=\"\"\n   ),\n   \"\",\n   INDEX(INDIRECT(\"'\"&$B$1&\"'!A:G\"), ROW(E22), COLUMN(E22))\n),\n\"\")","v":"Million Euros"},{"$f":"IFERROR(\n   IF(OR(\n      INDEX(INDIRECT(\"'\"&$B$1&\"'!A:G\"), ROW(F22), COLUMN(F22))=0,\n      INDEX(INDIRECT(\"'\"&$B$1&\"'!A:G\"), ROW(F22), COLUMN(F22))=\"\"\n   ),\n   \"\",\n   INDEX(INDIRECT(\"'\"&$B$1&\"'!A:G\"), ROW(F22), COLUMN(F22))\n),\n\"\")","v":"https://ec.europa.eu/eurostat/databrowser/view/tgs00003/default/table?lang=en"},{"$f":"IFERROR(\n   IF(OR(\n      INDEX(INDIRECT(\"'\"&$B$1&\"'!A:G\"), ROW(G22), COLUMN(G22))=0,\n      INDEX(INDIRECT(\"'\"&$B$1&\"'!A:G\"), ROW(G22), COLUMN(G22))=\"\"\n   ),\n   \"\",\n   INDEX(INDIRECT(\"'\"&$B$1&\"'!A:G\"), ROW(G22), COLUMN(G22))\n),\n\"\")","v":"Regional data are easily accessible through the link provided at the Source column"}]
[{"$f":"IFERROR(\n   IF(OR(\n      INDEX(INDIRECT(\"'\"&$B$1&\"'!A:G\"), ROW(A23), COLUMN(A23))=0,\n      INDEX(INDIRECT(\"'\"&$B$1&\"'!A:G\"), ROW(A23), COLUMN(A23))=\"\"\n   ),\n   \"\",\n   INDEX(INDIRECT(\"'\"&$B$1&\"'!A:G\"), ROW(A23), COLUMN(A23))\n),\n\"\")","v":"Economy"},{"$f":"IFERROR(\n   IF(OR(\n      INDEX(INDIRECT(\"'\"&$B$1&\"'!A:G\"), ROW(B23), COLUMN(B23))=0,\n      INDEX(INDIRECT(\"'\"&$B$1&\"'!A:G\"), ROW(B23), COLUMN(B23))=\"\"\n   ),\n   \"\",\n   INDEX(INDIRECT(\"'\"&$B$1&\"'!A:G\"), ROW(B23), COLUMN(B23))\n),\n\"\")","v":"All sectors"},{"$f":"IFERROR(\n   IF(OR(\n      INDEX(INDIRECT(\"'\"&$B$1&\"'!A:G\"), ROW(C23), COLUMN(C23))=0,\n      INDEX(INDIRECT(\"'\"&$B$1&\"'!A:G\"), ROW(C23), COLUMN(C23))=\"\"\n   ),\n   \"\",\n   INDEX(INDIRECT(\"'\"&$B$1&\"'!A:G\"), ROW(C23), COLUMN(C23))\n),\n\"\")","v":"Unemployment rate, by sex, age and persons with disabilities"},{"$f":"IFERROR(\n   IF(OR(\n      INDEX(INDIRECT(\"'\"&$B$1&\"'!A:G\"), ROW(D23), COLUMN(D23))=0,\n      INDEX(INDIRECT(\"'\"&$B$1&\"'!A:G\"), ROW(D23), COLUMN(D23))=\"\"\n   ),\n   \"\",\n   INDEX(INDIRECT(\"'\"&$B$1&\"'!A:G\"), ROW(D23), COLUMN(D23))\n),\n\"\")","v":"%"},{"$f":"IFERROR(\n   IF(OR(\n      INDEX(INDIRECT(\"'\"&$B$1&\"'!A:G\"), ROW(E23), COLUMN(E23))=0,\n      INDEX(INDIRECT(\"'\"&$B$1&\"'!A:G\"), ROW(E23), COLUMN(E23))=\"\"\n   ),\n   \"\",\n   INDEX(INDIRECT(\"'\"&$B$1&\"'!A:G\"), ROW(E23), COLUMN(E23))\n),\n\"\")","v":"All  International Standard Classification of Education (ISCED) 2011 levels: Total 15 years or over"},{"$f":"IFERROR(\n   IF(OR(\n      INDEX(INDIRECT(\"'\"&$B$1&\"'!A:G\"), ROW(F23), COLUMN(F23))=0,\n      INDEX(INDIRECT(\"'\"&$B$1&\"'!A:G\"), ROW(F23), COLUMN(F23))=\"\"\n   ),\n   \"\",\n   INDEX(INDIRECT(\"'\"&$B$1&\"'!A:G\"), ROW(F23), COLUMN(F23))\n),\n\"\")","v":"https://ec.europa.eu/eurostat/databrowser/view/tgs00010/default/table?lang=en&category=t_reg.t_reg_lmk"},{"$f":"IFERROR(\n   IF(OR(\n      INDEX(INDIRECT(\"'\"&$B$1&\"'!A:G\"), ROW(G23), COLUMN(G23))=0,\n      INDEX(INDIRECT(\"'\"&$B$1&\"'!A:G\"), ROW(G23), COLUMN(G23))=\"\"\n   ),\n   \"\",\n   INDEX(INDIRECT(\"'\"&$B$1&\"'!A:G\"), ROW(G23), COLUMN(G23))\n),\n\"\")","v":"Where ISCED= International Standard Classification of Education"}]
[{"$f":"IFERROR(\n   IF(OR(\n      INDEX(INDIRECT(\"'\"&$B$1&\"'!A:G\"), ROW(A24), COLUMN(A24))=0,\n      INDEX(INDIRECT(\"'\"&$B$1&\"'!A:G\"), ROW(A24), COLUMN(A24))=\"\"\n   ),\n   \"\",\n   INDEX(INDIRECT(\"'\"&$B$1&\"'!A:G\"), ROW(A24), COLUMN(A24))\n),\n\"\")","v":"Economy"},{"$f":"IFERROR(\n   IF(OR(\n      INDEX(INDIRECT(\"'\"&$B$1&\"'!A:G\"), ROW(B24), COLUMN(B24))=0,\n      INDEX(INDIRECT(\"'\"&$B$1&\"'!A:G\"), ROW(B24), COLUMN(B24))=\"\"\n   ),\n   \"\",\n   INDEX(INDIRECT(\"'\"&$B$1&\"'!A:G\"), ROW(B24), COLUMN(B24))\n),\n\"\")","v":"All sectors"},{"$f":"IFERROR(\n   IF(OR(\n      INDEX(INDIRECT(\"'\"&$B$1&\"'!A:G\"), ROW(C24), COLUMN(C24))=0,\n      INDEX(INDIRECT(\"'\"&$B$1&\"'!A:G\"), ROW(C24), COLUMN(C24))=\"\"\n   ),\n   \"\",\n   INDEX(INDIRECT(\"'\"&$B$1&\"'!A:G\"), ROW(C24), COLUMN(C24))\n),\n\"\")","v":"Value Added "},{"$f":"IFERROR(\n   IF(OR(\n      INDEX(INDIRECT(\"'\"&$B$1&\"'!A:G\"), ROW(D24), COLUMN(D24))=0,\n      INDEX(INDIRECT(\"'\"&$B$1&\"'!A:G\"), ROW(D24), COLUMN(D24))=\"\"\n   ),\n   \"\",\n   INDEX(INDIRECT(\"'\"&$B$1&\"'!A:G\"), ROW(D24), COLUMN(D24))\n),\n\"\")","v":"€"},{"$f":"IFERROR(\n   IF(OR(\n      INDEX(INDIRECT(\"'\"&$B$1&\"'!A:G\"), ROW(E24), COLUMN(E24))=0,\n      INDEX(INDIRECT(\"'\"&$B$1&\"'!A:G\"), ROW(E24), COLUMN(E24))=\"\"\n   ),\n   \"\",\n   INDEX(INDIRECT(\"'\"&$B$1&\"'!A:G\"), ROW(E24), COLUMN(E24))\n),\n\"\")","v":"Value added in bioeconomy services"},{"$f":"IFERROR(\n   IF(OR(\n      INDEX(INDIRECT(\"'\"&$B$1&\"'!A:G\"), ROW(F24), COLUMN(F24))=0,\n      INDEX(INDIRECT(\"'\"&$B$1&\"'!A:G\"), ROW(F24), COLUMN(F24))=\"\"\n   ),\n   \"\",\n   INDEX(INDIRECT(\"'\"&$B$1&\"'!A:G\"), ROW(F24), COLUMN(F24))\n),\n\"\")","v":"https://datam.jrc.ec.europa.eu/datam/mashup/BIO_REG_EU/index.html"},{"$f":"IFERROR(\n   IF(OR(\n      INDEX(INDIRECT(\"'\"&$B$1&\"'!A:G\"), ROW(G24), COLUMN(G24))=0,\n      INDEX(INDIRECT(\"'\"&$B$1&\"'!A:G\"), ROW(G24), COLUMN(G24))=\"\"\n   ),\n   \"\",\n   INDEX(INDIRECT(\"'\"&$B$1&\"'!A:G\"), ROW(G24), COLUMN(G24))\n),\n\"\")","v":"Regional data are easily accessible through the link provided at the Source column"}]
[{"$f":"IFERROR(\n   IF(OR(\n      INDEX(INDIRECT(\"'\"&$B$1&\"'!A:G\"), ROW(A25), COLUMN(A25))=0,\n      INDEX(INDIRECT(\"'\"&$B$1&\"'!A:G\"), ROW(A25), COLUMN(A25))=\"\"\n   ),\n   \"\",\n   INDEX(INDIRECT(\"'\"&$B$1&\"'!A:G\"), ROW(A25), COLUMN(A25))\n),\n\"\")","v":"Economy"},{"$f":"IFERROR(\n   IF(OR(\n      INDEX(INDIRECT(\"'\"&$B$1&\"'!A:G\"), ROW(B25), COLUMN(B25))=0,\n      INDEX(INDIRECT(\"'\"&$B$1&\"'!A:G\"), ROW(B25), COLUMN(B25))=\"\"\n   ),\n   \"\",\n   INDEX(INDIRECT(\"'\"&$B$1&\"'!A:G\"), ROW(B25), COLUMN(B25))\n),\n\"\")","v":"All sectors"},{"$f":"IFERROR(\n   IF(OR(\n      INDEX(INDIRECT(\"'\"&$B$1&\"'!A:G\"), ROW(C25), COLUMN(C25))=0,\n      INDEX(INDIRECT(\"'\"&$B$1&\"'!A:G\"), ROW(C25), COLUMN(C25))=\"\"\n   ),\n   \"\",\n   INDEX(INDIRECT(\"'\"&$B$1&\"'!A:G\"), ROW(C25), COLUMN(C25))\n),\n\"\")","v":"Investment"},{"$f":"IFERROR(\n   IF(OR(\n      INDEX(INDIRECT(\"'\"&$B$1&\"'!A:G\"), ROW(D25), COLUMN(D25))=0,\n      INDEX(INDIRECT(\"'\"&$B$1&\"'!A:G\"), ROW(D25), COLUMN(D25))=\"\"\n   ),\n   \"\",\n   INDEX(INDIRECT(\"'\"&$B$1&\"'!A:G\"), ROW(D25), COLUMN(D25))\n),\n\"\")","v":"€"},{"$f":"IFERROR(\n   IF(OR(\n      INDEX(INDIRECT(\"'\"&$B$1&\"'!A:G\"), ROW(E25), COLUMN(E25))=0,\n      INDEX(INDIRECT(\"'\"&$B$1&\"'!A:G\"), ROW(E25), COLUMN(E25))=\"\"\n   ),\n   \"\",\n   INDEX(INDIRECT(\"'\"&$B$1&\"'!A:G\"), ROW(E25), COLUMN(E25))\n),\n\"\")","v":"Investment includes the outlay of financial funds for tangible investments (such as machinery), immaterial assets (such as software or patents), or financial investments (such as bonds or equity investments)"},{"$f":"IFERROR(\n   IF(OR(\n      INDEX(INDIRECT(\"'\"&$B$1&\"'!A:G\"), ROW(F25), COLUMN(F25))=0,\n      INDEX(INDIRECT(\"'\"&$B$1&\"'!A:G\"), ROW(F25), COLUMN(F25))=\"\"\n   ),\n   \"\",\n   INDEX(INDIRECT(\"'\"&$B$1&\"'!A:G\"), ROW(F25), COLUMN(F25))\n),\n\"\")","v":""},{"$f":"IFERROR(\n   IF(OR(\n      INDEX(INDIRECT(\"'\"&$B$1&\"'!A:G\"), ROW(G25), COLUMN(G25))=0,\n      INDEX(INDIRECT(\"'\"&$B$1&\"'!A:G\"), ROW(G25), COLUMN(G25))=\"\"\n   ),\n   \"\",\n   INDEX(INDIRECT(\"'\"&$B$1&\"'!A:G\"), ROW(G25), COLUMN(G25))\n),\n\"\")","v":"If data are not available by Industry Associations, Chambers of commerce or regional development agencies,  consider a targeted expert interview among key stakeholders, such as companies or development agencies"}]
[{"$f":"IFERROR(\n   IF(OR(\n      INDEX(INDIRECT(\"'\"&$B$1&\"'!A:G\"), ROW(A26), COLUMN(A26))=0,\n      INDEX(INDIRECT(\"'\"&$B$1&\"'!A:G\"), ROW(A26), COLUMN(A26))=\"\"\n   ),\n   \"\",\n   INDEX(INDIRECT(\"'\"&$B$1&\"'!A:G\"), ROW(A26), COLUMN(A26))\n),\n\"\")","v":""},{"$f":"IFERROR(\n   IF(OR(\n      INDEX(INDIRECT(\"'\"&$B$1&\"'!A:G\"), ROW(B26), COLUMN(B26))=0,\n      INDEX(INDIRECT(\"'\"&$B$1&\"'!A:G\"), ROW(B26), COLUMN(B26))=\"\"\n   ),\n   \"\",\n   INDEX(INDIRECT(\"'\"&$B$1&\"'!A:G\"), ROW(B26), COLUMN(B26))\n),\n\"\")","v":""},{"$f":"IFERROR(\n   IF(OR(\n      INDEX(INDIRECT(\"'\"&$B$1&\"'!A:G\"), ROW(C26), COLUMN(C26))=0,\n      INDEX(INDIRECT(\"'\"&$B$1&\"'!A:G\"), ROW(C26), COLUMN(C26))=\"\"\n   ),\n   \"\",\n   INDEX(INDIRECT(\"'\"&$B$1&\"'!A:G\"), ROW(C26), COLUMN(C26))\n),\n\"\")","v":""},{"$f":"IFERROR(\n   IF(OR(\n      INDEX(INDIRECT(\"'\"&$B$1&\"'!A:G\"), ROW(D26), COLUMN(D26))=0,\n      INDEX(INDIRECT(\"'\"&$B$1&\"'!A:G\"), ROW(D26), COLUMN(D26))=\"\"\n   ),\n   \"\",\n   INDEX(INDIRECT(\"'\"&$B$1&\"'!A:G\"), ROW(D26), COLUMN(D26))\n),\n\"\")","v":""},{"$f":"IFERROR(\n   IF(OR(\n      INDEX(INDIRECT(\"'\"&$B$1&\"'!A:G\"), ROW(E26), COLUMN(E26))=0,\n      INDEX(INDIRECT(\"'\"&$B$1&\"'!A:G\"), ROW(E26), COLUMN(E26))=\"\"\n   ),\n   \"\",\n   INDEX(INDIRECT(\"'\"&$B$1&\"'!A:G\"), ROW(E26), COLUMN(E26))\n),\n\"\")","v":""},{"$f":"IFERROR(\n   IF(OR(\n      INDEX(INDIRECT(\"'\"&$B$1&\"'!A:G\"), ROW(F26), COLUMN(F26))=0,\n      INDEX(INDIRECT(\"'\"&$B$1&\"'!A:G\"), ROW(F26), COLUMN(F26))=\"\"\n   ),\n   \"\",\n   INDEX(INDIRECT(\"'\"&$B$1&\"'!A:G\"), ROW(F26), COLUMN(F26))\n),\n\"\")","v":""},{"$f":"IFERROR(\n   IF(OR(\n      INDEX(INDIRECT(\"'\"&$B$1&\"'!A:G\"), ROW(G26), COLUMN(G26))=0,\n      INDEX(INDIRECT(\"'\"&$B$1&\"'!A:G\"), ROW(G26), COLUMN(G26))=\"\"\n   ),\n   \"\",\n   INDEX(INDIRECT(\"'\"&$B$1&\"'!A:G\"), ROW(G26), COLUMN(G26))\n),\n\"\")","v":""}]
[{"$f":"IFERROR(\n   IF(OR(\n      INDEX(INDIRECT(\"'\"&$B$1&\"'!A:G\"), ROW(A27), COLUMN(A27))=0,\n      INDEX(INDIRECT(\"'\"&$B$1&\"'!A:G\"), ROW(A27), COLUMN(A27))=\"\"\n   ),\n   \"\",\n   INDEX(INDIRECT(\"'\"&$B$1&\"'!A:G\"), ROW(A27), COLUMN(A27))\n),\n\"\")","v":""},{"$f":"IFERROR(\n   IF(OR(\n      INDEX(INDIRECT(\"'\"&$B$1&\"'!A:G\"), ROW(B27), COLUMN(B27))=0,\n      INDEX(INDIRECT(\"'\"&$B$1&\"'!A:G\"), ROW(B27), COLUMN(B27))=\"\"\n   ),\n   \"\",\n   INDEX(INDIRECT(\"'\"&$B$1&\"'!A:G\"), ROW(B27), COLUMN(B27))\n),\n\"\")","v":""},{"$f":"IFERROR(\n   IF(OR(\n      INDEX(INDIRECT(\"'\"&$B$1&\"'!A:G\"), ROW(C27), COLUMN(C27))=0,\n      INDEX(INDIRECT(\"'\"&$B$1&\"'!A:G\"), ROW(C27), COLUMN(C27))=\"\"\n   ),\n   \"\",\n   INDEX(INDIRECT(\"'\"&$B$1&\"'!A:G\"), ROW(C27), COLUMN(C27))\n),\n\"\")","v":""},{"$f":"IFERROR(\n   IF(OR(\n      INDEX(INDIRECT(\"'\"&$B$1&\"'!A:G\"), ROW(D27), COLUMN(D27))=0,\n      INDEX(INDIRECT(\"'\"&$B$1&\"'!A:G\"), ROW(D27), COLUMN(D27))=\"\"\n   ),\n   \"\",\n   INDEX(INDIRECT(\"'\"&$B$1&\"'!A:G\"), ROW(D27), COLUMN(D27))\n),\n\"\")","v":""},{"$f":"IFERROR(\n   IF(OR(\n      INDEX(INDIRECT(\"'\"&$B$1&\"'!A:G\"), ROW(E27), COLUMN(E27))=0,\n      INDEX(INDIRECT(\"'\"&$B$1&\"'!A:G\"), ROW(E27), COLUMN(E27))=\"\"\n   ),\n   \"\",\n   INDEX(INDIRECT(\"'\"&$B$1&\"'!A:G\"), ROW(E27), COLUMN(E27))\n),\n\"\")","v":""},{"$f":"IFERROR(\n   IF(OR(\n      INDEX(INDIRECT(\"'\"&$B$1&\"'!A:G\"), ROW(F27), COLUMN(F27))=0,\n      INDEX(INDIRECT(\"'\"&$B$1&\"'!A:G\"), ROW(F27), COLUMN(F27))=\"\"\n   ),\n   \"\",\n   INDEX(INDIRECT(\"'\"&$B$1&\"'!A:G\"), ROW(F27), COLUMN(F27))\n),\n\"\")","v":""},{"$f":"IFERROR(\n   IF(OR(\n      INDEX(INDIRECT(\"'\"&$B$1&\"'!A:G\"), ROW(G27), COLUMN(G27))=0,\n      INDEX(INDIRECT(\"'\"&$B$1&\"'!A:G\"), ROW(G27), COLUMN(G27))=\"\"\n   ),\n   \"\",\n   INDEX(INDIRECT(\"'\"&$B$1&\"'!A:G\"), ROW(G27), COLUMN(G27))\n),\n\"\")","v":""}]
[{"$f":"IFERROR(\n   IF(OR(\n      INDEX(INDIRECT(\"'\"&$B$1&\"'!A:G\"), ROW(A28), COLUMN(A28))=0,\n      INDEX(INDIRECT(\"'\"&$B$1&\"'!A:G\"), ROW(A28), COLUMN(A28))=\"\"\n   ),\n   \"\",\n   INDEX(INDIRECT(\"'\"&$B$1&\"'!A:G\"), ROW(A28), COLUMN(A28))\n),\n\"\")","v":""},{"$f":"IFERROR(\n   IF(OR(\n      INDEX(INDIRECT(\"'\"&$B$1&\"'!A:G\"), ROW(B28), COLUMN(B28))=0,\n      INDEX(INDIRECT(\"'\"&$B$1&\"'!A:G\"), ROW(B28), COLUMN(B28))=\"\"\n   ),\n   \"\",\n   INDEX(INDIRECT(\"'\"&$B$1&\"'!A:G\"), ROW(B28), COLUMN(B28))\n),\n\"\")","v":""},{"$f":"IFERROR(\n   IF(OR(\n      INDEX(INDIRECT(\"'\"&$B$1&\"'!A:G\"), ROW(C28), COLUMN(C28))=0,\n      INDEX(INDIRECT(\"'\"&$B$1&\"'!A:G\"), ROW(C28), COLUMN(C28))=\"\"\n   ),\n   \"\",\n   INDEX(INDIRECT(\"'\"&$B$1&\"'!A:G\"), ROW(C28), COLUMN(C28))\n),\n\"\")","v":""},{"$f":"IFERROR(\n   IF(OR(\n      INDEX(INDIRECT(\"'\"&$B$1&\"'!A:G\"), ROW(D28), COLUMN(D28))=0,\n      INDEX(INDIRECT(\"'\"&$B$1&\"'!A:G\"), ROW(D28), COLUMN(D28))=\"\"\n   ),\n   \"\",\n   INDEX(INDIRECT(\"'\"&$B$1&\"'!A:G\"), ROW(D28), COLUMN(D28))\n),\n\"\")","v":""},{"$f":"IFERROR(\n   IF(OR(\n      INDEX(INDIRECT(\"'\"&$B$1&\"'!A:G\"), ROW(E28), COLUMN(E28))=0,\n      INDEX(INDIRECT(\"'\"&$B$1&\"'!A:G\"), ROW(E28), COLUMN(E28))=\"\"\n   ),\n   \"\",\n   INDEX(INDIRECT(\"'\"&$B$1&\"'!A:G\"), ROW(E28), COLUMN(E28))\n),\n\"\")","v":""},{"$f":"IFERROR(\n   IF(OR(\n      INDEX(INDIRECT(\"'\"&$B$1&\"'!A:G\"), ROW(F28), COLUMN(F28))=0,\n      INDEX(INDIRECT(\"'\"&$B$1&\"'!A:G\"), ROW(F28), COLUMN(F28))=\"\"\n   ),\n   \"\",\n   INDEX(INDIRECT(\"'\"&$B$1&\"'!A:G\"), ROW(F28), COLUMN(F28))\n),\n\"\")","v":""},{"$f":"IFERROR(\n   IF(OR(\n      INDEX(INDIRECT(\"'\"&$B$1&\"'!A:G\"), ROW(G28), COLUMN(G28))=0,\n      INDEX(INDIRECT(\"'\"&$B$1&\"'!A:G\"), ROW(G28), COLUMN(G28))=\"\"\n   ),\n   \"\",\n   INDEX(INDIRECT(\"'\"&$B$1&\"'!A:G\"), ROW(G28), COLUMN(G28))\n),\n\"\")","v":""}]
[{"$f":"IFERROR(\n   IF(OR(\n      INDEX(INDIRECT(\"'\"&$B$1&\"'!A:G\"), ROW(A29), COLUMN(A29))=0,\n      INDEX(INDIRECT(\"'\"&$B$1&\"'!A:G\"), ROW(A29), COLUMN(A29))=\"\"\n   ),\n   \"\",\n   INDEX(INDIRECT(\"'\"&$B$1&\"'!A:G\"), ROW(A29), COLUMN(A29))\n),\n\"\")","v":""},{"$f":"IFERROR(\n   IF(OR(\n      INDEX(INDIRECT(\"'\"&$B$1&\"'!A:G\"), ROW(B29), COLUMN(B29))=0,\n      INDEX(INDIRECT(\"'\"&$B$1&\"'!A:G\"), ROW(B29), COLUMN(B29))=\"\"\n   ),\n   \"\",\n   INDEX(INDIRECT(\"'\"&$B$1&\"'!A:G\"), ROW(B29), COLUMN(B29))\n),\n\"\")","v":""},{"$f":"IFERROR(\n   IF(OR(\n      INDEX(INDIRECT(\"'\"&$B$1&\"'!A:G\"), ROW(C29), COLUMN(C29))=0,\n      INDEX(INDIRECT(\"'\"&$B$1&\"'!A:G\"), ROW(C29), COLUMN(C29))=\"\"\n   ),\n   \"\",\n   INDEX(INDIRECT(\"'\"&$B$1&\"'!A:G\"), ROW(C29), COLUMN(C29))\n),\n\"\")","v":""},{"$f":"IFERROR(\n   IF(OR(\n      INDEX(INDIRECT(\"'\"&$B$1&\"'!A:G\"), ROW(D29), COLUMN(D29))=0,\n      INDEX(INDIRECT(\"'\"&$B$1&\"'!A:G\"), ROW(D29), COLUMN(D29))=\"\"\n   ),\n   \"\",\n   INDEX(INDIRECT(\"'\"&$B$1&\"'!A:G\"), ROW(D29), COLUMN(D29))\n),\n\"\")","v":""},{"$f":"IFERROR(\n   IF(OR(\n      INDEX(INDIRECT(\"'\"&$B$1&\"'!A:G\"), ROW(E29), COLUMN(E29))=0,\n      INDEX(INDIRECT(\"'\"&$B$1&\"'!A:G\"), ROW(E29), COLUMN(E29))=\"\"\n   ),\n   \"\",\n   INDEX(INDIRECT(\"'\"&$B$1&\"'!A:G\"), ROW(E29), COLUMN(E29))\n),\n\"\")","v":""},{"$f":"IFERROR(\n   IF(OR(\n      INDEX(INDIRECT(\"'\"&$B$1&\"'!A:G\"), ROW(F29), COLUMN(F29))=0,\n      INDEX(INDIRECT(\"'\"&$B$1&\"'!A:G\"), ROW(F29), COLUMN(F29))=\"\"\n   ),\n   \"\",\n   INDEX(INDIRECT(\"'\"&$B$1&\"'!A:G\"), ROW(F29), COLUMN(F29))\n),\n\"\")","v":""},{"$f":"IFERROR(\n   IF(OR(\n      INDEX(INDIRECT(\"'\"&$B$1&\"'!A:G\"), ROW(G29), COLUMN(G29))=0,\n      INDEX(INDIRECT(\"'\"&$B$1&\"'!A:G\"), ROW(G29), COLUMN(G29))=\"\"\n   ),\n   \"\",\n   INDEX(INDIRECT(\"'\"&$B$1&\"'!A:G\"), ROW(G29), COLUMN(G29))\n),\n\"\")","v":""}]
[{"$f":"IFERROR(\n   IF(OR(\n      INDEX(INDIRECT(\"'\"&$B$1&\"'!A:G\"), ROW(A30), COLUMN(A30))=0,\n      INDEX(INDIRECT(\"'\"&$B$1&\"'!A:G\"), ROW(A30), COLUMN(A30))=\"\"\n   ),\n   \"\",\n   INDEX(INDIRECT(\"'\"&$B$1&\"'!A:G\"), ROW(A30), COLUMN(A30))\n),\n\"\")","v":""},{"$f":"IFERROR(\n   IF(OR(\n      INDEX(INDIRECT(\"'\"&$B$1&\"'!A:G\"), ROW(B30), COLUMN(B30))=0,\n      INDEX(INDIRECT(\"'\"&$B$1&\"'!A:G\"), ROW(B30), COLUMN(B30))=\"\"\n   ),\n   \"\",\n   INDEX(INDIRECT(\"'\"&$B$1&\"'!A:G\"), ROW(B30), COLUMN(B30))\n),\n\"\")","v":""},{"$f":"IFERROR(\n   IF(OR(\n      INDEX(INDIRECT(\"'\"&$B$1&\"'!A:G\"), ROW(C30), COLUMN(C30))=0,\n      INDEX(INDIRECT(\"'\"&$B$1&\"'!A:G\"), ROW(C30), COLUMN(C30))=\"\"\n   ),\n   \"\",\n   INDEX(INDIRECT(\"'\"&$B$1&\"'!A:G\"), ROW(C30), COLUMN(C30))\n),\n\"\")","v":""},{"$f":"IFERROR(\n   IF(OR(\n      INDEX(INDIRECT(\"'\"&$B$1&\"'!A:G\"), ROW(D30), COLUMN(D30))=0,\n      INDEX(INDIRECT(\"'\"&$B$1&\"'!A:G\"), ROW(D30), COLUMN(D30))=\"\"\n   ),\n   \"\",\n   INDEX(INDIRECT(\"'\"&$B$1&\"'!A:G\"), ROW(D30), COLUMN(D30))\n),\n\"\")","v":""},{"$f":"IFERROR(\n   IF(OR(\n      INDEX(INDIRECT(\"'\"&$B$1&\"'!A:G\"), ROW(E30), COLUMN(E30))=0,\n      INDEX(INDIRECT(\"'\"&$B$1&\"'!A:G\"), ROW(E30), COLUMN(E30))=\"\"\n   ),\n   \"\",\n   INDEX(INDIRECT(\"'\"&$B$1&\"'!A:G\"), ROW(E30), COLUMN(E30))\n),\n\"\")","v":""},{"$f":"IFERROR(\n   IF(OR(\n      INDEX(INDIRECT(\"'\"&$B$1&\"'!A:G\"), ROW(F30), COLUMN(F30))=0,\n      INDEX(INDIRECT(\"'\"&$B$1&\"'!A:G\"), ROW(F30), COLUMN(F30))=\"\"\n   ),\n   \"\",\n   INDEX(INDIRECT(\"'\"&$B$1&\"'!A:G\"), ROW(F30), COLUMN(F30))\n),\n\"\")","v":""},{"$f":"IFERROR(\n   IF(OR(\n      INDEX(INDIRECT(\"'\"&$B$1&\"'!A:G\"), ROW(G30), COLUMN(G30))=0,\n      INDEX(INDIRECT(\"'\"&$B$1&\"'!A:G\"), ROW(G30), COLUMN(G30))=\"\"\n   ),\n   \"\",\n   INDEX(INDIRECT(\"'\"&$B$1&\"'!A:G\"), ROW(G30), COLUMN(G30))\n),\n\"\")","v":""}]
[{"$f":"IFERROR(\n   IF(OR(\n      INDEX(INDIRECT(\"'\"&$B$1&\"'!A:G\"), ROW(A31), COLUMN(A31))=0,\n      INDEX(INDIRECT(\"'\"&$B$1&\"'!A:G\"), ROW(A31), COLUMN(A31))=\"\"\n   ),\n   \"\",\n   INDEX(INDIRECT(\"'\"&$B$1&\"'!A:G\"), ROW(A31), COLUMN(A31))\n),\n\"\")","v":""},{"$f":"IFERROR(\n   IF(OR(\n      INDEX(INDIRECT(\"'\"&$B$1&\"'!A:G\"), ROW(B31), COLUMN(B31))=0,\n      INDEX(INDIRECT(\"'\"&$B$1&\"'!A:G\"), ROW(B31), COLUMN(B31))=\"\"\n   ),\n   \"\",\n   INDEX(INDIRECT(\"'\"&$B$1&\"'!A:G\"), ROW(B31), COLUMN(B31))\n),\n\"\")","v":""},{"$f":"IFERROR(\n   IF(OR(\n      INDEX(INDIRECT(\"'\"&$B$1&\"'!A:G\"), ROW(C31), COLUMN(C31))=0,\n      INDEX(INDIRECT(\"'\"&$B$1&\"'!A:G\"), ROW(C31), COLUMN(C31))=\"\"\n   ),\n   \"\",\n   INDEX(INDIRECT(\"'\"&$B$1&\"'!A:G\"), ROW(C31), COLUMN(C31))\n),\n\"\")","v":""},{"$f":"IFERROR(\n   IF(OR(\n      INDEX(INDIRECT(\"'\"&$B$1&\"'!A:G\"), ROW(D31), COLUMN(D31))=0,\n      INDEX(INDIRECT(\"'\"&$B$1&\"'!A:G\"), ROW(D31), COLUMN(D31))=\"\"\n   ),\n   \"\",\n   INDEX(INDIRECT(\"'\"&$B$1&\"'!A:G\"), ROW(D31), COLUMN(D31))\n),\n\"\")","v":""},{"$f":"IFERROR(\n   IF(OR(\n      INDEX(INDIRECT(\"'\"&$B$1&\"'!A:G\"), ROW(E31), COLUMN(E31))=0,\n      INDEX(INDIRECT(\"'\"&$B$1&\"'!A:G\"), ROW(E31), COLUMN(E31))=\"\"\n   ),\n   \"\",\n   INDEX(INDIRECT(\"'\"&$B$1&\"'!A:G\"), ROW(E31), COLUMN(E31))\n),\n\"\")","v":""},{"$f":"IFERROR(\n   IF(OR(\n      INDEX(INDIRECT(\"'\"&$B$1&\"'!A:G\"), ROW(F31), COLUMN(F31))=0,\n      INDEX(INDIRECT(\"'\"&$B$1&\"'!A:G\"), ROW(F31), COLUMN(F31))=\"\"\n   ),\n   \"\",\n   INDEX(INDIRECT(\"'\"&$B$1&\"'!A:G\"), ROW(F31), COLUMN(F31))\n),\n\"\")","v":""},{"$f":"IFERROR(\n   IF(OR(\n      INDEX(INDIRECT(\"'\"&$B$1&\"'!A:G\"), ROW(G31), COLUMN(G31))=0,\n      INDEX(INDIRECT(\"'\"&$B$1&\"'!A:G\"), ROW(G31), COLUMN(G31))=\"\"\n   ),\n   \"\",\n   INDEX(INDIRECT(\"'\"&$B$1&\"'!A:G\"), ROW(G31), COLUMN(G31))\n),\n\"\")","v":""}]
[{"$f":"IFERROR(\n   IF(OR(\n      INDEX(INDIRECT(\"'\"&$B$1&\"'!A:G\"), ROW(A32), COLUMN(A32))=0,\n      INDEX(INDIRECT(\"'\"&$B$1&\"'!A:G\"), ROW(A32), COLUMN(A32))=\"\"\n   ),\n   \"\",\n   INDEX(INDIRECT(\"'\"&$B$1&\"'!A:G\"), ROW(A32), COLUMN(A32))\n),\n\"\")","v":""},{"$f":"IFERROR(\n   IF(OR(\n      INDEX(INDIRECT(\"'\"&$B$1&\"'!A:G\"), ROW(B32), COLUMN(B32))=0,\n      INDEX(INDIRECT(\"'\"&$B$1&\"'!A:G\"), ROW(B32), COLUMN(B32))=\"\"\n   ),\n   \"\",\n   INDEX(INDIRECT(\"'\"&$B$1&\"'!A:G\"), ROW(B32), COLUMN(B32))\n),\n\"\")","v":""},{"$f":"IFERROR(\n   IF(OR(\n      INDEX(INDIRECT(\"'\"&$B$1&\"'!A:G\"), ROW(C32), COLUMN(C32))=0,\n      INDEX(INDIRECT(\"'\"&$B$1&\"'!A:G\"), ROW(C32), COLUMN(C32))=\"\"\n   ),\n   \"\",\n   INDEX(INDIRECT(\"'\"&$B$1&\"'!A:G\"), ROW(C32), COLUMN(C32))\n),\n\"\")","v":""},{"$f":"IFERROR(\n   IF(OR(\n      INDEX(INDIRECT(\"'\"&$B$1&\"'!A:G\"), ROW(D32), COLUMN(D32))=0,\n      INDEX(INDIRECT(\"'\"&$B$1&\"'!A:G\"), ROW(D32), COLUMN(D32))=\"\"\n   ),\n   \"\",\n   INDEX(INDIRECT(\"'\"&$B$1&\"'!A:G\"), ROW(D32), COLUMN(D32))\n),\n\"\")","v":""},{"$f":"IFERROR(\n   IF(OR(\n      INDEX(INDIRECT(\"'\"&$B$1&\"'!A:G\"), ROW(E32), COLUMN(E32))=0,\n      INDEX(INDIRECT(\"'\"&$B$1&\"'!A:G\"), ROW(E32), COLUMN(E32))=\"\"\n   ),\n   \"\",\n   INDEX(INDIRECT(\"'\"&$B$1&\"'!A:G\"), ROW(E32), COLUMN(E32))\n),\n\"\")","v":""},{"$f":"IFERROR(\n   IF(OR(\n      INDEX(INDIRECT(\"'\"&$B$1&\"'!A:G\"), ROW(F32), COLUMN(F32))=0,\n      INDEX(INDIRECT(\"'\"&$B$1&\"'!A:G\"), ROW(F32), COLUMN(F32))=\"\"\n   ),\n   \"\",\n   INDEX(INDIRECT(\"'\"&$B$1&\"'!A:G\"), ROW(F32), COLUMN(F32))\n),\n\"\")","v":""},{"$f":"IFERROR(\n   IF(OR(\n      INDEX(INDIRECT(\"'\"&$B$1&\"'!A:G\"), ROW(G32), COLUMN(G32))=0,\n      INDEX(INDIRECT(\"'\"&$B$1&\"'!A:G\"), ROW(G32), COLUMN(G32))=\"\"\n   ),\n   \"\",\n   INDEX(INDIRECT(\"'\"&$B$1&\"'!A:G\"), ROW(G32), COLUMN(G32))\n),\n\"\")","v":""}]
[{"$f":"IFERROR(\n   IF(OR(\n      INDEX(INDIRECT(\"'\"&$B$1&\"'!A:G\"), ROW(A33), COLUMN(A33))=0,\n      INDEX(INDIRECT(\"'\"&$B$1&\"'!A:G\"), ROW(A33), COLUMN(A33))=\"\"\n   ),\n   \"\",\n   INDEX(INDIRECT(\"'\"&$B$1&\"'!A:G\"), ROW(A33), COLUMN(A33))\n),\n\"\")","v":""},{"$f":"IFERROR(\n   IF(OR(\n      INDEX(INDIRECT(\"'\"&$B$1&\"'!A:G\"), ROW(B33), COLUMN(B33))=0,\n      INDEX(INDIRECT(\"'\"&$B$1&\"'!A:G\"), ROW(B33), COLUMN(B33))=\"\"\n   ),\n   \"\",\n   INDEX(INDIRECT(\"'\"&$B$1&\"'!A:G\"), ROW(B33), COLUMN(B33))\n),\n\"\")","v":""},{"$f":"IFERROR(\n   IF(OR(\n      INDEX(INDIRECT(\"'\"&$B$1&\"'!A:G\"), ROW(C33), COLUMN(C33))=0,\n      INDEX(INDIRECT(\"'\"&$B$1&\"'!A:G\"), ROW(C33), COLUMN(C33))=\"\"\n   ),\n   \"\",\n   INDEX(INDIRECT(\"'\"&$B$1&\"'!A:G\"), ROW(C33), COLUMN(C33))\n),\n\"\")","v":""},{"$f":"IFERROR(\n   IF(OR(\n      INDEX(INDIRECT(\"'\"&$B$1&\"'!A:G\"), ROW(D33), COLUMN(D33))=0,\n      INDEX(INDIRECT(\"'\"&$B$1&\"'!A:G\"), ROW(D33), COLUMN(D33))=\"\"\n   ),\n   \"\",\n   INDEX(INDIRECT(\"'\"&$B$1&\"'!A:G\"), ROW(D33), COLUMN(D33))\n),\n\"\")","v":""},{"$f":"IFERROR(\n   IF(OR(\n      INDEX(INDIRECT(\"'\"&$B$1&\"'!A:G\"), ROW(E33), COLUMN(E33))=0,\n      INDEX(INDIRECT(\"'\"&$B$1&\"'!A:G\"), ROW(E33), COLUMN(E33))=\"\"\n   ),\n   \"\",\n   INDEX(INDIRECT(\"'\"&$B$1&\"'!A:G\"), ROW(E33), COLUMN(E33))\n),\n\"\")","v":""},{"$f":"IFERROR(\n   IF(OR(\n      INDEX(INDIRECT(\"'\"&$B$1&\"'!A:G\"), ROW(F33), COLUMN(F33))=0,\n      INDEX(INDIRECT(\"'\"&$B$1&\"'!A:G\"), ROW(F33), COLUMN(F33))=\"\"\n   ),\n   \"\",\n   INDEX(INDIRECT(\"'\"&$B$1&\"'!A:G\"), ROW(F33), COLUMN(F33))\n),\n\"\")","v":""},{"$f":"IFERROR(\n   IF(OR(\n      INDEX(INDIRECT(\"'\"&$B$1&\"'!A:G\"), ROW(G33), COLUMN(G33))=0,\n      INDEX(INDIRECT(\"'\"&$B$1&\"'!A:G\"), ROW(G33), COLUMN(G33))=\"\"\n   ),\n   \"\",\n   INDEX(INDIRECT(\"'\"&$B$1&\"'!A:G\"), ROW(G33), COLUMN(G33))\n),\n\"\")","v":""}]
[{"$f":"IFERROR(\n   IF(OR(\n      INDEX(INDIRECT(\"'\"&$B$1&\"'!A:G\"), ROW(A34), COLUMN(A34))=0,\n      INDEX(INDIRECT(\"'\"&$B$1&\"'!A:G\"), ROW(A34), COLUMN(A34))=\"\"\n   ),\n   \"\",\n   INDEX(INDIRECT(\"'\"&$B$1&\"'!A:G\"), ROW(A34), COLUMN(A34))\n),\n\"\")","v":""},{"$f":"IFERROR(\n   IF(OR(\n      INDEX(INDIRECT(\"'\"&$B$1&\"'!A:G\"), ROW(B34), COLUMN(B34))=0,\n      INDEX(INDIRECT(\"'\"&$B$1&\"'!A:G\"), ROW(B34), COLUMN(B34))=\"\"\n   ),\n   \"\",\n   INDEX(INDIRECT(\"'\"&$B$1&\"'!A:G\"), ROW(B34), COLUMN(B34))\n),\n\"\")","v":""},{"$f":"IFERROR(\n   IF(OR(\n      INDEX(INDIRECT(\"'\"&$B$1&\"'!A:G\"), ROW(C34), COLUMN(C34))=0,\n      INDEX(INDIRECT(\"'\"&$B$1&\"'!A:G\"), ROW(C34), COLUMN(C34))=\"\"\n   ),\n   \"\",\n   INDEX(INDIRECT(\"'\"&$B$1&\"'!A:G\"), ROW(C34), COLUMN(C34))\n),\n\"\")","v":""},{"$f":"IFERROR(\n   IF(OR(\n      INDEX(INDIRECT(\"'\"&$B$1&\"'!A:G\"), ROW(D34), COLUMN(D34))=0,\n      INDEX(INDIRECT(\"'\"&$B$1&\"'!A:G\"), ROW(D34), COLUMN(D34))=\"\"\n   ),\n   \"\",\n   INDEX(INDIRECT(\"'\"&$B$1&\"'!A:G\"), ROW(D34), COLUMN(D34))\n),\n\"\")","v":""},{"$f":"IFERROR(\n   IF(OR(\n      INDEX(INDIRECT(\"'\"&$B$1&\"'!A:G\"), ROW(E34), COLUMN(E34))=0,\n      INDEX(INDIRECT(\"'\"&$B$1&\"'!A:G\"), ROW(E34), COLUMN(E34))=\"\"\n   ),\n   \"\",\n   INDEX(INDIRECT(\"'\"&$B$1&\"'!A:G\"), ROW(E34), COLUMN(E34))\n),\n\"\")","v":""},{"$f":"IFERROR(\n   IF(OR(\n      INDEX(INDIRECT(\"'\"&$B$1&\"'!A:G\"), ROW(F34), COLUMN(F34))=0,\n      INDEX(INDIRECT(\"'\"&$B$1&\"'!A:G\"), ROW(F34), COLUMN(F34))=\"\"\n   ),\n   \"\",\n   INDEX(INDIRECT(\"'\"&$B$1&\"'!A:G\"), ROW(F34), COLUMN(F34))\n),\n\"\")","v":""},{"$f":"IFERROR(\n   IF(OR(\n      INDEX(INDIRECT(\"'\"&$B$1&\"'!A:G\"), ROW(G34), COLUMN(G34))=0,\n      INDEX(INDIRECT(\"'\"&$B$1&\"'!A:G\"), ROW(G34), COLUMN(G34))=\"\"\n   ),\n   \"\",\n   INDEX(INDIRECT(\"'\"&$B$1&\"'!A:G\"), ROW(G34), COLUMN(G34))\n),\n\"\")","v":""}]
[{"$f":"IFERROR(\n   IF(OR(\n      INDEX(INDIRECT(\"'\"&$B$1&\"'!A:G\"), ROW(A35), COLUMN(A35))=0,\n      INDEX(INDIRECT(\"'\"&$B$1&\"'!A:G\"), ROW(A35), COLUMN(A35))=\"\"\n   ),\n   \"\",\n   INDEX(INDIRECT(\"'\"&$B$1&\"'!A:G\"), ROW(A35), COLUMN(A35))\n),\n\"\")","v":""},{"$f":"IFERROR(\n   IF(OR(\n      INDEX(INDIRECT(\"'\"&$B$1&\"'!A:G\"), ROW(B35), COLUMN(B35))=0,\n      INDEX(INDIRECT(\"'\"&$B$1&\"'!A:G\"), ROW(B35), COLUMN(B35))=\"\"\n   ),\n   \"\",\n   INDEX(INDIRECT(\"'\"&$B$1&\"'!A:G\"), ROW(B35), COLUMN(B35))\n),\n\"\")","v":""},{"$f":"IFERROR(\n   IF(OR(\n      INDEX(INDIRECT(\"'\"&$B$1&\"'!A:G\"), ROW(C35), COLUMN(C35))=0,\n      INDEX(INDIRECT(\"'\"&$B$1&\"'!A:G\"), ROW(C35), COLUMN(C35))=\"\"\n   ),\n   \"\",\n   INDEX(INDIRECT(\"'\"&$B$1&\"'!A:G\"), ROW(C35), COLUMN(C35))\n),\n\"\")","v":""},{"$f":"IFERROR(\n   IF(OR(\n      INDEX(INDIRECT(\"'\"&$B$1&\"'!A:G\"), ROW(D35), COLUMN(D35))=0,\n      INDEX(INDIRECT(\"'\"&$B$1&\"'!A:G\"), ROW(D35), COLUMN(D35))=\"\"\n   ),\n   \"\",\n   INDEX(INDIRECT(\"'\"&$B$1&\"'!A:G\"), ROW(D35), COLUMN(D35))\n),\n\"\")","v":""},{"$f":"IFERROR(\n   IF(OR(\n      INDEX(INDIRECT(\"'\"&$B$1&\"'!A:G\"), ROW(E35), COLUMN(E35))=0,\n      INDEX(INDIRECT(\"'\"&$B$1&\"'!A:G\"), ROW(E35), COLUMN(E35))=\"\"\n   ),\n   \"\",\n   INDEX(INDIRECT(\"'\"&$B$1&\"'!A:G\"), ROW(E35), COLUMN(E35))\n),\n\"\")","v":""},{"$f":"IFERROR(\n   IF(OR(\n      INDEX(INDIRECT(\"'\"&$B$1&\"'!A:G\"), ROW(F35), COLUMN(F35))=0,\n      INDEX(INDIRECT(\"'\"&$B$1&\"'!A:G\"), ROW(F35), COLUMN(F35))=\"\"\n   ),\n   \"\",\n   INDEX(INDIRECT(\"'\"&$B$1&\"'!A:G\"), ROW(F35), COLUMN(F35))\n),\n\"\")","v":""},{"$f":"IFERROR(\n   IF(OR(\n      INDEX(INDIRECT(\"'\"&$B$1&\"'!A:G\"), ROW(G35), COLUMN(G35))=0,\n      INDEX(INDIRECT(\"'\"&$B$1&\"'!A:G\"), ROW(G35), COLUMN(G35))=\"\"\n   ),\n   \"\",\n   INDEX(INDIRECT(\"'\"&$B$1&\"'!A:G\"), ROW(G35), COLUMN(G35))\n),\n\"\")","v":""}]
[{"$f":"IFERROR(\n   IF(OR(\n      INDEX(INDIRECT(\"'\"&$B$1&\"'!A:G\"), ROW(A36), COLUMN(A36))=0,\n      INDEX(INDIRECT(\"'\"&$B$1&\"'!A:G\"), ROW(A36), COLUMN(A36))=\"\"\n   ),\n   \"\",\n   INDEX(INDIRECT(\"'\"&$B$1&\"'!A:G\"), ROW(A36), COLUMN(A36))\n),\n\"\")","v":""},{"$f":"IFERROR(\n   IF(OR(\n      INDEX(INDIRECT(\"'\"&$B$1&\"'!A:G\"), ROW(B36), COLUMN(B36))=0,\n      INDEX(INDIRECT(\"'\"&$B$1&\"'!A:G\"), ROW(B36), COLUMN(B36))=\"\"\n   ),\n   \"\",\n   INDEX(INDIRECT(\"'\"&$B$1&\"'!A:G\"), ROW(B36), COLUMN(B36))\n),\n\"\")","v":""},{"$f":"IFERROR(\n   IF(OR(\n      INDEX(INDIRECT(\"'\"&$B$1&\"'!A:G\"), ROW(C36), COLUMN(C36))=0,\n      INDEX(INDIRECT(\"'\"&$B$1&\"'!A:G\"), ROW(C36), COLUMN(C36))=\"\"\n   ),\n   \"\",\n   INDEX(INDIRECT(\"'\"&$B$1&\"'!A:G\"), ROW(C36), COLUMN(C36))\n),\n\"\")","v":""},{"$f":"IFERROR(\n   IF(OR(\n      INDEX(INDIRECT(\"'\"&$B$1&\"'!A:G\"), ROW(D36), COLUMN(D36))=0,\n      INDEX(INDIRECT(\"'\"&$B$1&\"'!A:G\"), ROW(D36), COLUMN(D36))=\"\"\n   ),\n   \"\",\n   INDEX(INDIRECT(\"'\"&$B$1&\"'!A:G\"), ROW(D36), COLUMN(D36))\n),\n\"\")","v":""},{"$f":"IFERROR(\n   IF(OR(\n      INDEX(INDIRECT(\"'\"&$B$1&\"'!A:G\"), ROW(E36), COLUMN(E36))=0,\n      INDEX(INDIRECT(\"'\"&$B$1&\"'!A:G\"), ROW(E36), COLUMN(E36))=\"\"\n   ),\n   \"\",\n   INDEX(INDIRECT(\"'\"&$B$1&\"'!A:G\"), ROW(E36), COLUMN(E36))\n),\n\"\")","v":""},{"$f":"IFERROR(\n   IF(OR(\n      INDEX(INDIRECT(\"'\"&$B$1&\"'!A:G\"), ROW(F36), COLUMN(F36))=0,\n      INDEX(INDIRECT(\"'\"&$B$1&\"'!A:G\"), ROW(F36), COLUMN(F36))=\"\"\n   ),\n   \"\",\n   INDEX(INDIRECT(\"'\"&$B$1&\"'!A:G\"), ROW(F36), COLUMN(F36))\n),\n\"\")","v":""},{"$f":"IFERROR(\n   IF(OR(\n      INDEX(INDIRECT(\"'\"&$B$1&\"'!A:G\"), ROW(G36), COLUMN(G36))=0,\n      INDEX(INDIRECT(\"'\"&$B$1&\"'!A:G\"), ROW(G36), COLUMN(G36))=\"\"\n   ),\n   \"\",\n   INDEX(INDIRECT(\"'\"&$B$1&\"'!A:G\"), ROW(G36), COLUMN(G36))\n),\n\"\")","v":""}]
[{"$f":"IFERROR(\n   IF(OR(\n      INDEX(INDIRECT(\"'\"&$B$1&\"'!A:G\"), ROW(A37), COLUMN(A37))=0,\n      INDEX(INDIRECT(\"'\"&$B$1&\"'!A:G\"), ROW(A37), COLUMN(A37))=\"\"\n   ),\n   \"\",\n   INDEX(INDIRECT(\"'\"&$B$1&\"'!A:G\"), ROW(A37), COLUMN(A37))\n),\n\"\")","v":""},{"$f":"IFERROR(\n   IF(OR(\n      INDEX(INDIRECT(\"'\"&$B$1&\"'!A:G\"), ROW(B37), COLUMN(B37))=0,\n      INDEX(INDIRECT(\"'\"&$B$1&\"'!A:G\"), ROW(B37), COLUMN(B37))=\"\"\n   ),\n   \"\",\n   INDEX(INDIRECT(\"'\"&$B$1&\"'!A:G\"), ROW(B37), COLUMN(B37))\n),\n\"\")","v":""},{"$f":"IFERROR(\n   IF(OR(\n      INDEX(INDIRECT(\"'\"&$B$1&\"'!A:G\"), ROW(C37), COLUMN(C37))=0,\n      INDEX(INDIRECT(\"'\"&$B$1&\"'!A:G\"), ROW(C37), COLUMN(C37))=\"\"\n   ),\n   \"\",\n   INDEX(INDIRECT(\"'\"&$B$1&\"'!A:G\"), ROW(C37), COLUMN(C37))\n),\n\"\")","v":""},{"$f":"IFERROR(\n   IF(OR(\n      INDEX(INDIRECT(\"'\"&$B$1&\"'!A:G\"), ROW(D37), COLUMN(D37))=0,\n      INDEX(INDIRECT(\"'\"&$B$1&\"'!A:G\"), ROW(D37), COLUMN(D37))=\"\"\n   ),\n   \"\",\n   INDEX(INDIRECT(\"'\"&$B$1&\"'!A:G\"), ROW(D37), COLUMN(D37))\n),\n\"\")","v":""},{"$f":"IFERROR(\n   IF(OR(\n      INDEX(INDIRECT(\"'\"&$B$1&\"'!A:G\"), ROW(E37), COLUMN(E37))=0,\n      INDEX(INDIRECT(\"'\"&$B$1&\"'!A:G\"), ROW(E37), COLUMN(E37))=\"\"\n   ),\n   \"\",\n   INDEX(INDIRECT(\"'\"&$B$1&\"'!A:G\"), ROW(E37), COLUMN(E37))\n),\n\"\")","v":""},{"$f":"IFERROR(\n   IF(OR(\n      INDEX(INDIRECT(\"'\"&$B$1&\"'!A:G\"), ROW(F37), COLUMN(F37))=0,\n      INDEX(INDIRECT(\"'\"&$B$1&\"'!A:G\"), ROW(F37), COLUMN(F37))=\"\"\n   ),\n   \"\",\n   INDEX(INDIRECT(\"'\"&$B$1&\"'!A:G\"), ROW(F37), COLUMN(F37))\n),\n\"\")","v":""},{"$f":"IFERROR(\n   IF(OR(\n      INDEX(INDIRECT(\"'\"&$B$1&\"'!A:G\"), ROW(G37), COLUMN(G37))=0,\n      INDEX(INDIRECT(\"'\"&$B$1&\"'!A:G\"), ROW(G37), COLUMN(G37))=\"\"\n   ),\n   \"\",\n   INDEX(INDIRECT(\"'\"&$B$1&\"'!A:G\"), ROW(G37), COLUMN(G37))\n),\n\"\")","v":""}]
[{"$f":"IFERROR(\n   IF(OR(\n      INDEX(INDIRECT(\"'\"&$B$1&\"'!A:G\"), ROW(A38), COLUMN(A38))=0,\n      INDEX(INDIRECT(\"'\"&$B$1&\"'!A:G\"), ROW(A38), COLUMN(A38))=\"\"\n   ),\n   \"\",\n   INDEX(INDIRECT(\"'\"&$B$1&\"'!A:G\"), ROW(A38), COLUMN(A38))\n),\n\"\")","v":""},{"$f":"IFERROR(\n   IF(OR(\n      INDEX(INDIRECT(\"'\"&$B$1&\"'!A:G\"), ROW(B38), COLUMN(B38))=0,\n      INDEX(INDIRECT(\"'\"&$B$1&\"'!A:G\"), ROW(B38), COLUMN(B38))=\"\"\n   ),\n   \"\",\n   INDEX(INDIRECT(\"'\"&$B$1&\"'!A:G\"), ROW(B38), COLUMN(B38))\n),\n\"\")","v":""},{"$f":"IFERROR(\n   IF(OR(\n      INDEX(INDIRECT(\"'\"&$B$1&\"'!A:G\"), ROW(C38), COLUMN(C38))=0,\n      INDEX(INDIRECT(\"'\"&$B$1&\"'!A:G\"), ROW(C38), COLUMN(C38))=\"\"\n   ),\n   \"\",\n   INDEX(INDIRECT(\"'\"&$B$1&\"'!A:G\"), ROW(C38), COLUMN(C38))\n),\n\"\")","v":""},{"$f":"IFERROR(\n   IF(OR(\n      INDEX(INDIRECT(\"'\"&$B$1&\"'!A:G\"), ROW(D38), COLUMN(D38))=0,\n      INDEX(INDIRECT(\"'\"&$B$1&\"'!A:G\"), ROW(D38), COLUMN(D38))=\"\"\n   ),\n   \"\",\n   INDEX(INDIRECT(\"'\"&$B$1&\"'!A:G\"), ROW(D38), COLUMN(D38))\n),\n\"\")","v":""},{"$f":"IFERROR(\n   IF(OR(\n      INDEX(INDIRECT(\"'\"&$B$1&\"'!A:G\"), ROW(E38), COLUMN(E38))=0,\n      INDEX(INDIRECT(\"'\"&$B$1&\"'!A:G\"), ROW(E38), COLUMN(E38))=\"\"\n   ),\n   \"\",\n   INDEX(INDIRECT(\"'\"&$B$1&\"'!A:G\"), ROW(E38), COLUMN(E38))\n),\n\"\")","v":""},{"$f":"IFERROR(\n   IF(OR(\n      INDEX(INDIRECT(\"'\"&$B$1&\"'!A:G\"), ROW(F38), COLUMN(F38))=0,\n      INDEX(INDIRECT(\"'\"&$B$1&\"'!A:G\"), ROW(F38), COLUMN(F38))=\"\"\n   ),\n   \"\",\n   INDEX(INDIRECT(\"'\"&$B$1&\"'!A:G\"), ROW(F38), COLUMN(F38))\n),\n\"\")","v":""},{"$f":"IFERROR(\n   IF(OR(\n      INDEX(INDIRECT(\"'\"&$B$1&\"'!A:G\"), ROW(G38), COLUMN(G38))=0,\n      INDEX(INDIRECT(\"'\"&$B$1&\"'!A:G\"), ROW(G38), COLUMN(G38))=\"\"\n   ),\n   \"\",\n   INDEX(INDIRECT(\"'\"&$B$1&\"'!A:G\"), ROW(G38), COLUMN(G38))\n),\n\"\")","v":""}]
[{"$f":"IFERROR(\n   IF(OR(\n      INDEX(INDIRECT(\"'\"&$B$1&\"'!A:G\"), ROW(A39), COLUMN(A39))=0,\n      INDEX(INDIRECT(\"'\"&$B$1&\"'!A:G\"), ROW(A39), COLUMN(A39))=\"\"\n   ),\n   \"\",\n   INDEX(INDIRECT(\"'\"&$B$1&\"'!A:G\"), ROW(A39), COLUMN(A39))\n),\n\"\")","v":""},{"$f":"IFERROR(\n   IF(OR(\n      INDEX(INDIRECT(\"'\"&$B$1&\"'!A:G\"), ROW(B39), COLUMN(B39))=0,\n      INDEX(INDIRECT(\"'\"&$B$1&\"'!A:G\"), ROW(B39), COLUMN(B39))=\"\"\n   ),\n   \"\",\n   INDEX(INDIRECT(\"'\"&$B$1&\"'!A:G\"), ROW(B39), COLUMN(B39))\n),\n\"\")","v":""},{"$f":"IFERROR(\n   IF(OR(\n      INDEX(INDIRECT(\"'\"&$B$1&\"'!A:G\"), ROW(C39), COLUMN(C39))=0,\n      INDEX(INDIRECT(\"'\"&$B$1&\"'!A:G\"), ROW(C39), COLUMN(C39))=\"\"\n   ),\n   \"\",\n   INDEX(INDIRECT(\"'\"&$B$1&\"'!A:G\"), ROW(C39), COLUMN(C39))\n),\n\"\")","v":""},{"$f":"IFERROR(\n   IF(OR(\n      INDEX(INDIRECT(\"'\"&$B$1&\"'!A:G\"), ROW(D39), COLUMN(D39))=0,\n      INDEX(INDIRECT(\"'\"&$B$1&\"'!A:G\"), ROW(D39), COLUMN(D39))=\"\"\n   ),\n   \"\",\n   INDEX(INDIRECT(\"'\"&$B$1&\"'!A:G\"), ROW(D39), COLUMN(D39))\n),\n\"\")","v":""},{"$f":"IFERROR(\n   IF(OR(\n      INDEX(INDIRECT(\"'\"&$B$1&\"'!A:G\"), ROW(E39), COLUMN(E39))=0,\n      INDEX(INDIRECT(\"'\"&$B$1&\"'!A:G\"), ROW(E39), COLUMN(E39))=\"\"\n   ),\n   \"\",\n   INDEX(INDIRECT(\"'\"&$B$1&\"'!A:G\"), ROW(E39), COLUMN(E39))\n),\n\"\")","v":""},{"$f":"IFERROR(\n   IF(OR(\n      INDEX(INDIRECT(\"'\"&$B$1&\"'!A:G\"), ROW(F39), COLUMN(F39))=0,\n      INDEX(INDIRECT(\"'\"&$B$1&\"'!A:G\"), ROW(F39), COLUMN(F39))=\"\"\n   ),\n   \"\",\n   INDEX(INDIRECT(\"'\"&$B$1&\"'!A:G\"), ROW(F39), COLUMN(F39))\n),\n\"\")","v":""},{"$f":"IFERROR(\n   IF(OR(\n      INDEX(INDIRECT(\"'\"&$B$1&\"'!A:G\"), ROW(G39), COLUMN(G39))=0,\n      INDEX(INDIRECT(\"'\"&$B$1&\"'!A:G\"), ROW(G39), COLUMN(G39))=\"\"\n   ),\n   \"\",\n   INDEX(INDIRECT(\"'\"&$B$1&\"'!A:G\"), ROW(G39), COLUMN(G39))\n),\n\"\")","v":""}]
[{"$f":"IFERROR(\n   IF(OR(\n      INDEX(INDIRECT(\"'\"&$B$1&\"'!A:G\"), ROW(A40), COLUMN(A40))=0,\n      INDEX(INDIRECT(\"'\"&$B$1&\"'!A:G\"), ROW(A40), COLUMN(A40))=\"\"\n   ),\n   \"\",\n   INDEX(INDIRECT(\"'\"&$B$1&\"'!A:G\"), ROW(A40), COLUMN(A40))\n),\n\"\")","v":""},{"$f":"IFERROR(\n   IF(OR(\n      INDEX(INDIRECT(\"'\"&$B$1&\"'!A:G\"), ROW(B40), COLUMN(B40))=0,\n      INDEX(INDIRECT(\"'\"&$B$1&\"'!A:G\"), ROW(B40), COLUMN(B40))=\"\"\n   ),\n   \"\",\n   INDEX(INDIRECT(\"'\"&$B$1&\"'!A:G\"), ROW(B40), COLUMN(B40))\n),\n\"\")","v":""},{"$f":"IFERROR(\n   IF(OR(\n      INDEX(INDIRECT(\"'\"&$B$1&\"'!A:G\"), ROW(C40), COLUMN(C40))=0,\n      INDEX(INDIRECT(\"'\"&$B$1&\"'!A:G\"), ROW(C40), COLUMN(C40))=\"\"\n   ),\n   \"\",\n   INDEX(INDIRECT(\"'\"&$B$1&\"'!A:G\"), ROW(C40), COLUMN(C40))\n),\n\"\")","v":""},{"$f":"IFERROR(\n   IF(OR(\n      INDEX(INDIRECT(\"'\"&$B$1&\"'!A:G\"), ROW(D40), COLUMN(D40))=0,\n      INDEX(INDIRECT(\"'\"&$B$1&\"'!A:G\"), ROW(D40), COLUMN(D40))=\"\"\n   ),\n   \"\",\n   INDEX(INDIRECT(\"'\"&$B$1&\"'!A:G\"), ROW(D40), COLUMN(D40))\n),\n\"\")","v":""},{"$f":"IFERROR(\n   IF(OR(\n      INDEX(INDIRECT(\"'\"&$B$1&\"'!A:G\"), ROW(E40), COLUMN(E40))=0,\n      INDEX(INDIRECT(\"'\"&$B$1&\"'!A:G\"), ROW(E40), COLUMN(E40))=\"\"\n   ),\n   \"\",\n   INDEX(INDIRECT(\"'\"&$B$1&\"'!A:G\"), ROW(E40), COLUMN(E40))\n),\n\"\")","v":""},{"$f":"IFERROR(\n   IF(OR(\n      INDEX(INDIRECT(\"'\"&$B$1&\"'!A:G\"), ROW(F40), COLUMN(F40))=0,\n      INDEX(INDIRECT(\"'\"&$B$1&\"'!A:G\"), ROW(F40), COLUMN(F40))=\"\"\n   ),\n   \"\",\n   INDEX(INDIRECT(\"'\"&$B$1&\"'!A:G\"), ROW(F40), COLUMN(F40))\n),\n\"\")","v":""},{"$f":"IFERROR(\n   IF(OR(\n      INDEX(INDIRECT(\"'\"&$B$1&\"'!A:G\"), ROW(G40), COLUMN(G40))=0,\n      INDEX(INDIRECT(\"'\"&$B$1&\"'!A:G\"), ROW(G40), COLUMN(G40))=\"\"\n   ),\n   \"\",\n   INDEX(INDIRECT(\"'\"&$B$1&\"'!A:G\"), ROW(G40), COLUMN(G40))\n),\n\"\")","v":""}]
[{"$f":"IFERROR(\n   IF(OR(\n      INDEX(INDIRECT(\"'\"&$B$1&\"'!A:G\"), ROW(A41), COLUMN(A41))=0,\n      INDEX(INDIRECT(\"'\"&$B$1&\"'!A:G\"), ROW(A41), COLUMN(A41))=\"\"\n   ),\n   \"\",\n   INDEX(INDIRECT(\"'\"&$B$1&\"'!A:G\"), ROW(A41), COLUMN(A41))\n),\n\"\")","v":""},{"$f":"IFERROR(\n   IF(OR(\n      INDEX(INDIRECT(\"'\"&$B$1&\"'!A:G\"), ROW(B41), COLUMN(B41))=0,\n      INDEX(INDIRECT(\"'\"&$B$1&\"'!A:G\"), ROW(B41), COLUMN(B41))=\"\"\n   ),\n   \"\",\n   INDEX(INDIRECT(\"'\"&$B$1&\"'!A:G\"), ROW(B41), COLUMN(B41))\n),\n\"\")","v":""},{"$f":"IFERROR(\n   IF(OR(\n      INDEX(INDIRECT(\"'\"&$B$1&\"'!A:G\"), ROW(C41), COLUMN(C41))=0,\n      INDEX(INDIRECT(\"'\"&$B$1&\"'!A:G\"), ROW(C41), COLUMN(C41))=\"\"\n   ),\n   \"\",\n   INDEX(INDIRECT(\"'\"&$B$1&\"'!A:G\"), ROW(C41), COLUMN(C41))\n),\n\"\")","v":""},{"$f":"IFERROR(\n   IF(OR(\n      INDEX(INDIRECT(\"'\"&$B$1&\"'!A:G\"), ROW(D41), COLUMN(D41))=0,\n      INDEX(INDIRECT(\"'\"&$B$1&\"'!A:G\"), ROW(D41), COLUMN(D41))=\"\"\n   ),\n   \"\",\n   INDEX(INDIRECT(\"'\"&$B$1&\"'!A:G\"), ROW(D41), COLUMN(D41))\n),\n\"\")","v":""},{"$f":"IFERROR(\n   IF(OR(\n      INDEX(INDIRECT(\"'\"&$B$1&\"'!A:G\"), ROW(E41), COLUMN(E41))=0,\n      INDEX(INDIRECT(\"'\"&$B$1&\"'!A:G\"), ROW(E41), COLUMN(E41))=\"\"\n   ),\n   \"\",\n   INDEX(INDIRECT(\"'\"&$B$1&\"'!A:G\"), ROW(E41), COLUMN(E41))\n),\n\"\")","v":""},{"$f":"IFERROR(\n   IF(OR(\n      INDEX(INDIRECT(\"'\"&$B$1&\"'!A:G\"), ROW(F41), COLUMN(F41))=0,\n      INDEX(INDIRECT(\"'\"&$B$1&\"'!A:G\"), ROW(F41), COLUMN(F41))=\"\"\n   ),\n   \"\",\n   INDEX(INDIRECT(\"'\"&$B$1&\"'!A:G\"), ROW(F41), COLUMN(F41))\n),\n\"\")","v":""},{"$f":"IFERROR(\n   IF(OR(\n      INDEX(INDIRECT(\"'\"&$B$1&\"'!A:G\"), ROW(G41), COLUMN(G41))=0,\n      INDEX(INDIRECT(\"'\"&$B$1&\"'!A:G\"), ROW(G41), COLUMN(G41))=\"\"\n   ),\n   \"\",\n   INDEX(INDIRECT(\"'\"&$B$1&\"'!A:G\"), ROW(G41), COLUMN(G41))\n),\n\"\")","v":""}]
[{"$f":"IFERROR(\n   IF(OR(\n      INDEX(INDIRECT(\"'\"&$B$1&\"'!A:G\"), ROW(A42), COLUMN(A42))=0,\n      INDEX(INDIRECT(\"'\"&$B$1&\"'!A:G\"), ROW(A42), COLUMN(A42))=\"\"\n   ),\n   \"\",\n   INDEX(INDIRECT(\"'\"&$B$1&\"'!A:G\"), ROW(A42), COLUMN(A42))\n),\n\"\")","v":""},{"$f":"IFERROR(\n   IF(OR(\n      INDEX(INDIRECT(\"'\"&$B$1&\"'!A:G\"), ROW(B42), COLUMN(B42))=0,\n      INDEX(INDIRECT(\"'\"&$B$1&\"'!A:G\"), ROW(B42), COLUMN(B42))=\"\"\n   ),\n   \"\",\n   INDEX(INDIRECT(\"'\"&$B$1&\"'!A:G\"), ROW(B42), COLUMN(B42))\n),\n\"\")","v":""},{"$f":"IFERROR(\n   IF(OR(\n      INDEX(INDIRECT(\"'\"&$B$1&\"'!A:G\"), ROW(C42), COLUMN(C42))=0,\n      INDEX(INDIRECT(\"'\"&$B$1&\"'!A:G\"), ROW(C42), COLUMN(C42))=\"\"\n   ),\n   \"\",\n   INDEX(INDIRECT(\"'\"&$B$1&\"'!A:G\"), ROW(C42), COLUMN(C42))\n),\n\"\")","v":""},{"$f":"IFERROR(\n   IF(OR(\n      INDEX(INDIRECT(\"'\"&$B$1&\"'!A:G\"), ROW(D42), COLUMN(D42))=0,\n      INDEX(INDIRECT(\"'\"&$B$1&\"'!A:G\"), ROW(D42), COLUMN(D42))=\"\"\n   ),\n   \"\",\n   INDEX(INDIRECT(\"'\"&$B$1&\"'!A:G\"), ROW(D42), COLUMN(D42))\n),\n\"\")","v":""},{"$f":"IFERROR(\n   IF(OR(\n      INDEX(INDIRECT(\"'\"&$B$1&\"'!A:G\"), ROW(E42), COLUMN(E42))=0,\n      INDEX(INDIRECT(\"'\"&$B$1&\"'!A:G\"), ROW(E42), COLUMN(E42))=\"\"\n   ),\n   \"\",\n   INDEX(INDIRECT(\"'\"&$B$1&\"'!A:G\"), ROW(E42), COLUMN(E42))\n),\n\"\")","v":""},{"$f":"IFERROR(\n   IF(OR(\n      INDEX(INDIRECT(\"'\"&$B$1&\"'!A:G\"), ROW(F42), COLUMN(F42))=0,\n      INDEX(INDIRECT(\"'\"&$B$1&\"'!A:G\"), ROW(F42), COLUMN(F42))=\"\"\n   ),\n   \"\",\n   INDEX(INDIRECT(\"'\"&$B$1&\"'!A:G\"), ROW(F42), COLUMN(F42))\n),\n\"\")","v":""},{"$f":"IFERROR(\n   IF(OR(\n      INDEX(INDIRECT(\"'\"&$B$1&\"'!A:G\"), ROW(G42), COLUMN(G42))=0,\n      INDEX(INDIRECT(\"'\"&$B$1&\"'!A:G\"), ROW(G42), COLUMN(G42))=\"\"\n   ),\n   \"\",\n   INDEX(INDIRECT(\"'\"&$B$1&\"'!A:G\"), ROW(G42), COLUMN(G42))\n),\n\"\")","v":""}]
[{"$f":"IFERROR(\n   IF(OR(\n      INDEX(INDIRECT(\"'\"&$B$1&\"'!A:G\"), ROW(A43), COLUMN(A43))=0,\n      INDEX(INDIRECT(\"'\"&$B$1&\"'!A:G\"), ROW(A43), COLUMN(A43))=\"\"\n   ),\n   \"\",\n   INDEX(INDIRECT(\"'\"&$B$1&\"'!A:G\"), ROW(A43), COLUMN(A43))\n),\n\"\")","v":""},{"$f":"IFERROR(\n   IF(OR(\n      INDEX(INDIRECT(\"'\"&$B$1&\"'!A:G\"), ROW(B43), COLUMN(B43))=0,\n      INDEX(INDIRECT(\"'\"&$B$1&\"'!A:G\"), ROW(B43), COLUMN(B43))=\"\"\n   ),\n   \"\",\n   INDEX(INDIRECT(\"'\"&$B$1&\"'!A:G\"), ROW(B43), COLUMN(B43))\n),\n\"\")","v":""},{"$f":"IFERROR(\n   IF(OR(\n      INDEX(INDIRECT(\"'\"&$B$1&\"'!A:G\"), ROW(C43), COLUMN(C43))=0,\n      INDEX(INDIRECT(\"'\"&$B$1&\"'!A:G\"), ROW(C43), COLUMN(C43))=\"\"\n   ),\n   \"\",\n   INDEX(INDIRECT(\"'\"&$B$1&\"'!A:G\"), ROW(C43), COLUMN(C43))\n),\n\"\")","v":""},{"$f":"IFERROR(\n   IF(OR(\n      INDEX(INDIRECT(\"'\"&$B$1&\"'!A:G\"), ROW(D43), COLUMN(D43))=0,\n      INDEX(INDIRECT(\"'\"&$B$1&\"'!A:G\"), ROW(D43), COLUMN(D43))=\"\"\n   ),\n   \"\",\n   INDEX(INDIRECT(\"'\"&$B$1&\"'!A:G\"), ROW(D43), COLUMN(D43))\n),\n\"\")","v":""},{"$f":"IFERROR(\n   IF(OR(\n      INDEX(INDIRECT(\"'\"&$B$1&\"'!A:G\"), ROW(E43), COLUMN(E43))=0,\n      INDEX(INDIRECT(\"'\"&$B$1&\"'!A:G\"), ROW(E43), COLUMN(E43))=\"\"\n   ),\n   \"\",\n   INDEX(INDIRECT(\"'\"&$B$1&\"'!A:G\"), ROW(E43), COLUMN(E43))\n),\n\"\")","v":""},{"$f":"IFERROR(\n   IF(OR(\n      INDEX(INDIRECT(\"'\"&$B$1&\"'!A:G\"), ROW(F43), COLUMN(F43))=0,\n      INDEX(INDIRECT(\"'\"&$B$1&\"'!A:G\"), ROW(F43), COLUMN(F43))=\"\"\n   ),\n   \"\",\n   INDEX(INDIRECT(\"'\"&$B$1&\"'!A:G\"), ROW(F43), COLUMN(F43))\n),\n\"\")","v":""},{"$f":"IFERROR(\n   IF(OR(\n      INDEX(INDIRECT(\"'\"&$B$1&\"'!A:G\"), ROW(G43), COLUMN(G43))=0,\n      INDEX(INDIRECT(\"'\"&$B$1&\"'!A:G\"), ROW(G43), COLUMN(G43))=\"\"\n   ),\n   \"\",\n   INDEX(INDIRECT(\"'\"&$B$1&\"'!A:G\"), ROW(G43), COLUMN(G43))\n),\n\"\")","v":""}]
[{"$f":"IFERROR(\n   IF(OR(\n      INDEX(INDIRECT(\"'\"&$B$1&\"'!A:G\"), ROW(A44), COLUMN(A44))=0,\n      INDEX(INDIRECT(\"'\"&$B$1&\"'!A:G\"), ROW(A44), COLUMN(A44))=\"\"\n   ),\n   \"\",\n   INDEX(INDIRECT(\"'\"&$B$1&\"'!A:G\"), ROW(A44), COLUMN(A44))\n),\n\"\")","v":""},{"$f":"IFERROR(\n   IF(OR(\n      INDEX(INDIRECT(\"'\"&$B$1&\"'!A:G\"), ROW(B44), COLUMN(B44))=0,\n      INDEX(INDIRECT(\"'\"&$B$1&\"'!A:G\"), ROW(B44), COLUMN(B44))=\"\"\n   ),\n   \"\",\n   INDEX(INDIRECT(\"'\"&$B$1&\"'!A:G\"), ROW(B44), COLUMN(B44))\n),\n\"\")","v":""},{"$f":"IFERROR(\n   IF(OR(\n      INDEX(INDIRECT(\"'\"&$B$1&\"'!A:G\"), ROW(C44), COLUMN(C44))=0,\n      INDEX(INDIRECT(\"'\"&$B$1&\"'!A:G\"), ROW(C44), COLUMN(C44))=\"\"\n   ),\n   \"\",\n   INDEX(INDIRECT(\"'\"&$B$1&\"'!A:G\"), ROW(C44), COLUMN(C44))\n),\n\"\")","v":""},{"$f":"IFERROR(\n   IF(OR(\n      INDEX(INDIRECT(\"'\"&$B$1&\"'!A:G\"), ROW(D44), COLUMN(D44))=0,\n      INDEX(INDIRECT(\"'\"&$B$1&\"'!A:G\"), ROW(D44), COLUMN(D44))=\"\"\n   ),\n   \"\",\n   INDEX(INDIRECT(\"'\"&$B$1&\"'!A:G\"), ROW(D44), COLUMN(D44))\n),\n\"\")","v":""},{"$f":"IFERROR(\n   IF(OR(\n      INDEX(INDIRECT(\"'\"&$B$1&\"'!A:G\"), ROW(E44), COLUMN(E44))=0,\n      INDEX(INDIRECT(\"'\"&$B$1&\"'!A:G\"), ROW(E44), COLUMN(E44))=\"\"\n   ),\n   \"\",\n   INDEX(INDIRECT(\"'\"&$B$1&\"'!A:G\"), ROW(E44), COLUMN(E44))\n),\n\"\")","v":""},{"$f":"IFERROR(\n   IF(OR(\n      INDEX(INDIRECT(\"'\"&$B$1&\"'!A:G\"), ROW(F44), COLUMN(F44))=0,\n      INDEX(INDIRECT(\"'\"&$B$1&\"'!A:G\"), ROW(F44), COLUMN(F44))=\"\"\n   ),\n   \"\",\n   INDEX(INDIRECT(\"'\"&$B$1&\"'!A:G\"), ROW(F44), COLUMN(F44))\n),\n\"\")","v":""},{"$f":"IFERROR(\n   IF(OR(\n      INDEX(INDIRECT(\"'\"&$B$1&\"'!A:G\"), ROW(G44), COLUMN(G44))=0,\n      INDEX(INDIRECT(\"'\"&$B$1&\"'!A:G\"), ROW(G44), COLUMN(G44))=\"\"\n   ),\n   \"\",\n   INDEX(INDIRECT(\"'\"&$B$1&\"'!A:G\"), ROW(G44), COLUMN(G44))\n),\n\"\")","v":""}]
[{"$f":"IFERROR(\n   IF(OR(\n      INDEX(INDIRECT(\"'\"&$B$1&\"'!A:G\"), ROW(A45), COLUMN(A45))=0,\n      INDEX(INDIRECT(\"'\"&$B$1&\"'!A:G\"), ROW(A45), COLUMN(A45))=\"\"\n   ),\n   \"\",\n   INDEX(INDIRECT(\"'\"&$B$1&\"'!A:G\"), ROW(A45), COLUMN(A45))\n),\n\"\")","v":""},{"$f":"IFERROR(\n   IF(OR(\n      INDEX(INDIRECT(\"'\"&$B$1&\"'!A:G\"), ROW(B45), COLUMN(B45))=0,\n      INDEX(INDIRECT(\"'\"&$B$1&\"'!A:G\"), ROW(B45), COLUMN(B45))=\"\"\n   ),\n   \"\",\n   INDEX(INDIRECT(\"'\"&$B$1&\"'!A:G\"), ROW(B45), COLUMN(B45))\n),\n\"\")","v":""},{"$f":"IFERROR(\n   IF(OR(\n      INDEX(INDIRECT(\"'\"&$B$1&\"'!A:G\"), ROW(C45), COLUMN(C45))=0,\n      INDEX(INDIRECT(\"'\"&$B$1&\"'!A:G\"), ROW(C45), COLUMN(C45))=\"\"\n   ),\n   \"\",\n   INDEX(INDIRECT(\"'\"&$B$1&\"'!A:G\"), ROW(C45), COLUMN(C45))\n),\n\"\")","v":""},{"$f":"IFERROR(\n   IF(OR(\n      INDEX(INDIRECT(\"'\"&$B$1&\"'!A:G\"), ROW(D45), COLUMN(D45))=0,\n      INDEX(INDIRECT(\"'\"&$B$1&\"'!A:G\"), ROW(D45), COLUMN(D45))=\"\"\n   ),\n   \"\",\n   INDEX(INDIRECT(\"'\"&$B$1&\"'!A:G\"), ROW(D45), COLUMN(D45))\n),\n\"\")","v":""},{"$f":"IFERROR(\n   IF(OR(\n      INDEX(INDIRECT(\"'\"&$B$1&\"'!A:G\"), ROW(E45), COLUMN(E45))=0,\n      INDEX(INDIRECT(\"'\"&$B$1&\"'!A:G\"), ROW(E45), COLUMN(E45))=\"\"\n   ),\n   \"\",\n   INDEX(INDIRECT(\"'\"&$B$1&\"'!A:G\"), ROW(E45), COLUMN(E45))\n),\n\"\")","v":""},{"$f":"IFERROR(\n   IF(OR(\n      INDEX(INDIRECT(\"'\"&$B$1&\"'!A:G\"), ROW(F45), COLUMN(F45))=0,\n      INDEX(INDIRECT(\"'\"&$B$1&\"'!A:G\"), ROW(F45), COLUMN(F45))=\"\"\n   ),\n   \"\",\n   INDEX(INDIRECT(\"'\"&$B$1&\"'!A:G\"), ROW(F45), COLUMN(F45))\n),\n\"\")","v":""},{"$f":"IFERROR(\n   IF(OR(\n      INDEX(INDIRECT(\"'\"&$B$1&\"'!A:G\"), ROW(G45), COLUMN(G45))=0,\n      INDEX(INDIRECT(\"'\"&$B$1&\"'!A:G\"), ROW(G45), COLUMN(G45))=\"\"\n   ),\n   \"\",\n   INDEX(INDIRECT(\"'\"&$B$1&\"'!A:G\"), ROW(G45), COLUMN(G45))\n),\n\"\")","v":""}]
[{"$f":"IFERROR(\n   IF(OR(\n      INDEX(INDIRECT(\"'\"&$B$1&\"'!A:G\"), ROW(A46), COLUMN(A46))=0,\n      INDEX(INDIRECT(\"'\"&$B$1&\"'!A:G\"), ROW(A46), COLUMN(A46))=\"\"\n   ),\n   \"\",\n   INDEX(INDIRECT(\"'\"&$B$1&\"'!A:G\"), ROW(A46), COLUMN(A46))\n),\n\"\")","v":""},{"$f":"IFERROR(\n   IF(OR(\n      INDEX(INDIRECT(\"'\"&$B$1&\"'!A:G\"), ROW(B46), COLUMN(B46))=0,\n      INDEX(INDIRECT(\"'\"&$B$1&\"'!A:G\"), ROW(B46), COLUMN(B46))=\"\"\n   ),\n   \"\",\n   INDEX(INDIRECT(\"'\"&$B$1&\"'!A:G\"), ROW(B46), COLUMN(B46))\n),\n\"\")","v":""},{"$f":"IFERROR(\n   IF(OR(\n      INDEX(INDIRECT(\"'\"&$B$1&\"'!A:G\"), ROW(C46), COLUMN(C46))=0,\n      INDEX(INDIRECT(\"'\"&$B$1&\"'!A:G\"), ROW(C46), COLUMN(C46))=\"\"\n   ),\n   \"\",\n   INDEX(INDIRECT(\"'\"&$B$1&\"'!A:G\"), ROW(C46), COLUMN(C46))\n),\n\"\")","v":""},{"$f":"IFERROR(\n   IF(OR(\n      INDEX(INDIRECT(\"'\"&$B$1&\"'!A:G\"), ROW(D46), COLUMN(D46))=0,\n      INDEX(INDIRECT(\"'\"&$B$1&\"'!A:G\"), ROW(D46), COLUMN(D46))=\"\"\n   ),\n   \"\",\n   INDEX(INDIRECT(\"'\"&$B$1&\"'!A:G\"), ROW(D46), COLUMN(D46))\n),\n\"\")","v":""},{"$f":"IFERROR(\n   IF(OR(\n      INDEX(INDIRECT(\"'\"&$B$1&\"'!A:G\"), ROW(E46), COLUMN(E46))=0,\n      INDEX(INDIRECT(\"'\"&$B$1&\"'!A:G\"), ROW(E46), COLUMN(E46))=\"\"\n   ),\n   \"\",\n   INDEX(INDIRECT(\"'\"&$B$1&\"'!A:G\"), ROW(E46), COLUMN(E46))\n),\n\"\")","v":""},{"$f":"IFERROR(\n   IF(OR(\n      INDEX(INDIRECT(\"'\"&$B$1&\"'!A:G\"), ROW(F46), COLUMN(F46))=0,\n      INDEX(INDIRECT(\"'\"&$B$1&\"'!A:G\"), ROW(F46), COLUMN(F46))=\"\"\n   ),\n   \"\",\n   INDEX(INDIRECT(\"'\"&$B$1&\"'!A:G\"), ROW(F46), COLUMN(F46))\n),\n\"\")","v":""},{"$f":"IFERROR(\n   IF(OR(\n      INDEX(INDIRECT(\"'\"&$B$1&\"'!A:G\"), ROW(G46), COLUMN(G46))=0,\n      INDEX(INDIRECT(\"'\"&$B$1&\"'!A:G\"), ROW(G46), COLUMN(G46))=\"\"\n   ),\n   \"\",\n   INDEX(INDIRECT(\"'\"&$B$1&\"'!A:G\"), ROW(G46), COLUMN(G46))\n),\n\"\")","v":""}]
[{"$f":"IFERROR(\n   IF(OR(\n      INDEX(INDIRECT(\"'\"&$B$1&\"'!A:G\"), ROW(A47), COLUMN(A47))=0,\n      INDEX(INDIRECT(\"'\"&$B$1&\"'!A:G\"), ROW(A47), COLUMN(A47))=\"\"\n   ),\n   \"\",\n   INDEX(INDIRECT(\"'\"&$B$1&\"'!A:G\"), ROW(A47), COLUMN(A47))\n),\n\"\")","v":""},{"$f":"IFERROR(\n   IF(OR(\n      INDEX(INDIRECT(\"'\"&$B$1&\"'!A:G\"), ROW(B47), COLUMN(B47))=0,\n      INDEX(INDIRECT(\"'\"&$B$1&\"'!A:G\"), ROW(B47), COLUMN(B47))=\"\"\n   ),\n   \"\",\n   INDEX(INDIRECT(\"'\"&$B$1&\"'!A:G\"), ROW(B47), COLUMN(B47))\n),\n\"\")","v":""},{"$f":"IFERROR(\n   IF(OR(\n      INDEX(INDIRECT(\"'\"&$B$1&\"'!A:G\"), ROW(C47), COLUMN(C47))=0,\n      INDEX(INDIRECT(\"'\"&$B$1&\"'!A:G\"), ROW(C47), COLUMN(C47))=\"\"\n   ),\n   \"\",\n   INDEX(INDIRECT(\"'\"&$B$1&\"'!A:G\"), ROW(C47), COLUMN(C47))\n),\n\"\")","v":""},{"$f":"IFERROR(\n   IF(OR(\n      INDEX(INDIRECT(\"'\"&$B$1&\"'!A:G\"), ROW(D47), COLUMN(D47))=0,\n      INDEX(INDIRECT(\"'\"&$B$1&\"'!A:G\"), ROW(D47), COLUMN(D47))=\"\"\n   ),\n   \"\",\n   INDEX(INDIRECT(\"'\"&$B$1&\"'!A:G\"), ROW(D47), COLUMN(D47))\n),\n\"\")","v":""},{"$f":"IFERROR(\n   IF(OR(\n      INDEX(INDIRECT(\"'\"&$B$1&\"'!A:G\"), ROW(E47), COLUMN(E47))=0,\n      INDEX(INDIRECT(\"'\"&$B$1&\"'!A:G\"), ROW(E47), COLUMN(E47))=\"\"\n   ),\n   \"\",\n   INDEX(INDIRECT(\"'\"&$B$1&\"'!A:G\"), ROW(E47), COLUMN(E47))\n),\n\"\")","v":""},{"$f":"IFERROR(\n   IF(OR(\n      INDEX(INDIRECT(\"'\"&$B$1&\"'!A:G\"), ROW(F47), COLUMN(F47))=0,\n      INDEX(INDIRECT(\"'\"&$B$1&\"'!A:G\"), ROW(F47), COLUMN(F47))=\"\"\n   ),\n   \"\",\n   INDEX(INDIRECT(\"'\"&$B$1&\"'!A:G\"), ROW(F47), COLUMN(F47))\n),\n\"\")","v":""},{"$f":"IFERROR(\n   IF(OR(\n      INDEX(INDIRECT(\"'\"&$B$1&\"'!A:G\"), ROW(G47), COLUMN(G47))=0,\n      INDEX(INDIRECT(\"'\"&$B$1&\"'!A:G\"), ROW(G47), COLUMN(G47))=\"\"\n   ),\n   \"\",\n   INDEX(INDIRECT(\"'\"&$B$1&\"'!A:G\"), ROW(G47), COLUMN(G47))\n),\n\"\")","v":""}]
[{"$f":"IFERROR(\n   IF(OR(\n      INDEX(INDIRECT(\"'\"&$B$1&\"'!A:G\"), ROW(A48), COLUMN(A48))=0,\n      INDEX(INDIRECT(\"'\"&$B$1&\"'!A:G\"), ROW(A48), COLUMN(A48))=\"\"\n   ),\n   \"\",\n   INDEX(INDIRECT(\"'\"&$B$1&\"'!A:G\"), ROW(A48), COLUMN(A48))\n),\n\"\")","v":""},{"$f":"IFERROR(\n   IF(OR(\n      INDEX(INDIRECT(\"'\"&$B$1&\"'!A:G\"), ROW(B48), COLUMN(B48))=0,\n      INDEX(INDIRECT(\"'\"&$B$1&\"'!A:G\"), ROW(B48), COLUMN(B48))=\"\"\n   ),\n   \"\",\n   INDEX(INDIRECT(\"'\"&$B$1&\"'!A:G\"), ROW(B48), COLUMN(B48))\n),\n\"\")","v":""},{"$f":"IFERROR(\n   IF(OR(\n      INDEX(INDIRECT(\"'\"&$B$1&\"'!A:G\"), ROW(C48), COLUMN(C48))=0,\n      INDEX(INDIRECT(\"'\"&$B$1&\"'!A:G\"), ROW(C48), COLUMN(C48))=\"\"\n   ),\n   \"\",\n   INDEX(INDIRECT(\"'\"&$B$1&\"'!A:G\"), ROW(C48), COLUMN(C48))\n),\n\"\")","v":""},{"$f":"IFERROR(\n   IF(OR(\n      INDEX(INDIRECT(\"'\"&$B$1&\"'!A:G\"), ROW(D48), COLUMN(D48))=0,\n      INDEX(INDIRECT(\"'\"&$B$1&\"'!A:G\"), ROW(D48), COLUMN(D48))=\"\"\n   ),\n   \"\",\n   INDEX(INDIRECT(\"'\"&$B$1&\"'!A:G\"), ROW(D48), COLUMN(D48))\n),\n\"\")","v":""},{"$f":"IFERROR(\n   IF(OR(\n      INDEX(INDIRECT(\"'\"&$B$1&\"'!A:G\"), ROW(E48), COLUMN(E48))=0,\n      INDEX(INDIRECT(\"'\"&$B$1&\"'!A:G\"), ROW(E48), COLUMN(E48))=\"\"\n   ),\n   \"\",\n   INDEX(INDIRECT(\"'\"&$B$1&\"'!A:G\"), ROW(E48), COLUMN(E48))\n),\n\"\")","v":""},{"$f":"IFERROR(\n   IF(OR(\n      INDEX(INDIRECT(\"'\"&$B$1&\"'!A:G\"), ROW(F48), COLUMN(F48))=0,\n      INDEX(INDIRECT(\"'\"&$B$1&\"'!A:G\"), ROW(F48), COLUMN(F48))=\"\"\n   ),\n   \"\",\n   INDEX(INDIRECT(\"'\"&$B$1&\"'!A:G\"), ROW(F48), COLUMN(F48))\n),\n\"\")","v":""},{"$f":"IFERROR(\n   IF(OR(\n      INDEX(INDIRECT(\"'\"&$B$1&\"'!A:G\"), ROW(G48), COLUMN(G48))=0,\n      INDEX(INDIRECT(\"'\"&$B$1&\"'!A:G\"), ROW(G48), COLUMN(G48))=\"\"\n   ),\n   \"\",\n   INDEX(INDIRECT(\"'\"&$B$1&\"'!A:G\"), ROW(G48), COLUMN(G48))\n),\n\"\")","v":""}]
[{"$f":"IFERROR(\n   IF(OR(\n      INDEX(INDIRECT(\"'\"&$B$1&\"'!A:G\"), ROW(A49), COLUMN(A49))=0,\n      INDEX(INDIRECT(\"'\"&$B$1&\"'!A:G\"), ROW(A49), COLUMN(A49))=\"\"\n   ),\n   \"\",\n   INDEX(INDIRECT(\"'\"&$B$1&\"'!A:G\"), ROW(A49), COLUMN(A49))\n),\n\"\")","v":""},{"$f":"IFERROR(\n   IF(OR(\n      INDEX(INDIRECT(\"'\"&$B$1&\"'!A:G\"), ROW(B49), COLUMN(B49))=0,\n      INDEX(INDIRECT(\"'\"&$B$1&\"'!A:G\"), ROW(B49), COLUMN(B49))=\"\"\n   ),\n   \"\",\n   INDEX(INDIRECT(\"'\"&$B$1&\"'!A:G\"), ROW(B49), COLUMN(B49))\n),\n\"\")","v":""},{"$f":"IFERROR(\n   IF(OR(\n      INDEX(INDIRECT(\"'\"&$B$1&\"'!A:G\"), ROW(C49), COLUMN(C49))=0,\n      INDEX(INDIRECT(\"'\"&$B$1&\"'!A:G\"), ROW(C49), COLUMN(C49))=\"\"\n   ),\n   \"\",\n   INDEX(INDIRECT(\"'\"&$B$1&\"'!A:G\"), ROW(C49), COLUMN(C49))\n),\n\"\")","v":""},{"$f":"IFERROR(\n   IF(OR(\n      INDEX(INDIRECT(\"'\"&$B$1&\"'!A:G\"), ROW(D49), COLUMN(D49))=0,\n      INDEX(INDIRECT(\"'\"&$B$1&\"'!A:G\"), ROW(D49), COLUMN(D49))=\"\"\n   ),\n   \"\",\n   INDEX(INDIRECT(\"'\"&$B$1&\"'!A:G\"), ROW(D49), COLUMN(D49))\n),\n\"\")","v":""},{"$f":"IFERROR(\n   IF(OR(\n      INDEX(INDIRECT(\"'\"&$B$1&\"'!A:G\"), ROW(E49), COLUMN(E49))=0,\n      INDEX(INDIRECT(\"'\"&$B$1&\"'!A:G\"), ROW(E49), COLUMN(E49))=\"\"\n   ),\n   \"\",\n   INDEX(INDIRECT(\"'\"&$B$1&\"'!A:G\"), ROW(E49), COLUMN(E49))\n),\n\"\")","v":""},{"$f":"IFERROR(\n   IF(OR(\n      INDEX(INDIRECT(\"'\"&$B$1&\"'!A:G\"), ROW(F49), COLUMN(F49))=0,\n      INDEX(INDIRECT(\"'\"&$B$1&\"'!A:G\"), ROW(F49), COLUMN(F49))=\"\"\n   ),\n   \"\",\n   INDEX(INDIRECT(\"'\"&$B$1&\"'!A:G\"), ROW(F49), COLUMN(F49))\n),\n\"\")","v":""},{"$f":"IFERROR(\n   IF(OR(\n      INDEX(INDIRECT(\"'\"&$B$1&\"'!A:G\"), ROW(G49), COLUMN(G49))=0,\n      INDEX(INDIRECT(\"'\"&$B$1&\"'!A:G\"), ROW(G49), COLUMN(G49))=\"\"\n   ),\n   \"\",\n   INDEX(INDIRECT(\"'\"&$B$1&\"'!A:G\"), ROW(G49), COLUMN(G49))\n),\n\"\")","v":""}]
[{"$f":"IFERROR(\n   IF(OR(\n      INDEX(INDIRECT(\"'\"&$B$1&\"'!A:G\"), ROW(A50), COLUMN(A50))=0,\n      INDEX(INDIRECT(\"'\"&$B$1&\"'!A:G\"), ROW(A50), COLUMN(A50))=\"\"\n   ),\n   \"\",\n   INDEX(INDIRECT(\"'\"&$B$1&\"'!A:G\"), ROW(A50), COLUMN(A50))\n),\n\"\")","v":""},{"$f":"IFERROR(\n   IF(OR(\n      INDEX(INDIRECT(\"'\"&$B$1&\"'!A:G\"), ROW(B50), COLUMN(B50))=0,\n      INDEX(INDIRECT(\"'\"&$B$1&\"'!A:G\"), ROW(B50), COLUMN(B50))=\"\"\n   ),\n   \"\",\n   INDEX(INDIRECT(\"'\"&$B$1&\"'!A:G\"), ROW(B50), COLUMN(B50))\n),\n\"\")","v":""},{"$f":"IFERROR(\n   IF(OR(\n      INDEX(INDIRECT(\"'\"&$B$1&\"'!A:G\"), ROW(C50), COLUMN(C50))=0,\n      INDEX(INDIRECT(\"'\"&$B$1&\"'!A:G\"), ROW(C50), COLUMN(C50))=\"\"\n   ),\n   \"\",\n   INDEX(INDIRECT(\"'\"&$B$1&\"'!A:G\"), ROW(C50), COLUMN(C50))\n),\n\"\")","v":""},{"$f":"IFERROR(\n   IF(OR(\n      INDEX(INDIRECT(\"'\"&$B$1&\"'!A:G\"), ROW(D50), COLUMN(D50))=0,\n      INDEX(INDIRECT(\"'\"&$B$1&\"'!A:G\"), ROW(D50), COLUMN(D50))=\"\"\n   ),\n   \"\",\n   INDEX(INDIRECT(\"'\"&$B$1&\"'!A:G\"), ROW(D50), COLUMN(D50))\n),\n\"\")","v":""},{"$f":"IFERROR(\n   IF(OR(\n      INDEX(INDIRECT(\"'\"&$B$1&\"'!A:G\"), ROW(E50), COLUMN(E50))=0,\n      INDEX(INDIRECT(\"'\"&$B$1&\"'!A:G\"), ROW(E50), COLUMN(E50))=\"\"\n   ),\n   \"\",\n   INDEX(INDIRECT(\"'\"&$B$1&\"'!A:G\"), ROW(E50), COLUMN(E50))\n),\n\"\")","v":""},{"$f":"IFERROR(\n   IF(OR(\n      INDEX(INDIRECT(\"'\"&$B$1&\"'!A:G\"), ROW(F50), COLUMN(F50))=0,\n      INDEX(INDIRECT(\"'\"&$B$1&\"'!A:G\"), ROW(F50), COLUMN(F50))=\"\"\n   ),\n   \"\",\n   INDEX(INDIRECT(\"'\"&$B$1&\"'!A:G\"), ROW(F50), COLUMN(F50))\n),\n\"\")","v":""},{"$f":"IFERROR(\n   IF(OR(\n      INDEX(INDIRECT(\"'\"&$B$1&\"'!A:G\"), ROW(G50), COLUMN(G50))=0,\n      INDEX(INDIRECT(\"'\"&$B$1&\"'!A:G\"), ROW(G50), COLUMN(G50))=\"\"\n   ),\n   \"\",\n   INDEX(INDIRECT(\"'\"&$B$1&\"'!A:G\"), ROW(G50), COLUMN(G50))\n),\n\"\")","v":""}]
[{"$f":"IFERROR(\n   IF(OR(\n      INDEX(INDIRECT(\"'\"&$B$1&\"'!A:G\"), ROW(A51), COLUMN(A51))=0,\n      INDEX(INDIRECT(\"'\"&$B$1&\"'!A:G\"), ROW(A51), COLUMN(A51))=\"\"\n   ),\n   \"\",\n   INDEX(INDIRECT(\"'\"&$B$1&\"'!A:G\"), ROW(A51), COLUMN(A51))\n),\n\"\")","v":""},{"$f":"IFERROR(\n   IF(OR(\n      INDEX(INDIRECT(\"'\"&$B$1&\"'!A:G\"), ROW(B51), COLUMN(B51))=0,\n      INDEX(INDIRECT(\"'\"&$B$1&\"'!A:G\"), ROW(B51), COLUMN(B51))=\"\"\n   ),\n   \"\",\n   INDEX(INDIRECT(\"'\"&$B$1&\"'!A:G\"), ROW(B51), COLUMN(B51))\n),\n\"\")","v":""},{"$f":"IFERROR(\n   IF(OR(\n      INDEX(INDIRECT(\"'\"&$B$1&\"'!A:G\"), ROW(C51), COLUMN(C51))=0,\n      INDEX(INDIRECT(\"'\"&$B$1&\"'!A:G\"), ROW(C51), COLUMN(C51))=\"\"\n   ),\n   \"\",\n   INDEX(INDIRECT(\"'\"&$B$1&\"'!A:G\"), ROW(C51), COLUMN(C51))\n),\n\"\")","v":""},{"$f":"IFERROR(\n   IF(OR(\n      INDEX(INDIRECT(\"'\"&$B$1&\"'!A:G\"), ROW(D51), COLUMN(D51))=0,\n      INDEX(INDIRECT(\"'\"&$B$1&\"'!A:G\"), ROW(D51), COLUMN(D51))=\"\"\n   ),\n   \"\",\n   INDEX(INDIRECT(\"'\"&$B$1&\"'!A:G\"), ROW(D51), COLUMN(D51))\n),\n\"\")","v":""},{"$f":"IFERROR(\n   IF(OR(\n      INDEX(INDIRECT(\"'\"&$B$1&\"'!A:G\"), ROW(E51), COLUMN(E51))=0,\n      INDEX(INDIRECT(\"'\"&$B$1&\"'!A:G\"), ROW(E51), COLUMN(E51))=\"\"\n   ),\n   \"\",\n   INDEX(INDIRECT(\"'\"&$B$1&\"'!A:G\"), ROW(E51), COLUMN(E51))\n),\n\"\")","v":""},{"$f":"IFERROR(\n   IF(OR(\n      INDEX(INDIRECT(\"'\"&$B$1&\"'!A:G\"), ROW(F51), COLUMN(F51))=0,\n      INDEX(INDIRECT(\"'\"&$B$1&\"'!A:G\"), ROW(F51), COLUMN(F51))=\"\"\n   ),\n   \"\",\n   INDEX(INDIRECT(\"'\"&$B$1&\"'!A:G\"), ROW(F51), COLUMN(F51))\n),\n\"\")","v":""},{"$f":"IFERROR(\n   IF(OR(\n      INDEX(INDIRECT(\"'\"&$B$1&\"'!A:G\"), ROW(G51), COLUMN(G51))=0,\n      INDEX(INDIRECT(\"'\"&$B$1&\"'!A:G\"), ROW(G51), COLUMN(G51))=\"\"\n   ),\n   \"\",\n   INDEX(INDIRECT(\"'\"&$B$1&\"'!A:G\"), ROW(G51), COLUMN(G51))\n),\n\"\")","v":""}]
[{"$f":"IFERROR(\n   IF(OR(\n      INDEX(INDIRECT(\"'\"&$B$1&\"'!A:G\"), ROW(A52), COLUMN(A52))=0,\n      INDEX(INDIRECT(\"'\"&$B$1&\"'!A:G\"), ROW(A52), COLUMN(A52))=\"\"\n   ),\n   \"\",\n   INDEX(INDIRECT(\"'\"&$B$1&\"'!A:G\"), ROW(A52), COLUMN(A52))\n),\n\"\")","v":""},{"$f":"IFERROR(\n   IF(OR(\n      INDEX(INDIRECT(\"'\"&$B$1&\"'!A:G\"), ROW(B52), COLUMN(B52))=0,\n      INDEX(INDIRECT(\"'\"&$B$1&\"'!A:G\"), ROW(B52), COLUMN(B52))=\"\"\n   ),\n   \"\",\n   INDEX(INDIRECT(\"'\"&$B$1&\"'!A:G\"), ROW(B52), COLUMN(B52))\n),\n\"\")","v":""},{"$f":"IFERROR(\n   IF(OR(\n      INDEX(INDIRECT(\"'\"&$B$1&\"'!A:G\"), ROW(C52), COLUMN(C52))=0,\n      INDEX(INDIRECT(\"'\"&$B$1&\"'!A:G\"), ROW(C52), COLUMN(C52))=\"\"\n   ),\n   \"\",\n   INDEX(INDIRECT(\"'\"&$B$1&\"'!A:G\"), ROW(C52), COLUMN(C52))\n),\n\"\")","v":""},{"$f":"IFERROR(\n   IF(OR(\n      INDEX(INDIRECT(\"'\"&$B$1&\"'!A:G\"), ROW(D52), COLUMN(D52))=0,\n      INDEX(INDIRECT(\"'\"&$B$1&\"'!A:G\"), ROW(D52), COLUMN(D52))=\"\"\n   ),\n   \"\",\n   INDEX(INDIRECT(\"'\"&$B$1&\"'!A:G\"), ROW(D52), COLUMN(D52))\n),\n\"\")","v":""},{"$f":"IFERROR(\n   IF(OR(\n      INDEX(INDIRECT(\"'\"&$B$1&\"'!A:G\"), ROW(E52), COLUMN(E52))=0,\n      INDEX(INDIRECT(\"'\"&$B$1&\"'!A:G\"), ROW(E52), COLUMN(E52))=\"\"\n   ),\n   \"\",\n   INDEX(INDIRECT(\"'\"&$B$1&\"'!A:G\"), ROW(E52), COLUMN(E52))\n),\n\"\")","v":""},{"$f":"IFERROR(\n   IF(OR(\n      INDEX(INDIRECT(\"'\"&$B$1&\"'!A:G\"), ROW(F52), COLUMN(F52))=0,\n      INDEX(INDIRECT(\"'\"&$B$1&\"'!A:G\"), ROW(F52), COLUMN(F52))=\"\"\n   ),\n   \"\",\n   INDEX(INDIRECT(\"'\"&$B$1&\"'!A:G\"), ROW(F52), COLUMN(F52))\n),\n\"\")","v":""},{"$f":"IFERROR(\n   IF(OR(\n      INDEX(INDIRECT(\"'\"&$B$1&\"'!A:G\"), ROW(G52), COLUMN(G52))=0,\n      INDEX(INDIRECT(\"'\"&$B$1&\"'!A:G\"), ROW(G52), COLUMN(G52))=\"\"\n   ),\n   \"\",\n   INDEX(INDIRECT(\"'\"&$B$1&\"'!A:G\"), ROW(G52), COLUMN(G52))\n),\n\"\")","v":""}]
[{"$f":"IFERROR(\n   IF(OR(\n      INDEX(INDIRECT(\"'\"&$B$1&\"'!A:G\"), ROW(A53), COLUMN(A53))=0,\n      INDEX(INDIRECT(\"'\"&$B$1&\"'!A:G\"), ROW(A53), COLUMN(A53))=\"\"\n   ),\n   \"\",\n   INDEX(INDIRECT(\"'\"&$B$1&\"'!A:G\"), ROW(A53), COLUMN(A53))\n),\n\"\")","v":""},{"$f":"IFERROR(\n   IF(OR(\n      INDEX(INDIRECT(\"'\"&$B$1&\"'!A:G\"), ROW(B53), COLUMN(B53))=0,\n      INDEX(INDIRECT(\"'\"&$B$1&\"'!A:G\"), ROW(B53), COLUMN(B53))=\"\"\n   ),\n   \"\",\n   INDEX(INDIRECT(\"'\"&$B$1&\"'!A:G\"), ROW(B53), COLUMN(B53))\n),\n\"\")","v":""},{"$f":"IFERROR(\n   IF(OR(\n      INDEX(INDIRECT(\"'\"&$B$1&\"'!A:G\"), ROW(C53), COLUMN(C53))=0,\n      INDEX(INDIRECT(\"'\"&$B$1&\"'!A:G\"), ROW(C53), COLUMN(C53))=\"\"\n   ),\n   \"\",\n   INDEX(INDIRECT(\"'\"&$B$1&\"'!A:G\"), ROW(C53), COLUMN(C53))\n),\n\"\")","v":""},{"$f":"IFERROR(\n   IF(OR(\n      INDEX(INDIRECT(\"'\"&$B$1&\"'!A:G\"), ROW(D53), COLUMN(D53))=0,\n      INDEX(INDIRECT(\"'\"&$B$1&\"'!A:G\"), ROW(D53), COLUMN(D53))=\"\"\n   ),\n   \"\",\n   INDEX(INDIRECT(\"'\"&$B$1&\"'!A:G\"), ROW(D53), COLUMN(D53))\n),\n\"\")","v":""},{"$f":"IFERROR(\n   IF(OR(\n      INDEX(INDIRECT(\"'\"&$B$1&\"'!A:G\"), ROW(E53), COLUMN(E53))=0,\n      INDEX(INDIRECT(\"'\"&$B$1&\"'!A:G\"), ROW(E53), COLUMN(E53))=\"\"\n   ),\n   \"\",\n   INDEX(INDIRECT(\"'\"&$B$1&\"'!A:G\"), ROW(E53), COLUMN(E53))\n),\n\"\")","v":""},{"$f":"IFERROR(\n   IF(OR(\n      INDEX(INDIRECT(\"'\"&$B$1&\"'!A:G\"), ROW(F53), COLUMN(F53))=0,\n      INDEX(INDIRECT(\"'\"&$B$1&\"'!A:G\"), ROW(F53), COLUMN(F53))=\"\"\n   ),\n   \"\",\n   INDEX(INDIRECT(\"'\"&$B$1&\"'!A:G\"), ROW(F53), COLUMN(F53))\n),\n\"\")","v":""},{"$f":"IFERROR(\n   IF(OR(\n      INDEX(INDIRECT(\"'\"&$B$1&\"'!A:G\"), ROW(G53), COLUMN(G53))=0,\n      INDEX(INDIRECT(\"'\"&$B$1&\"'!A:G\"), ROW(G53), COLUMN(G53))=\"\"\n   ),\n   \"\",\n   INDEX(INDIRECT(\"'\"&$B$1&\"'!A:G\"), ROW(G53), COLUMN(G53))\n),\n\"\")","v":""}]
[{"$f":"IFERROR(\n   IF(OR(\n      INDEX(INDIRECT(\"'\"&$B$1&\"'!A:G\"), ROW(A54), COLUMN(A54))=0,\n      INDEX(INDIRECT(\"'\"&$B$1&\"'!A:G\"), ROW(A54), COLUMN(A54))=\"\"\n   ),\n   \"\",\n   INDEX(INDIRECT(\"'\"&$B$1&\"'!A:G\"), ROW(A54), COLUMN(A54))\n),\n\"\")","v":""},{"$f":"IFERROR(\n   IF(OR(\n      INDEX(INDIRECT(\"'\"&$B$1&\"'!A:G\"), ROW(B54), COLUMN(B54))=0,\n      INDEX(INDIRECT(\"'\"&$B$1&\"'!A:G\"), ROW(B54), COLUMN(B54))=\"\"\n   ),\n   \"\",\n   INDEX(INDIRECT(\"'\"&$B$1&\"'!A:G\"), ROW(B54), COLUMN(B54))\n),\n\"\")","v":""},{"$f":"IFERROR(\n   IF(OR(\n      INDEX(INDIRECT(\"'\"&$B$1&\"'!A:G\"), ROW(C54), COLUMN(C54))=0,\n      INDEX(INDIRECT(\"'\"&$B$1&\"'!A:G\"), ROW(C54), COLUMN(C54))=\"\"\n   ),\n   \"\",\n   INDEX(INDIRECT(\"'\"&$B$1&\"'!A:G\"), ROW(C54), COLUMN(C54))\n),\n\"\")","v":""},{"$f":"IFERROR(\n   IF(OR(\n      INDEX(INDIRECT(\"'\"&$B$1&\"'!A:G\"), ROW(D54), COLUMN(D54))=0,\n      INDEX(INDIRECT(\"'\"&$B$1&\"'!A:G\"), ROW(D54), COLUMN(D54))=\"\"\n   ),\n   \"\",\n   INDEX(INDIRECT(\"'\"&$B$1&\"'!A:G\"), ROW(D54), COLUMN(D54))\n),\n\"\")","v":""},{"$f":"IFERROR(\n   IF(OR(\n      INDEX(INDIRECT(\"'\"&$B$1&\"'!A:G\"), ROW(E54), COLUMN(E54))=0,\n      INDEX(INDIRECT(\"'\"&$B$1&\"'!A:G\"), ROW(E54), COLUMN(E54))=\"\"\n   ),\n   \"\",\n   INDEX(INDIRECT(\"'\"&$B$1&\"'!A:G\"), ROW(E54), COLUMN(E54))\n),\n\"\")","v":""},{"$f":"IFERROR(\n   IF(OR(\n      INDEX(INDIRECT(\"'\"&$B$1&\"'!A:G\"), ROW(F54), COLUMN(F54))=0,\n      INDEX(INDIRECT(\"'\"&$B$1&\"'!A:G\"), ROW(F54), COLUMN(F54))=\"\"\n   ),\n   \"\",\n   INDEX(INDIRECT(\"'\"&$B$1&\"'!A:G\"), ROW(F54), COLUMN(F54))\n),\n\"\")","v":""},{"$f":"IFERROR(\n   IF(OR(\n      INDEX(INDIRECT(\"'\"&$B$1&\"'!A:G\"), ROW(G54), COLUMN(G54))=0,\n      INDEX(INDIRECT(\"'\"&$B$1&\"'!A:G\"), ROW(G54), COLUMN(G54))=\"\"\n   ),\n   \"\",\n   INDEX(INDIRECT(\"'\"&$B$1&\"'!A:G\"), ROW(G54), COLUMN(G54))\n),\n\"\")","v":""}]
[{"$f":"IFERROR(\n   IF(OR(\n      INDEX(INDIRECT(\"'\"&$B$1&\"'!A:G\"), ROW(A55), COLUMN(A55))=0,\n      INDEX(INDIRECT(\"'\"&$B$1&\"'!A:G\"), ROW(A55), COLUMN(A55))=\"\"\n   ),\n   \"\",\n   INDEX(INDIRECT(\"'\"&$B$1&\"'!A:G\"), ROW(A55), COLUMN(A55))\n),\n\"\")","v":""},{"$f":"IFERROR(\n   IF(OR(\n      INDEX(INDIRECT(\"'\"&$B$1&\"'!A:G\"), ROW(B55), COLUMN(B55))=0,\n      INDEX(INDIRECT(\"'\"&$B$1&\"'!A:G\"), ROW(B55), COLUMN(B55))=\"\"\n   ),\n   \"\",\n   INDEX(INDIRECT(\"'\"&$B$1&\"'!A:G\"), ROW(B55), COLUMN(B55))\n),\n\"\")","v":""},{"$f":"IFERROR(\n   IF(OR(\n      INDEX(INDIRECT(\"'\"&$B$1&\"'!A:G\"), ROW(C55), COLUMN(C55))=0,\n      INDEX(INDIRECT(\"'\"&$B$1&\"'!A:G\"), ROW(C55), COLUMN(C55))=\"\"\n   ),\n   \"\",\n   INDEX(INDIRECT(\"'\"&$B$1&\"'!A:G\"), ROW(C55), COLUMN(C55))\n),\n\"\")","v":""},{"$f":"IFERROR(\n   IF(OR(\n      INDEX(INDIRECT(\"'\"&$B$1&\"'!A:G\"), ROW(D55), COLUMN(D55))=0,\n      INDEX(INDIRECT(\"'\"&$B$1&\"'!A:G\"), ROW(D55), COLUMN(D55))=\"\"\n   ),\n   \"\",\n   INDEX(INDIRECT(\"'\"&$B$1&\"'!A:G\"), ROW(D55), COLUMN(D55))\n),\n\"\")","v":""},{"$f":"IFERROR(\n   IF(OR(\n      INDEX(INDIRECT(\"'\"&$B$1&\"'!A:G\"), ROW(E55), COLUMN(E55))=0,\n      INDEX(INDIRECT(\"'\"&$B$1&\"'!A:G\"), ROW(E55), COLUMN(E55))=\"\"\n   ),\n   \"\",\n   INDEX(INDIRECT(\"'\"&$B$1&\"'!A:G\"), ROW(E55), COLUMN(E55))\n),\n\"\")","v":""},{"$f":"IFERROR(\n   IF(OR(\n      INDEX(INDIRECT(\"'\"&$B$1&\"'!A:G\"), ROW(F55), COLUMN(F55))=0,\n      INDEX(INDIRECT(\"'\"&$B$1&\"'!A:G\"), ROW(F55), COLUMN(F55))=\"\"\n   ),\n   \"\",\n   INDEX(INDIRECT(\"'\"&$B$1&\"'!A:G\"), ROW(F55), COLUMN(F55))\n),\n\"\")","v":""},{"$f":"IFERROR(\n   IF(OR(\n      INDEX(INDIRECT(\"'\"&$B$1&\"'!A:G\"), ROW(G55), COLUMN(G55))=0,\n      INDEX(INDIRECT(\"'\"&$B$1&\"'!A:G\"), ROW(G55), COLUMN(G55))=\"\"\n   ),\n   \"\",\n   INDEX(INDIRECT(\"'\"&$B$1&\"'!A:G\"), ROW(G55), COLUMN(G55))\n),\n\"\")","v":""}]
[{"$f":"IFERROR(\n   IF(OR(\n      INDEX(INDIRECT(\"'\"&$B$1&\"'!A:G\"), ROW(A56), COLUMN(A56))=0,\n      INDEX(INDIRECT(\"'\"&$B$1&\"'!A:G\"), ROW(A56), COLUMN(A56))=\"\"\n   ),\n   \"\",\n   INDEX(INDIRECT(\"'\"&$B$1&\"'!A:G\"), ROW(A56), COLUMN(A56))\n),\n\"\")","v":""},{"$f":"IFERROR(\n   IF(OR(\n      INDEX(INDIRECT(\"'\"&$B$1&\"'!A:G\"), ROW(B56), COLUMN(B56))=0,\n      INDEX(INDIRECT(\"'\"&$B$1&\"'!A:G\"), ROW(B56), COLUMN(B56))=\"\"\n   ),\n   \"\",\n   INDEX(INDIRECT(\"'\"&$B$1&\"'!A:G\"), ROW(B56), COLUMN(B56))\n),\n\"\")","v":""},{"$f":"IFERROR(\n   IF(OR(\n      INDEX(INDIRECT(\"'\"&$B$1&\"'!A:G\"), ROW(C56), COLUMN(C56))=0,\n      INDEX(INDIRECT(\"'\"&$B$1&\"'!A:G\"), ROW(C56), COLUMN(C56))=\"\"\n   ),\n   \"\",\n   INDEX(INDIRECT(\"'\"&$B$1&\"'!A:G\"), ROW(C56), COLUMN(C56))\n),\n\"\")","v":""},{"$f":"IFERROR(\n   IF(OR(\n      INDEX(INDIRECT(\"'\"&$B$1&\"'!A:G\"), ROW(D56), COLUMN(D56))=0,\n      INDEX(INDIRECT(\"'\"&$B$1&\"'!A:G\"), ROW(D56), COLUMN(D56))=\"\"\n   ),\n   \"\",\n   INDEX(INDIRECT(\"'\"&$B$1&\"'!A:G\"), ROW(D56), COLUMN(D56))\n),\n\"\")","v":""},{"$f":"IFERROR(\n   IF(OR(\n      INDEX(INDIRECT(\"'\"&$B$1&\"'!A:G\"), ROW(E56), COLUMN(E56))=0,\n      INDEX(INDIRECT(\"'\"&$B$1&\"'!A:G\"), ROW(E56), COLUMN(E56))=\"\"\n   ),\n   \"\",\n   INDEX(INDIRECT(\"'\"&$B$1&\"'!A:G\"), ROW(E56), COLUMN(E56))\n),\n\"\")","v":""},{"$f":"IFERROR(\n   IF(OR(\n      INDEX(INDIRECT(\"'\"&$B$1&\"'!A:G\"), ROW(F56), COLUMN(F56))=0,\n      INDEX(INDIRECT(\"'\"&$B$1&\"'!A:G\"), ROW(F56), COLUMN(F56))=\"\"\n   ),\n   \"\",\n   INDEX(INDIRECT(\"'\"&$B$1&\"'!A:G\"), ROW(F56), COLUMN(F56))\n),\n\"\")","v":""},{"$f":"IFERROR(\n   IF(OR(\n      INDEX(INDIRECT(\"'\"&$B$1&\"'!A:G\"), ROW(G56), COLUMN(G56))=0,\n      INDEX(INDIRECT(\"'\"&$B$1&\"'!A:G\"), ROW(G56), COLUMN(G56))=\"\"\n   ),\n   \"\",\n   INDEX(INDIRECT(\"'\"&$B$1&\"'!A:G\"), ROW(G56), COLUMN(G56))\n),\n\"\")","v":""}]
[{"$f":"IFERROR(\n   IF(OR(\n      INDEX(INDIRECT(\"'\"&$B$1&\"'!A:G\"), ROW(A57), COLUMN(A57))=0,\n      INDEX(INDIRECT(\"'\"&$B$1&\"'!A:G\"), ROW(A57), COLUMN(A57))=\"\"\n   ),\n   \"\",\n   INDEX(INDIRECT(\"'\"&$B$1&\"'!A:G\"), ROW(A57), COLUMN(A57))\n),\n\"\")","v":""},{"$f":"IFERROR(\n   IF(OR(\n      INDEX(INDIRECT(\"'\"&$B$1&\"'!A:G\"), ROW(B57), COLUMN(B57))=0,\n      INDEX(INDIRECT(\"'\"&$B$1&\"'!A:G\"), ROW(B57), COLUMN(B57))=\"\"\n   ),\n   \"\",\n   INDEX(INDIRECT(\"'\"&$B$1&\"'!A:G\"), ROW(B57), COLUMN(B57))\n),\n\"\")","v":""},{"$f":"IFERROR(\n   IF(OR(\n      INDEX(INDIRECT(\"'\"&$B$1&\"'!A:G\"), ROW(C57), COLUMN(C57))=0,\n      INDEX(INDIRECT(\"'\"&$B$1&\"'!A:G\"), ROW(C57), COLUMN(C57))=\"\"\n   ),\n   \"\",\n   INDEX(INDIRECT(\"'\"&$B$1&\"'!A:G\"), ROW(C57), COLUMN(C57))\n),\n\"\")","v":""},{"$f":"IFERROR(\n   IF(OR(\n      INDEX(INDIRECT(\"'\"&$B$1&\"'!A:G\"), ROW(D57), COLUMN(D57))=0,\n      INDEX(INDIRECT(\"'\"&$B$1&\"'!A:G\"), ROW(D57), COLUMN(D57))=\"\"\n   ),\n   \"\",\n   INDEX(INDIRECT(\"'\"&$B$1&\"'!A:G\"), ROW(D57), COLUMN(D57))\n),\n\"\")","v":""},{"$f":"IFERROR(\n   IF(OR(\n      INDEX(INDIRECT(\"'\"&$B$1&\"'!A:G\"), ROW(E57), COLUMN(E57))=0,\n      INDEX(INDIRECT(\"'\"&$B$1&\"'!A:G\"), ROW(E57), COLUMN(E57))=\"\"\n   ),\n   \"\",\n   INDEX(INDIRECT(\"'\"&$B$1&\"'!A:G\"), ROW(E57), COLUMN(E57))\n),\n\"\")","v":""},{"$f":"IFERROR(\n   IF(OR(\n      INDEX(INDIRECT(\"'\"&$B$1&\"'!A:G\"), ROW(F57), COLUMN(F57))=0,\n      INDEX(INDIRECT(\"'\"&$B$1&\"'!A:G\"), ROW(F57), COLUMN(F57))=\"\"\n   ),\n   \"\",\n   INDEX(INDIRECT(\"'\"&$B$1&\"'!A:G\"), ROW(F57), COLUMN(F57))\n),\n\"\")","v":""},{"$f":"IFERROR(\n   IF(OR(\n      INDEX(INDIRECT(\"'\"&$B$1&\"'!A:G\"), ROW(G57), COLUMN(G57))=0,\n      INDEX(INDIRECT(\"'\"&$B$1&\"'!A:G\"), ROW(G57), COLUMN(G57))=\"\"\n   ),\n   \"\",\n   INDEX(INDIRECT(\"'\"&$B$1&\"'!A:G\"), ROW(G57), COLUMN(G57))\n),\n\"\")","v":""}]
[{"$f":"IFERROR(\n   IF(OR(\n      INDEX(INDIRECT(\"'\"&$B$1&\"'!A:G\"), ROW(A58), COLUMN(A58))=0,\n      INDEX(INDIRECT(\"'\"&$B$1&\"'!A:G\"), ROW(A58), COLUMN(A58))=\"\"\n   ),\n   \"\",\n   INDEX(INDIRECT(\"'\"&$B$1&\"'!A:G\"), ROW(A58), COLUMN(A58))\n),\n\"\")","v":""},{"$f":"IFERROR(\n   IF(OR(\n      INDEX(INDIRECT(\"'\"&$B$1&\"'!A:G\"), ROW(B58), COLUMN(B58))=0,\n      INDEX(INDIRECT(\"'\"&$B$1&\"'!A:G\"), ROW(B58), COLUMN(B58))=\"\"\n   ),\n   \"\",\n   INDEX(INDIRECT(\"'\"&$B$1&\"'!A:G\"), ROW(B58), COLUMN(B58))\n),\n\"\")","v":""},{"$f":"IFERROR(\n   IF(OR(\n      INDEX(INDIRECT(\"'\"&$B$1&\"'!A:G\"), ROW(C58), COLUMN(C58))=0,\n      INDEX(INDIRECT(\"'\"&$B$1&\"'!A:G\"), ROW(C58), COLUMN(C58))=\"\"\n   ),\n   \"\",\n   INDEX(INDIRECT(\"'\"&$B$1&\"'!A:G\"), ROW(C58), COLUMN(C58))\n),\n\"\")","v":""},{"$f":"IFERROR(\n   IF(OR(\n      INDEX(INDIRECT(\"'\"&$B$1&\"'!A:G\"), ROW(D58), COLUMN(D58))=0,\n      INDEX(INDIRECT(\"'\"&$B$1&\"'!A:G\"), ROW(D58), COLUMN(D58))=\"\"\n   ),\n   \"\",\n   INDEX(INDIRECT(\"'\"&$B$1&\"'!A:G\"), ROW(D58), COLUMN(D58))\n),\n\"\")","v":""},{"$f":"IFERROR(\n   IF(OR(\n      INDEX(INDIRECT(\"'\"&$B$1&\"'!A:G\"), ROW(E58), COLUMN(E58))=0,\n      INDEX(INDIRECT(\"'\"&$B$1&\"'!A:G\"), ROW(E58), COLUMN(E58))=\"\"\n   ),\n   \"\",\n   INDEX(INDIRECT(\"'\"&$B$1&\"'!A:G\"), ROW(E58), COLUMN(E58))\n),\n\"\")","v":""},{"$f":"IFERROR(\n   IF(OR(\n      INDEX(INDIRECT(\"'\"&$B$1&\"'!A:G\"), ROW(F58), COLUMN(F58))=0,\n      INDEX(INDIRECT(\"'\"&$B$1&\"'!A:G\"), ROW(F58), COLUMN(F58))=\"\"\n   ),\n   \"\",\n   INDEX(INDIRECT(\"'\"&$B$1&\"'!A:G\"), ROW(F58), COLUMN(F58))\n),\n\"\")","v":""},{"$f":"IFERROR(\n   IF(OR(\n      INDEX(INDIRECT(\"'\"&$B$1&\"'!A:G\"), ROW(G58), COLUMN(G58))=0,\n      INDEX(INDIRECT(\"'\"&$B$1&\"'!A:G\"), ROW(G58), COLUMN(G58))=\"\"\n   ),\n   \"\",\n   INDEX(INDIRECT(\"'\"&$B$1&\"'!A:G\"), ROW(G58), COLUMN(G58))\n),\n\"\")","v":""}]
[{"$f":"IFERROR(\n   IF(OR(\n      INDEX(INDIRECT(\"'\"&$B$1&\"'!A:G\"), ROW(A59), COLUMN(A59))=0,\n      INDEX(INDIRECT(\"'\"&$B$1&\"'!A:G\"), ROW(A59), COLUMN(A59))=\"\"\n   ),\n   \"\",\n   INDEX(INDIRECT(\"'\"&$B$1&\"'!A:G\"), ROW(A59), COLUMN(A59))\n),\n\"\")","v":""},{"$f":"IFERROR(\n   IF(OR(\n      INDEX(INDIRECT(\"'\"&$B$1&\"'!A:G\"), ROW(B59), COLUMN(B59))=0,\n      INDEX(INDIRECT(\"'\"&$B$1&\"'!A:G\"), ROW(B59), COLUMN(B59))=\"\"\n   ),\n   \"\",\n   INDEX(INDIRECT(\"'\"&$B$1&\"'!A:G\"), ROW(B59), COLUMN(B59))\n),\n\"\")","v":""},{"$f":"IFERROR(\n   IF(OR(\n      INDEX(INDIRECT(\"'\"&$B$1&\"'!A:G\"), ROW(C59), COLUMN(C59))=0,\n      INDEX(INDIRECT(\"'\"&$B$1&\"'!A:G\"), ROW(C59), COLUMN(C59))=\"\"\n   ),\n   \"\",\n   INDEX(INDIRECT(\"'\"&$B$1&\"'!A:G\"), ROW(C59), COLUMN(C59))\n),\n\"\")","v":""},{"$f":"IFERROR(\n   IF(OR(\n      INDEX(INDIRECT(\"'\"&$B$1&\"'!A:G\"), ROW(D59), COLUMN(D59))=0,\n      INDEX(INDIRECT(\"'\"&$B$1&\"'!A:G\"), ROW(D59), COLUMN(D59))=\"\"\n   ),\n   \"\",\n   INDEX(INDIRECT(\"'\"&$B$1&\"'!A:G\"), ROW(D59), COLUMN(D59))\n),\n\"\")","v":""},{"$f":"IFERROR(\n   IF(OR(\n      INDEX(INDIRECT(\"'\"&$B$1&\"'!A:G\"), ROW(E59), COLUMN(E59))=0,\n      INDEX(INDIRECT(\"'\"&$B$1&\"'!A:G\"), ROW(E59), COLUMN(E59))=\"\"\n   ),\n   \"\",\n   INDEX(INDIRECT(\"'\"&$B$1&\"'!A:G\"), ROW(E59), COLUMN(E59))\n),\n\"\")","v":""},{"$f":"IFERROR(\n   IF(OR(\n      INDEX(INDIRECT(\"'\"&$B$1&\"'!A:G\"), ROW(F59), COLUMN(F59))=0,\n      INDEX(INDIRECT(\"'\"&$B$1&\"'!A:G\"), ROW(F59), COLUMN(F59))=\"\"\n   ),\n   \"\",\n   INDEX(INDIRECT(\"'\"&$B$1&\"'!A:G\"), ROW(F59), COLUMN(F59))\n),\n\"\")","v":""},{"$f":"IFERROR(\n   IF(OR(\n      INDEX(INDIRECT(\"'\"&$B$1&\"'!A:G\"), ROW(G59), COLUMN(G59))=0,\n      INDEX(INDIRECT(\"'\"&$B$1&\"'!A:G\"), ROW(G59), COLUMN(G59))=\"\"\n   ),\n   \"\",\n   INDEX(INDIRECT(\"'\"&$B$1&\"'!A:G\"), ROW(G59), COLUMN(G59))\n),\n\"\")","v":""}]

{"sheet":"Soft","index":2,"n_rows":25,"n_cols":7,"rows_kept":25,"cut":false,"hidden":false,"merged":[]}
["Pillar","Sector","Name ","Metric","Short description","Source","Comment"]
["Society","All sectors","Basic education","Number","INDEX=100- RCI (EU Regional Competitiveness Index) Sub-indicator","https://ec.europa.eu/regional_policy/sources/work/rci_2022/eu-rci2_0-2022_en.pdf","Regional data are easily accessible through the link provided at the Source column"]
["Society","All sectors","Gender employment gap","%","Percentage change of gender employment to total employment","https://ec.europa.eu/eurostat/databrowser/view/tepsr_lm220/default/table?lang=en","Regional data are easily accessible through the link provided at the Source column"]
["Society","All sectors","Health pillar","Number","INDEX=100- RCI Sub-indicator","https://ec.europa.eu/regional_policy/assets/regional-competitiveness/index.html#/","Regional data are easily accessible through the link provided at the Source column"]
["Society","All sectors","Higher education","Number","Based on the EU Regional Competitiveness Index","https://ec.europa.eu/regional_policy/assets/regional-competitiveness/index.html#/","Regional data are easily accessible through the link provided at the Source column"]
["Society","All sectors","Life expectancy at birth","Years","(Number of years a new-born infant would live if prevailing patterns of mortality at the time of its birth were to stay the same throughout its life)","https://ec.europa.eu/eurostat/databrowser/view/tgs00101/default/table?lang=en&category=t_demo.t_demofmreg","Regional data are easily accessible through the link provided at the Source column"]
["Society","All sectors","Population 15-64 years","Number","Absolute number ","https://ec.europa.eu/eurostat/databrowser/view/DEMO_R_PJANGROUP/default/table?lang=en","Regional data are easily accessible through the link provided at the Source column"]
["Society","Agriculture","Ha of land set aside for food growing (or percentage of the total land used)","%",null,null,"Regional data are not available. Consider exchanges with agricultural stakeholders e.g. farmers association"]
["Society","All sectors","Population growth","%","% Year",null,"National statistics should provide it at the regional level"]
["Society","All sectors","Employment in total bioeconomy sector as % of total employment in region","%",null,"https://datam.jrc.ec.europa.eu/datam/mashup/BIOECONOMICS/","if data are not available by regional statistics for each sector on employment, exchange with key stakeholders such a public regional employment offices,  development agencies or chambers of commerce"]
["Society","All sectors","Presence of a RIS3 with bioeconomy focus","Yes/No","Research and Innovation Strategy for Smart Specialisation (RIS 3)",null,"An RIS 3 strategy principally involves measures related to innovation that are also linked to bioeconomy deployment "]
["Society","All sectors","Presence of a cluster organisation which coordinates, manages and facilitates the bio cluster","Yes/No",null,null,"Researchable at the regional level"]
["Environment","Forestry","Change in forest area","%",null,"https://ec.europa.eu/eurostat/databrowser/view/lan_lcv_ovw/default/table?lang=en","if data are not available by regional statistics, exchange with key stakeholders, such as regional forest agencies and regional research institutions"]
["Environment","Agriculture/Forestry","Land cover","%","Sub-indicators (Cropland, Woodland, Shrubland, Grassland, Water, Wetland)","\thttps://ec.europa.eu/eurostat/databrowser/view/lan_lcv_ovw/default/table?lang=en&category=lan\n","Very important indicator to characterise a bioeconomy"]
["Environment","All sectors","Total GHG emissions","kilotonnes CO2 equivalences",null,"https://edgar.jrc.ec.europa.eu/dataset_ghg70","Critical for monitoring your carbon footprint. It is desirable a reduction through time, for all sectors"]
["Environment","Agriculture","Utilised agricultural area (UAA) ","Hectares"," Sub-indicators (Low-input, Medium-input, High-inputs farms)","https://ec.europa.eu/eurostat/databrowser/view/aei_ps_inp/default/table?lang=en","Regional data are easily accessible through the link provided at the Source column"]
["Economy","All sectors","Population at-risk-of-poverty rate","%",null,"https://ec.europa.eu/eurostat/databrowser/view/tgs00103/default/table?lang=en","Regional data are easily accessible through the link provided at the Source column"]
["Economy","All sectors","Employment","% & number","Sectoral approach","https://datam.jrc.ec.europa.eu/datam/mashup/BIO_REG_EU/index.html","Regional data are easily accessible through the link provided at the Source column"]
["Economy","All sectors","Employment rate","%","Employment rate/total -Population 15-64 ","https://ec.europa.eu/eurostat/databrowser/view/lfst_r_lfe2emprtn/default/table?lang=EN","Regional data are easily accessible through the link provided at the Source column"]
["Economy","All sectors","Gross fixed capital formation, in relation to GDP","€",null,"https://ec.europa.eu/eurostat/databrowser/view/nama_10r_2gfcf/default/table?lang=en&category=reg.reg_eco10.reg_eco10brch","Regional data are easily accessible through the link provided at the Source column"]
["Economy","All sectors","Household income","€","Million Euros","https://ec.europa.eu/eurostat/databrowser/view/nama_10r_2hhinc/default/table?lang=en","Regional data are easily accessible through the link provided at the Source column"]
["Economy","All sectors","Regional Gross Domestic Product","€","Million Euros","https://ec.europa.eu/eurostat/databrowser/view/tgs00003/default/table?lang=en","Regional data are easily accessible through the link provided at the Source column"]
["Economy","All sectors","Unemployment rate, by sex, age and persons with disabilities","%","All  International Standard Classification of Education (ISCED) 2011 levels: Total 15 years or over","https://ec.europa.eu/eurostat/databrowser/view/tgs00010/default/table?lang=en&category=t_reg.t_reg_lmk","Where ISCED= International Standard Classification of Education"]
["Economy","All sectors","Value Added ","€","Value added in bioeconomy services","https://datam.jrc.ec.europa.eu/datam/mashup/BIO_REG_EU/index.html","Regional data are easily accessible through the link provided at the Source column"]
["Economy","All sectors","Investment","€","Investment includes the outlay of financial funds for tangible investments (such as machinery), immaterial assets (such as software or patents), or financial investments (such as bonds or equity investments)",null,"If data are not available by Industry Associations, Chambers of commerce or regional development agencies,  consider a targeted expert interview among key stakeholders, such as companies or development agencies"]

{"sheet":"Medium","index":3,"n_rows":49,"n_cols":7,"rows_kept":49,"cut":false,"hidden":false,"merged":[]}
["Pillar","Sector","Name ","Metric","Short description","Source","Comment"]
["Society","All sectors","Basic education","Number","INDEX=100- RCI (EU Regional Competitiveness Index) Sub-indicator","https://ec.europa.eu/regional_policy/sources/work/rci_2022/eu-rci2_0-2022_en.pdf","Regional data are easily accessible through the link provided at the Source column"]
["Society","All sectors","Gender employment gap","%","Percentage change of gender employment to total employment","https://ec.europa.eu/eurostat/databrowser/view/tepsr_lm220/default/table?lang=en","Regional data are easily accessible through the link provided at the Source column"]
["Society","All sectors","Health pillar","Number","INDEX=100- RCI Sub-indicator","https://ec.europa.eu/regional_policy/assets/regional-competitiveness/index.html#/","Regional data are easily accessible through the link provided at the Source column"]
["Society","All sectors","Higher education","Number","Based on the EU Regional Competitiveness Index","https://ec.europa.eu/regional_policy/assets/regional-competitiveness/index.html#/","Regional data are easily accessible through the link provided at the Source column"]
["Society","All sectors","Life expectancy at birth","Years","(Number of years a new-born infant would live if prevailing patterns of mortality at the time of its birth were to stay the same throughout its life)","https://ec.europa.eu/eurostat/databrowser/view/tgs00101/default/table?lang=en&category=t_demo.t_demofmreg","Regional data are easily accessible through the link provided at the Source column"]
["Society","All sectors","Population 15-64 years","Number","Absolute number ","https://ec.europa.eu/eurostat/databrowser/view/DEMO_R_PJANGROUP/default/table?lang=en","Regional data are easily accessible through the link provided at the Source column"]
["Society","Agriculture","Ha of land set aside for food growing (or percentage of the total land used)","%",null,null,"Regional data are not available. Consider exchanges with agricultural stakeholders e.g. farmers association"]
["Society","All sectors","Population growth","%","% Year",null,"National statistics should provide it at the regional level"]
["Society","All sectors","Employment in total bioeconomy sector as % of total employment in region","%",null,"https://datam.jrc.ec.europa.eu/datam/mashup/BIOECONOMICS/","if data are not available by regional statistics for each sector on employment, exchange with key stakeholders such a public regional employment offices,  development agencies or chambers of commerce"]
["Society","All sectors","Presence of a RIS3 with bioeconomy focus","Yes/No","Research and Innovation Strategy for Smart Specialisation (RIS 3)",null,"An RIS 3 strategy principally involves measures related to innovation that are also linked to bioeconomy deployment "]
["Society","All sectors","Presence of a cluster organisation which coordinates, manages and facilitates the bio cluster","Yes/No",null,null,"Researchable at the regional level"]
["Environment","Agriculture","Agricultural land renting prices","€","Euros per Hectare","https://ec.europa.eu/eurostat/databrowser/view/apri_lprc/default/table?lang=en&category=agr.apri.apri_lpr","Regional data are easily accessible through the link provided at the Source column"]
["Environment","Forestry","Change in forest area","%",null,"https://ec.europa.eu/eurostat/databrowser/view/lan_lcv_ovw/default/table?lang=en","if data are not available by regional statistics for each sector on employment, exchange with key stakeholders, such as regional forestry agencies and regional research institutions"]
["Environment","Agriculture","Consumption of Inorganic Fertilisers ","Tonnes",null,"https://ec.europa.eu/eurostat/databrowser/view/aei_fm_usefert/default/table?lang=en","if data are not available by regional statistics, exchange with key stakeholders, such as regional agricultural associations and regional research institutions"]
["Environment","All sectors","Crop yield ","Hectares","Sub-indicators (Cereals to produce grain, Dry pulses and protein crops, Root Crops,Industrial Crops, Energy Crops, Permanent Crops)","https://data.europa.eu/data/datasets/gm7doelj9kz951hkvayxq?locale=en","Regional data are easily accessible through the link provided at the Source column"]
["Environment","Agriculture/Forestry","Land cover","%","Sub-indicators (Cropland, Woodland, Shrubland, Grassland, Water, Wetland)","\thttps://ec.europa.eu/eurostat/databrowser/view/lan_lcv_ovw/default/table?lang=en&category=lan\n","Very important indicator to characterise a bioeconomy"]
["Environment","Agriculture/Food beverage and tobaacco","Livestock density index","Number",null,"https://ec.europa.eu/eurostat/databrowser/view/ef_lsk_main/default/table?lang=en","Regional data are easily accessible through the link provided at the Source column"]
["Environment","Agriculture/Forestry","Soil erosion","Tonnes","tonnes/ha","https://ec.europa.eu/eurostat/databrowser/view/aei_pr_soiler__custom_11375963/default/table?lang=en","Regional data are easily accessible through the link provided at the Source column"]
["Environment","All sectors","Total GHG emissions","kilotonnes CO2 equivalences",null,"https://edgar.jrc.ec.europa.eu/dataset_ghg70","Critical for monitoring your carbon footprint. It is desirable a reduction through time, for all sectors"]
["Environment","Agriculture","Utilised agricultural area (UAA) ","Hectares"," Sub-indicators (Low-input, Medium-input, High-inputs farms)","https://ec.europa.eu/eurostat/databrowser/view/aei_ps_inp/default/table?lang=en","Regional data are easily accessible through the link provided at the Source column"]
["Environment","Fishing and Aquaculture","Fish stock biomass in NE Atlantic & Mediterranean","Fish stock biomass - index 2003 = 100",null,"https://ec.europa.eu/eurostat/databrowser/view/SDG_14_21/default/table?lang=en","if fisheries is a relevant bioeconomy sector, this data should be available on the regional level at e.g. chambers of commerce, development agencies, marine research institutions and public authorities"]
["Environment","All sectors except agriculture, forestry and fishing","Recycling rate of municipal waste ","%",null,"https://ec.europa.eu/eurostat/databrowser/view/sdg_11_60/default/bar?lang=en","if data are not available by regional statistics, exchange with regional authorities, such as waste management companies "]
["Economy","All sectors","Population at-risk-of-poverty rate","%",null,"https://ec.europa.eu/eurostat/databrowser/view/tgs00103/default/table?lang=en","Regional data are easily accessible through the link provided at the Source column"]
["Economy","All sectors","Employment","% & number","Sectoral approach","https://datam.jrc.ec.europa.eu/datam/mashup/BIO_REG_EU/index.html","Regional data are easily accessible through the link provided at the Source column"]
["Economy","Bio-based chemicals, pharmaceuticals, plastics and rubber","Employment in technology and knowledge-intensive activities","%","Composite Indicator","https://ec.europa.eu/eurostat/databrowser/view/HTEC_EMP_REG2/default/table?lang=en","Regional data are easily accessible through the link provided at the Source column"]
["Economy","All sectors","Employment rate","%","Employment rate/total -Population 15-64 ","https://ec.europa.eu/eurostat/databrowser/view/lfst_r_lfe2emprtn/default/table?lang=EN","Regional data are easily accessible through the link provided at the Source column"]
["Economy","All sectors","Gross fixed capital formation, in relation to GDP","€",null,"https://ec.europa.eu/eurostat/databrowser/view/nama_10r_2gfcf/default/table?lang=en&category=reg.reg_eco10.reg_eco10brch","Regional data are easily accessible through the link provided at the Source column"]
["Economy","All sectors","Household income","€","Million Euros","https://ec.europa.eu/eurostat/databrowser/view/nama_10r_2hhinc/default/table?lang=en","Regional data are easily accessible through the link provided at the Source column"]
["Economy","Agriculture","Productivity of crop production","Hectares","Crop Production (Total)","https://ec.europa.eu/eurostat/databrowser/view/apro_cpshr/default/table?lang=en","Regional data are easily accessible through the link provided at the Source column"]
["Economy","All sectors","R&D Personnel and Researchers","%","% of total employment","https://ec.europa.eu/eurostat/databrowser/view/rd_p_persreg/default/table?lang=en&category=reg.reg_sct.reg_rd","Regional data are easily accessible through the link provided at the Source column"]
["Economy","All sectors","Regional Competitiveness Index (RCI)[23]","number","Composite Indicator","https://ec.europa.eu/regional_policy/sources/work/rci_2022/eu-rci2_0-2022_en.pdf","Regional data are easily accessible through the link provided at the Source column"]
["Economy","All sectors","Regional Gross Domestic Product","€","Million Euros","https://ec.europa.eu/eurostat/databrowser/view/tgs00003/default/table?lang=en","Regional data are easily accessible through the link provided at the Source column"]
["Economy","All sectors","Turnover","€","Turnover of every sector by region","https://datam.jrc.ec.europa.eu/datam/mashup/BIOECONOMICS/index.html","Available only on national level. But see a proposed estimation technique for regional level, to the present guide"]
["Economy","All sectors","Unemployment rate, by sex, age and persons with disabilities","%","All  International Standard Classification of Education (ISCED) 2011 levels: Total 15 years or over","https://ec.europa.eu/eurostat/databrowser/view/tgs00010/default/table?lang=en&category=t_reg.t_reg_lmk","Where ISCED= International Standard Classification of Education"]
["Economy","All sectors","Value Added ","€","Value added in bioeconomy services","https://datam.jrc.ec.europa.eu/datam/mashup/BIO_REG_EU/index.html","Regional data are easily accessible through the link provided at the Source column"]
["Economy","All sectors","Number of employees","Number","calculated labour force in the production of bio-based products","https://ec.europa.eu/eurostat/statistics-explained/index.php?title=Employment_-_annual_statistics#Employment_of_men_and_women_by_age_groups","if data are not available by regional statistics,  exchange with regional authorities, such as chamber of commerce and regional development agencies"]
["Economy","Agriculture","Import of agricultural biomass","kg","kg/capita",null,"if data are not available by regional statistics, exchange with key stakeholders such a public regional authority,  development agencies or chambers of commerce, regional farmers associations"]
["Economy","All sectors","Export share","%","Sectoral approach",null,"if data are not available by regional statistics, exchange with key stakeholders such a public regional authority,  development agencies or chambers of commerce"]
["Economy","Forestry","Forestry biomass production","kg","kg/capita",null,"if data are not available by regional statistics, exchange with key stakeholders, such as regional forestry agencies and regional research institutions"]
["Economy","All sectors","Average income of employees in the bioeconomy sectors","€",null,null,"Interesting for a comparison with average income of employees in general. if data are not available by regional statistics, exchange with key stakeholders such a public regional authority,  development agencies or chambers of commerce"]
["Economy","Fishing and Aquaculture","Blue biomass production","kg","kg/capita",null,"if fisheries is a relevant bioeconomy sector, this data should be available on the regional level at e.g. chambers of commerce, development agencies, marine research institutions and public authorities"]
["Economy","All sectors","Bio-based Share","%","Bio-based shares of respective industries 4-digit NACE",null,"if data are not available by regional statistics, exchange with key stakeholders, such as champer of commerce and development agencies"]
["Economy","All sectors","Full time equivalent jobs","Number",null,null,"if data are not available by regional statistics, exchange with key stakeholders, such as champer of commerce and development agencies"]
["Economy","All sectors","Waste biomass production","kg","kg/capita","https://px.luke.fi/PxWeb/pxweb/en/maatalous/maatalous__biomassa/","Regional data are easily accessible through the link provided at the Source column"]
["Economy","All sectors","Bio-based output share","%","Sectoral approach",null,"if data are not available, you may use your main eixsisting bio-based sectors (e.g. agriculture, wood products, bio-based textiles, paper, forestry, food/beverage, etc.) and add it up. If significant other idustries are involved, few expert exchanges/stakeholder interviews could give an insight into this (regional bio-based companies )"]
["Economy","All sectors","Contribution of bioeconomy sectors to GDP","%",null,null,"if data are not available by regional statistics, exchange with key stakeholders such a public regional authority,  development agencies or chambers of commerce"]
["Economy","All sectors","Investment","€","Investment includes the outlay of financial funds for tangible investments (such as machinery), immaterial assets (such as software or patents), or financial investments (such as bonds or equity investments)",null,"If data are not available by Industry Association, Chambers of commenrce or regional development agencies,  targeted expert interview among key stakeholders such as companies or development agencies can be implemented"]
["Economy","Agriculture","Agricultural biomass production","kg","kg/capita","https://px.luke.fi/PxWeb/pxweb/en/maatalous/maatalous__biomassa/","Regional data are easily accessible through the link provided at the Source column"]

{"sheet":"Strong","index":4,"n_rows":59,"n_cols":7,"rows_kept":59,"cut":false,"hidden":false,"merged":[]}
["Pillar","Sector","Name ","Metric","Short description","Source","Comment"]
["Society","All sectors","Basic education","Number","INDEX=100- RCI (EU Regional Competitiveness Index) Sub-indicator","https://ec.europa.eu/regional_policy/sources/work/rci_2022/eu-rci2_0-2022_en.pdf","Regional data are easily accessible through the link provided at the Source column"]
["Society","All sectors","Gender employment gap","%","Percentage change of gender employment to total employment","https://ec.europa.eu/eurostat/databrowser/view/tepsr_lm220/default/table?lang=en","Regional data are easily accessible through the link provided at the Source column"]
["Society","All sectors","Health pillar","Number","INDEX=100- RCI Sub-indicator","https://ec.europa.eu/regional_policy/assets/regional-competitiveness/index.html#/","Regional data are easily accessible through the link provided at the Source column"]
["Society","All sectors","Higher education","Number","Based on the EU Regional Competitiveness Index","https://ec.europa.eu/regional_policy/assets/regional-competitiveness/index.html#/","Regional data are easily accessible through the link provided at the Source column"]
["Society","All sectors","Life expectancy at birth","Years","(Number of years a new-born infant would live if prevailing patterns of mortality at the time of its birth were to stay the same throughout its life)","https://ec.europa.eu/eurostat/databrowser/view/tgs00101/default/table?lang=en&category=t_demo.t_demofmreg","Regional data are easily accessible through the link provided at the Source column"]
["Society","All sectors","Population 15-64 years","Number","Absolute number ","https://ec.europa.eu/eurostat/databrowser/view/DEMO_R_PJANGROUP/default/table?lang=en","Regional data are easily accessible through the link provided at the Source column"]
["Society","Agriculture","Ha of land set aside for food growing (or percentage of the total land used)","%",null,null,"Regional data are not available. Consider exchanges with agricultural stakeholders e.g. farmers association"]
["Society","All sectors","Population growth","%","% Year",null,"National statistics should provide it at the regional level"]
["Society","All sectors","Employment in total bioeconomy sector as % of total employment in region","%",null,"https://datam.jrc.ec.europa.eu/datam/mashup/BIOECONOMICS/","if data are not available by regional statistics for each sector on employment, exchange with key stakeholders such a public regional employment offices,  development agencies or chambers of commerce"]
["Society","All sectors","Presence of a RIS3 with bioeconomy focus","Yes/No","Research and Innovation Strategy for Smart Specialisation (RIS 3)",null,"An RIS 3 strategy principally involves measures related to innovation that are also linked to bioeconomy deployment "]
["Society","All sectors","Presence of a cluster organisation which coordinates, manages and facilitates the bio cluster","Yes/No",null,null,"Researchable at the regional level"]
["Environment","Agriculture","Agricultural land renting prices","€","Euros per Hectare","https://ec.europa.eu/eurostat/databrowser/view/apri_lprc/default/table?lang=en&category=agr.apri.apri_lpr","Regional data are easily accessible through the link provided at the Source column"]
["Environment","Forestry","Change in forest area","%",null,"https://ec.europa.eu/eurostat/databrowser/view/lan_lcv_ovw/default/table?lang=en","if data are not available by regional statistics, exchange with key stakeholders, such as regional forestry agencies and regional research institutions"]
["Environment","Agriculture","Consumption of Inorganic Fertilisers ","Tonnes",null,"https://ec.europa.eu/eurostat/databrowser/view/aei_fm_usefert/default/table?lang=en","if data are not available by regional statistics, exchange with key stakeholders, such as regional agricultural associations and regional research institutions"]
["Environment","All sectors","Crop yield ","Hectares","Sub-indicators (Cereals to produce grain, Dry pulses and protein crops, Root Crops,Industrial Crops, Energy Crops, Permanent Crops)","https://data.europa.eu/data/datasets/gm7doelj9kz951hkvayxq?locale=en","Regional data are easily accessible through the link provided at the Source column"]
["Environment","Agriculture/Forestry","Land cover","%","Sub-indicators (Cropland, Woodland, Shrubland, Grassland, Water, Wetland)","https://ec.europa.eu/eurostat/databrowser/view/lan_lcv_ovw/default/table?lang=en&category=lan","Very important indicator to characterise a bioeconomy"]
["Environment","Agriculture/Food beverage and tobaacco","Livestock density index","Number",null,"https://ec.europa.eu/eurostat/databrowser/view/ef_lsk_main/default/table?lang=en","Regional data are easily accessible through the link provided at the Source column"]
["Environment","Agriculture/Forestry","Soil erosion","Tonnes","tonnes/ha","https://ec.europa.eu/eurostat/databrowser/view/aei_pr_soiler__custom_11375963/default/table?lang=en","Regional data are easily accessible through the link provided at the Source column"]
["Environment","All sectors","Total GHG emissions","kilotonnes CO2 equivalences",null,"https://edgar.jrc.ec.europa.eu/dataset_ghg70","Critical for monitoring your carbon footprint. It is desirable a reduction through time, for all sectors"]
["Environment","Agriculture","Utilised agricultural area (UAA) ","Hectares"," Sub-indicators (Low-input, Medium-input, High-inputs farms)","https://ec.europa.eu/eurostat/databrowser/view/aei_ps_inp/default/table?lang=en","Regional data are easily accessible through the link provided at the Source column"]
["Environment","Agriculture","Pollutant loadings to waterways and bodies of water attributable to fertiliser and pesticide application for biomass production","kg","kg N and P/ha/year",null,"if data are not available by regional statistics, exchange with key stakeholders such a public regional authority,  development agencies and regional farmers associations"]
["Environment","Agriculture","Soil erosion / product unit  ","kg","kg soil loss",null,"if data are not available by regional statistics, exchange with key stakeholders such a public regional authority,  development agencies and regional farmers associations"]
["Environment","Fishing and Aquaculture","Fish stock biomass in NE Atlantic & Mediterranean","Fish stock biomass - index 2003 = 100",null,"https://ec.europa.eu/eurostat/databrowser/view/SDG_14_21/default/table?lang=en","if fisheries is a relevant bioeconomy sector, this data should be available on the regional level at e.g. chambers of commerce, development agencies, marine research institutions and public authorities"]
["Environment","All sectors except agriculture, forestry and fishing","Recycling rate of municipal waste ","%",null,"https://ec.europa.eu/eurostat/databrowser/view/sdg_11_60/default/bar?lang=en","if data are not available by regional statistics, exchange with regional authorities, such as waste management companies"]
["Environment","Agriculture/Forestry","Proportion of land that is degraded over total land area","%",null,null,"if data are not available by regional statistics, exchange with key stakeholders such a public regional authority,  development agencies and regional farmers associations"]
["Economy","All sectors","Population at-risk-of-poverty rate","%",null,"https://ec.europa.eu/eurostat/databrowser/view/tgs00103/default/table?lang=en","Regional data are easily accessible through the link provided at the Source column"]
["Economy","All sectors","Employment","% & number","Sectoral approach","https://datam.jrc.ec.europa.eu/datam/mashup/BIO_REG_EU/index.html","Regional data are easily accessible through the link provided at the Source column"]
["Economy","Bio-based chemicals. pharmaceuticals, plastics and rubber","Employment in technology and knowledge-intensive activities","%","Composite Indicator","https://ec.europa.eu/eurostat/databrowser/view/HTEC_EMP_REG2/default/table?lang=en","Regional data are easily accessible through the link provided at the Source column"]
["Economy","All sectors","Employment rate","%","Employment rate/total -Population 15-64 ","https://ec.europa.eu/eurostat/databrowser/view/lfst_r_lfe2emprtn/default/table?lang=EN","Regional data are easily accessible through the link provided at the Source column"]
["Economy","All sectors","GERD by sector of performance","€","Gross domestic expenditure on R&D (GERD) includes expenditure on research and development by business enterprises, higher education institutions, as well as government and private non-profit organisations.","https://ec.europa.eu/eurostat/databrowser/view/rd_e_gerdreg/default/table?lang=en&category=reg.reg_sct.reg_rd","Regional data are easily accessible through the link provided at the Source column"]
["Economy","All sectors","Gross fixed capital formation, in relation to GDP","€",null,"https://ec.europa.eu/eurostat/databrowser/view/nama_10r_2gfcf/default/table?lang=en&category=reg.reg_eco10.reg_eco10brch","Regional data are easily accessible through the link provided at the Source column"]
["Economy","All sectors","Household income","€","Million Euros","https://ec.europa.eu/eurostat/databrowser/view/nama_10r_2hhinc/default/table?lang=en","Regional data are easily accessible through the link provided at the Source column"]
["Economy","Agriculture","Productivity of crop production","Hectares","Crop Production (Total)","https://ec.europa.eu/eurostat/databrowser/view/apro_cpshr/default/table?lang=en","Regional data are easily accessible through the link provided at the Source column"]
["Economy","All sectors","R&D expenditure in the business sector","€","Expressed in Million Euros","https://ec.europa.eu/eurostat/databrowser/view/rd_e_gerdreg/default/table?lang=en&category=scitech.rd.rd_e","Regional data are easily accessible through the link provided at the Source column"]
["Economy","All sectors","R&D Personnel and Researchers","%","% of total employment","https://ec.europa.eu/eurostat/databrowser/view/rd_p_persreg/default/table?lang=en&category=reg.reg_sct.reg_rd","Regional data are easily accessible through the link provided at the Source column"]
["Economy","All sectors","Regional Competitiveness Index (RCI)[23]","number","Composite Indicator","https://ec.europa.eu/regional_policy/sources/work/rci_2022/eu-rci2_0-2022_en.pdf","Regional data are easily accessible through the link provided at the Source column"]
["Economy","All sectors","Regional Gross Domestic Product","€","Million Euros","https://ec.europa.eu/eurostat/databrowser/view/tgs00003/default/table?lang=en","Regional data are easily accessible through the link provided at the Source column"]
["Economy","All sectors","Sales of new-to-market and new-to-enterprise innovations","% turnover",null,null,"if data are not available by regional statistics, exchange with key stakeholders such a public regional authority,  development agencies, chambers of commerce and SMEs associations"]
["Economy","All sectors","Turnover","€","Turnover of every sector by region","https://datam.jrc.ec.europa.eu/datam/mashup/BIOECONOMICS/index.html","Available only on national level. But see a proposed estimation technique for regional level, to the present guide"]
["Economy","All sectors","Unemployment rate, by sex, age and persons with disabilities","%","All  International Standard Classification of Education (ISCED) 2011 levels: Total 15 years or over","https://ec.europa.eu/eurostat/databrowser/view/tgs00010/default/table?lang=en&category=t_reg.t_reg_lmk","Where ISCED= International Standard Classification of Education"]
["Economy","All sectors","Value Added ","€","Value added in bioeconomy services","https://datam.jrc.ec.europa.eu/datam/mashup/BIO_REG_EU/index.html","Regional data are easily accessible through the link provided at the Source column"]
["Economy","All sectors","Number of employees","Number","calculated labour force in the production of bio-based products","https://ec.europa.eu/eurostat/statistics-explained/index.php?title=Employment_-_annual_statistics#Employment_of_men_and_women_by_age_groups","if data are not available by regional statistics,  exchange with regional authorities, such as chamber of commerce and regional development agencies"]
["Economy","Agriculture","Import of agricultural biomass","kg","kg/capita",null,"if data are not available by regional statistics, exchange with key stakeholders such a public regional authority,  development agencies or chambers of commerce, regional farmers associations"]
["Economy","All sectors","Export share","%","Sectoral approach",null,"if data are not available by regional statistics, exchange with key stakeholders such a public regional authority,  development agencies or chambers of commerce"]
["Economy","Forestry","Forestry biomass production","kg","kg/capita",null,"If data are not available by regional statistics, exchange with key stakeholders, such as regional forestry agencies and regional research institutions"]
["Economy","All sectors","Average income of employees in the bioeconomy sectors","€",null,null,"Interesting for a comparison with average income of employees in general. if data are not available by regional statistics, exchange with key stakeholders such a public regional authority,  development agencies or chambers of commerce"]
["Economy","Fishing and Aquaculture","Blue biomass production","kg","kg/capita",null,"If fisheries is a relevant bioeconomy sector, this data should be available on the regional level at e.g. chambers of commerce, development agencies, marine research institutions and public authorities"]
["Economy","All sectors","Bio-based Share","%","Bio-based shares of respective industries 4-digit NACE",null,"If data are not available by regional statistics, exchange with key stakeholders, such as champer of commerce and development agencies"]
["Economy","Bio-based chemicals. pharmaceuticals, plastics and rubber","Development of advanced biorefinery technologies","Yes/No",null,null,"If data are not available by Industry Associations, Chambers of commerce or regional development agencies,  consider a targeted expert interview among key stakeholders, such as companies or development agencies and research institutes"]
["Economy","All sectors","Full time equivalent jobs","Number",null,null,"If data are not available by regional statistics, exchange with key stakeholders, such as champer of commerce and development agencies"]
["Economy","All sectors","Innovative SMEs collaborating with others","Number",null,null,"If data are not available by Industry Associations, Chambers of commerce or regional development agencies,  consider a targeted expert interview among key stakeholders, such as SMEs associations or development agencies"]
["Economy","All sectors","Waste biomass production","kg","kg/capita","https://px.luke.fi/PxWeb/pxweb/en/maatalous/maatalous__biomassa/","Regional data are easily accessible through the link provided at the Source column"]
["Economy","All sectors","Public financial support and private investments for ecosystem services","€",null,null,"If data are not available by Industry Associations, Chambers of commerce or regional development agencies,  consider a targeted expert interview among key stakeholders, such as companies or development agencies and research institutes"]
["Economy","All sectors","Bio-based output share","%","Sectoral approach",null,"If data are not available, you may use your main existing bio-based sectors (e.g. agriculture, wood products, bio-based textiles, paper, forestry, food/beverage, etc.) and add it up. If significant other idustries are involved, few expert exchanges/stakeholder interviews could give an insight into this (regional bio-based companies )"]
["Economy","All sectors","Contribution of bioeconomy sectors to GDP","%",null,null,"if data are not available by regional statistics, exchange with key stakeholders such a public regional authority,  development agencies or chambers of commerce, regional farmers associations"]
["Economy","All sectors","Investment","€","Investment includes the outlay of financial funds for tangible investments (such as machinery), immaterial assets (such as software or patents), or financial investments (such as bonds or equity investments)",null,"If data are not available by Industry Associations, Chambers of commerce or regional development agencies,  consider a targeted expert interview among key stakeholders, such as companies or development agencies"]
["Economy","All sectors","Intellectual property rights (IPRs) (patent, trademark, design) applications in bioeconomy subsectors","Number","number of applications per 1 000 employees",null,"If not available by chambers of commenrce or regional development agencies,  targeted expert interview among key stakeholders, such as companies or development agencies can be implemented"]
["Economy","Agriculture","Agricultural biomass production","kg","kg/capita","https://px.luke.fi/PxWeb/pxweb/en/maatalous/maatalous__biomassa/","Regional data are easily accessible through the link provided at the Source column"]